Workbook

Sheet Cover
A8: Distribution Network Service Provider
A9: Annual reporting template
A11: This template is to be used by a DNSP to fulfil its annual reporting obligations to the AER.
A13: Colour coding of input sheets:
A14: Dark blue = AER instructions/headings
A15: Yellow = Input cells
A16: Grey - Not applicable/No inputs required
A18: Leave coloured cells blank if no information exists - PLEASE DO NOT ENTER TEXT unless specifically requested to do so.
A19: All dollar amounts are to be unrounded, and in nominal terms.
A22: DNSP - trading name: | C22: CitiPower Pty
A24: DNSP - Australian business number: | C24: ACN 064 651 056
A26: Reporting year: | C26: 2013
A31: Business address | B31: Address | D31: 40 Market Street
B32: Suburb | D32: Melbourne
C33: State | D33: VIC | E33: Postcode | F33: 3000
A35: Postal address | B35: Address | D35: Locked Bag 14090
B36: Suburb | D36: Melbourne
C37: State | D37: VIC | E37: Postcode | F37: 8001
A40: Contact name/s | B40: Hannah Williams
A41: Contact phone/s | B41: 9683 4088
A42: Contact email address/s | B42: hwilliams@powercor.com.au

Sheet Contents
E3: Electricity Distribution Network Service Provider Annual Reporting Template
H4: Table of contents
P7: Tariff templates
C8: Cover sheet | G8: 9. Additions by Tax | K8: 19. Alternative Control and Other Services | O8: 29. Unmetered Supply
C12: 1. Income Statement | G12: 10. Advanced Metering Infrastructure | K12: 20. Demand and Revenue | O12: 30. Actual t-2 Distribution Tariff
C16: 2. Balance Sheet | G16: 11. Maintenance | K16: 21. EBSS | O16: 31. Actual t-2 Transmission Tariff
C21: 3. Cashflows Statement | K21: 22. Jurisdictional Scheme | O21: 32. Actual t-2 TUoS Cost Audit
G24: 12. Activities
C25: 4. Changes in Equity | K25: 23. DMIS-DMIA | O25: 33. Actual t-2 Jurisdictional Scheme Revenue
C29: 5. Fixed Assets | K29: 24. Self Insurance | O29: 34. Actual t-2 Jurisdictional Scheme Cost Audit
G31: 13. Labour
C33: 6. Additions by Reason | K33: 25. Change of Accounting Policy
G35: 14. Opex Step Change
K37: 26. Related Party Transactions
G39: 15. Total Overheads
K41: 27. Safety and Bushfire
G43: 16. Provisions
K46: 28. Cost of Debt
G47: 17. Shared Cost Allocation
C48: 7. Depreciation
G51: 18. Avoided Cost Payments
C52: 8. Written Down Value

Sheet 1. Income
B1: =Cover!C22 -> CitiPower Pty
B2: Income Statement
B3: =Cover!C26 -> 2013
B6: Statutory Account code or reference to account code | C6: Description | D6: Audited Statutory Financial Statements | E6: Adjustments | F6: CitiPower | G6: Standard Control Services | H6: AMI | I6: Public Lighting - Alternative Control | K6: Other Alternative Control Services | M6: Negotiated Services | N6: Unregulated Services | O6: Standard Control Services Prior Year
I7: Energy efficient | J7: Non energy efficient | K7: Fee based service | L7: Quoted service
D9: $'000 nominal | E9: $'000 nominal | F9: $'000 nominal | G9: $'000 nominal | H9: $'000 nominal | I9: $'000 nominal | J9: $'000 nominal | K9: $'000 nominal | L9: $'000 nominal | M9: $'000 nominal | N9: $'000 nominal | O9: $'000 nominal
B10: Note 3 | C10: Distribution Revenue | D10: 294494.4712 | E10: 0 | F10: 294494.4712 | G10: 234670.3431 | H10: 42670.0527 | I10: 1115.184447 | J10: 3289.895693 | K10: 6503.857019 | L10: 3448.06489 | M10: 0 | N10: 2797.07329 | O10: 215568.1261
B11: Note 3 | C11: Designated Pricing Proposal Charges | D11: 80256.38191 | E11: -80256.38191 | F11: 0 | G11: 0 | H11: 0 | I11: 0 | J11: 0 | K11: 0 | L11: 0 | M11: 0 | N11: 0 | O11: 0
B12: Note 3 | C12: Jurisdictional Scheme Amounts | D12: 1985.09133 | E12: -1985.09133 | F12: 0 | G12: 0 | H12: 0 | I12: 0 | J12: 0 | K12: 0 | L12: 0 | M12: 0 | N12: 0 | O12: 0
B13: Note 4 | C13: Profit from sale of Fixed Assets | D13: 259.12958 | E13: -259.12958 | F13: 0 | G13: 0 | H13: 0 | I13: 0 | J13: 0 | K13: 0 | L13: 0 | M13: 0 | N13: 0 | O13: 0
B14: Note 3 | C14: Customer Contributions | D14: 23177.8588 | E14: -23177.8588 | F14: 0 | G14: 0 | H14: 0 | I14: 0 | J14: 0 | K14: 0 | L14: 0 | M14: 0 | N14: 0 | O14: 0
B15: Note 3 | C15: Other Revenue | D15: 24404.28275 | E15: -25557.1456 | F15: -1152.86285 | G15: 1405.035977 | H15: -2559.458333 | I15: 0.04517952305 | J15: 1.387090756 | K15: 0 | L15: 0 | M15: 0.1228825711 | N15: 0.004353936535 | O15: 1975.041216
C17: Total revenue | D17: =SUM(D10:D16) -> 424577.2156 | E17: =SUM(E10:E16) -> -131235.6072 | F17: =SUM(F10:F16) -> 293341.6084 | G17: 236075.379 | H17: 40110.59437 | I17: 1115.229627 | J17: 3291.282783 | K17: 6503.857019 | L17: 3448.06489 | M17: 0.1228825711 | N17: 2797.077644 | O17: 217543.1673
B19: Note 5 | C19: Designated Pricing Approval Charges | D19: 80256.38191 | E19: -80256.38191 | F19: 0 | G19: 0 | H19: 0 | I19: 0 | J19: 0 | K19: 0 | L19: 0 | M19: 0 | N19: 0 | O19: 0
B20: Note 5 | C20: Jurisdictional Scheme Amounts | D20: 1985.09133 | E20: -1985.09133 | F20: 0 | G20: 0 | H20: 0 | I20: 0 | J20: 0 | K20: 0 | L20: 0 | M20: 0 | N20: 0 | O20: 0
B21: Note 5 | C21: Maintenance | D21: 38100.50599 | E21: 0 | F21: 38100.50599 | G21: 29869.12877 | H21: 1356.62357 | I21: 748.6149878 | J21: 2648.025728 | K21: 1856.198399 | L21: 1621.914535 | M21: 0 | N21: 0 | O21: 31100.74303
B22: Note 5 | C22: Operating Expenses | D22: 60817.01424 | E22: -20573.61785 | F22: 40243.39639 | G22: 24668.46387 | H22: 9264.561942 | I22: 20.46870101 | J22: 72.40256313 | K22: 3884.499125 | L22: 2333.000188 | M22: 0 | N22: 0 | O22: 23756.25766
B23: Note 5 | C23: Depreciation | D23: 67821.27563 | E23: -2552.7316 | F23: 65268.54403 | G23: 47443.94265 | H23: 16648.31156 | I23: 15.74106875 | J23: 1097.667597 | K23: 0 | L23: 0 | M23: 62.88115886 | N23: 0 | O23: 41486.25423
B24: Note 4, 5 | C24: Finance Charges | D24: 8775.2447 | E24: 0 | F24: 8775.2447 | G24: 7946.84676 | H24: 749.992975 | I24: 2.271422585 | J24: 69.73666515 | K24: 0 | L24: 0 | M24: 6.177981272 | N24: 0.2188962855 | O24: 7282.763294
C25: Loss from sale of Fixed Assets | D25: 0 | E25: -259.12958 | F25: -259.12958 | G25: -259.12958 | H25: 0 | I25: 0 | J25: 0 | K25: 0 | L25: 0 | M25: 0 | N25: 0 | O25: 190.28882
C26: Impairment Losses (Nature: ) | D26: 0 | E26: 0 | F26: 0 | G26: 0 | H26: 0 | I26: 0 | J26: 0 | K26: 0 | L26: 0 | M26: 0 | N26: 0 | O26: 0
C27: Other | D27: 0 | E27: 0 | F27: 0 | G27: 0 | H27: 0 | I27: 0 | J27: 0 | K27: 0 | L27: 0 | M27: 0 | N27: 0 | O27: 0
C29: Profit before Tax (PBT) | D29: =D17-SUM(D19:D27) -> 166821.7018 | E29: -25608.65495 | F29: 141213.0469 | G29: 126406.1266 | H29: 12091.10432 | I29: 328.1334469 | J29: -596.5497705 | K29: 763.1594958 | L29: -506.8498333 | M29: -68.93625756 | N29: 2796.858748 | O29: 113726.8602
C31: Income Tax Expenses /(Benefit) | D31: -2617.29819 | E31: 401.7791782 | F31: -2215.519012 | G31: -1983.210354 | H31: -189.699692 | I31: -5.148149595 | J31: 9.359385605 | K31: -11.97335805 | L31: 7.95206581 | M31: 1.081554379 | N31: -43.88046195 | O31: -998.3809612
C33: Profit after tax | D33: =D29-D31 -> 169439 | E33: =E29-E31 -> -26010.43413 | F33: 143428.5659 | G33: 128389.3369 | H33: 12280.80401 | I33: 333.2815965 | J33: -605.9091561 | K33: 775.1328538 | L33: -514.8018991 | M33: -70.01781194 | N33: 2840.73921 | O33: 114725.2412
B36: Note:
B37: Balancing is required at CitiPower distribution business level
B38: In addition it is mandatory to produce for each cost or revenue item that has been allocated to the distribution services/AMI a supporting
B39: workpaper that includes the following:
B40: a) the amounts that have been directly attributed to each distribution service
B41: b) the amounts that have been allocated to each distribution service
B42: c) a description of the allocation basis
B43: d) the numeric quantity of each allocator.
B44: Designated pricing approval charges include SPI connection fees, AEMO shared transmission charges, net cross boundary charges, avoided TUoS/avoided transmission costs.

Sheet 6a. Capex 1A
B1: =Cover!C22 -> CitiPower Pty
B2: Additions by Reasons
B3: (Net of Customer Contributions)
B4: =Cover!C26 -> 2013
B6: Instructions:
B7: Reported expenditure is to be entered INCLUSIVE of any profit margins or management fees paid directly or indirectly to related party contractors (which is not an actual incurred cost of the related party contractor) for the regulatory reporting period.
B8: If allocating based on assumptions then provide method.
B10: Table 1 Standard Control Service
B12: $'000 nominal | C12: Total | E12: VOLTAGE
D13: Subtransmission | E13: HV | F13: LV | G13: Other
B14: Demand Related
B15: Reinforcement | C15: =SUM(D15:G15) -> 34112.7466 | D15: 15896.68591 | E15: 13186.04244 | F15: 4760.906062 | G15: 269.1121902
B16: New customer connection | C16: =SUM(D16:G16) -> 48680.22899 | D16: 22685.19505 | E16: 18817.00037 | F16: 6793.999909 | G16: 384.0336633
B17: Non Demand Related
B18: Reliability & quality maintained | C18: =SUM(D18:G18) -> 28663.47526 | D18: 13357.30214 | E18: 11079.6649 | F18: 4000.384804 | G18: 226.1234105
B19: Environmental, safety & legal | C19: 13799.05405 | D19: 6430.418245 | E19: 5333.927358 | F19: 1925.849034 | G19: 108.8594156
B20: Total Across Voltage Levels | C20: 125255.5049 | D20: =SUM(D15:D16,D18:D19) -> 58369.60134 | E20: =SUM(E15:E16,E18:E19) -> 48416.63507 | F20: =SUM(F15:F16,F18:F19) -> 17481.13981 | G20: =SUM(G15:G16,G18:G19) -> 988.1286795
B21: SCADA/Network control | C21: 2658.54474 | D21: 0 | E21: 0 | F21: 0 | G21: 2658.54474
B22: Non network general - IT | C22: 5104.17477 | D22: 0 | E22: 0 | F22: 0 | G22: 5104.17477
B23: Non network general - other | C23: 2530.42715 | D23: 0 | E23: 0 | F23: 0 | G23: 2530.42715
B24: Metering - Non AMI | C24: 0 | D24: 0 | E24: 0 | F24: 0 | G24: 0
B25: Standard Control - Total Additions | C25: 135548.6516 | D25: =SUM(D20:D24) -> 58369.60134 | E25: =SUM(E20:E24) -> 48416.63507 | F25: =SUM(F20:F24) -> 17481.13981 | G25: =SUM(G20:G24) -> 11281.27534
B27: Table 2 AMI
B29: $'000 nominal | C29: Total | E29: VOLTAGE
D30: Subtransmission | E30: HV | F30: LV | G30: Other
B31: Accumulation Meters | C31: =SUM(D31:G31) -> 19.83778 | D31: 0 | E31: 0 | F31: 0 | G31: 19.83778
B32: Manually read interval meters | C32: 15.20142 | D32: 0 | E32: 0 | F32: 0 | G32: 15.20142
B33: Remotely read interval meters & transformers | C33: 25327.03812 | D33: 0 | E33: 0 | F33: 0 | G33: 25327.03812
B34: AMI communication | C34: 1773.621232 | D34: 0 | E34: 0 | F34: 0 | G34: 1773.621232
B35: Metering data services (IT) | C35: 4885.63804 | D35: 0 | E35: 0 | F35: 0 | G35: 4885.63804
B36: Metering data services (other) | C36: 0 | D36: 0 | E36: 0 | F36: 0 | G36: 0
B37: AMI - Total Additions | C37: 32021.3366 | D37: =SUM(D31:D36) -> 0 | E37: =SUM(E31:E36) -> 0 | F37: =SUM(F31:F36) -> 0 | G37: =SUM(G31:G36) -> 32021.3366
B39: Table 3 Public lighting - Alternative Control
B41: $'000 nominal | C41: Total | E41: VOLTAGE
D42: Subtransmission | E42: HV | F42: LV | G42: Other
B43: Public lighting - energy efficient | C43: =SUM(D43:G43) -> 254.430549 | D43: 0 | E43: 0 | F43: 0 | G43: 254.430549
B44: Public lighting - non energy efficient | C44: =SUM(D44:G44) -> -347.866029 | D44: 0 | E44: 0 | F44: 0 | G44: -347.866029
B46: Public Lighting - Total Additions | C46: =SUM(D46:G46) -> -93.43547993 | D46: =SUM(D43:D44) -> 0 | E46: =SUM(E43:E44) -> 0 | F46: =SUM(F43:F44) -> 0 | G46: =SUM(G43:G44) -> -93.43547993
B48: Table 4 Alternative control - fee, quoted services
B50: $'000 nominal | C50: Total | E50: VOLTAGE
D51: Subtransmission | E51: HV | F51: LV | G51: Other
B52: Other - fee based services | C52: =SUM(D52:G52) -> 0 | D52: 0 | E52: 0 | F52: 0 | G52: 0
B53: Other - quoted services | C53: =SUM(D53:G53) -> 0 | D53: 0 | E53: 0 | F53: 0 | G53: 0
B55: Other Alternative Control - Total Additions | C55: =SUM(D55:G55) -> 0 | D55: =SUM(D52:D53) -> 0 | E55: =SUM(E52:E53) -> 0 | F55: =SUM(F52:F53) -> 0 | G55: =SUM(G52:G53) -> 0
B57: Table 5 Negotiated
B59: $'000 nominal | C59: Total | E59: VOLTAGE
D60: Subtransmission | E60: HV | F60: LV | G60: Other
B61: Negotiated services | C61: =SUM(D61:G61) -> 1016.378749 | D61: 0 | E61: 0 | F61: 0 | G61: 1016.378749
B63: Negotiated - Total Additions | C63: =SUM(D63:G63) -> 1016.378749 | D63: =D61 -> 0 | E63: =E61 -> 0 | F63: =F61 -> 0 | G63: =G61 -> 1016.378749
B65: Table 6 Unregulated
B67: $'000 nominal | C67: Total | E67: VOLTAGE
D68: Subtransmission | E68: HV | F68: LV | G68: Other
B69: Unregulated | C69: =SUM(D69:G69) -> 57.83497993 | D69: 0 | E69: 0 | F69: 0 | G69: 57.83497993
B71: Unregulated - Total Additions | C71: =SUM(D71:G71) -> 57.83497993 | D71: =D69 -> 0 | E71: =E69 -> 0 | F71: =F69 -> 0 | G71: =G69 -> 57.83497993
B73: Table 7 Total all additions
B75: $'000 nominal | C75: Total | E75: VOLTAGE
D76: Subtransmission | E76: HV | F76: LV | G76: Other
B77: Total Additions (Net of Customer Contributions) $'000 nominal | C77: =SUM(D77:G77) -> 168550.7664 | D77: =D25+D37+D46+D55+D63+D71 -> 58369.60134 | E77: =E25+E37+E46+E55+E63+E71 -> 48416.63507 | F77: =F25+F37+F46+F55+F63+F71 -> 17481.13981 | G77: =G25+G37+G46+G55+G63+G71 -> 44283.39018
B79: Table 8 Customer Contributions
B81: $'000 nominal
B82: Standard control services | C82: 20547.09689
B83: AMI | C83: 0
B84: Public lighting | C84: 1452.422
B85: Alternative control fee and quoted services | C85: 0
B86: Negotiated | C86: 2630.760911
B87: Unregulated | C87: 0
B88: Total Customer Contributions | C88: =SUM(C82:C87) -> 24630.2798

Sheet 6b. Capex 1B
B1: =Cover!C22 -> CitiPower Pty
B2: Additions by Reasons
B3: (Net of Customer Contributions)
B4: =Cover!C26 -> 2013
B6: Instructions:
B7: Reported expenditure is to be entered EXCLUSIVE of any profit margins or management fees paid directly or indirectly to related party contractors (which is not an actual incurred cost of the related party contractor) for the regulatory reporting period.
B8: If allocating based on assumptions then provide method.
B10: Table 1 Standard Control Service
B12: $'000 nominal | C12: Total | E12: VOLTAGE
D13: Subtransmission | E13: HV | F13: LV | G13: Other
B14: Demand Related
B15: Reinforcement | C15: =SUM(D15:G15) -> 32749.88557 | D15: 15261.58683 | E15: 12659.23808 | F15: 4570.699937 | G15: 258.36071
B16: New customer connection | C16: =SUM(D16:G16) -> 46284.66442 | D16: 21568.85171 | E16: 17891.01172 | F16: 6459.665708 | G16: 365.1352839
B17: Non Demand Related
B18: Reliability & quality maintained | C18: =SUM(D18:G18) -> 27670.65266 | D18: 12894.64256 | E18: 10695.8963 | F18: 3861.822665 | G18: 218.2911282
B19: Environmental, safety & legal | C19: 13257.79854 | D19: 6178.190859 | E19: 5124.708843 | F19: 1850.309334 | G19: 104.5895027
B20: Total Across Voltage Levels | C20: 119963.0012 | D20: =SUM(D19,D18,D15,D16) -> 55903.27196 | E20: =SUM(E19,E18,E15,E16) -> 46370.85495 | F20: =SUM(F19,F18,F15,F16) -> 16742.49764 | G20: =SUM(G19,G18,G15,G16) -> 946.3766247
B21: SCADA/Network control | C21: 2574.54894 | D21: 0 | E21: 0 | F21: 0 | G21: 2574.54894
B22: Non network general - IT | C22: 4389.06777 | D22: 0 | E22: 0 | F22: 0 | G22: 4389.06777
B23: Non network general - other | C23: 2530.427149 | D23: 0 | E23: 0 | F23: 0 | G23: 2530.427149
B24: Metering - Non AMI | C24: 0 | D24: 0 | E24: 0 | F24: 0 | G24: 0
B25: Standard Control - Total Additions | C25: 129457.045 | D25: =SUM(D20:D24) -> 55903.27196 | E25: =SUM(E20:E24) -> 46370.85495 | F25: =SUM(F20:F24) -> 16742.49764 | G25: =SUM(G20:G24) -> 10440.42048
B27: Table 2 AMI
B29: $'000 nominal | C29: Total | E29: VOLTAGE
D30: Subtransmission | E30: HV | F30: LV | G30: Other
B31: Accumulation Meters | C31: =SUM(D31:G31) -> 19.15245881 | D31: 0 | E31: 0 | F31: 0 | G31: 19.15245881
B32: Manually read interval meters | C32: 14.66787279 | D32: 0 | E32: 0 | F32: 0 | G32: 14.66787279
B33: Remotely read interval meters & transformers | C33: 24773.07981 | D33: 0 | E33: 0 | F33: 0 | G33: 24773.07981
B34: AMI communication | C34: 1589.934267 | D34: 0 | E34: 0 | F34: 0 | G34: 1589.934267
B35: Metering data services (IT) | C35: 4228.70362 | D35: 0 | E35: 0 | F35: 0 | G35: 4228.70362
B36: Metering data services (other) | C36: 0 | D36: 0 | E36: 0 | F36: 0 | G36: 0
B38: AMI - Total Additions | C38: =SUM(D38:G38) -> 30625.53803 | D38: =SUM(D31:D36) -> 0 | E38: =SUM(E31:E36) -> 0 | F38: =SUM(F31:F36) -> 0 | G38: =SUM(G31:G36) -> 30625.53803
B40: Table 3 Public lighting - Alternative Control
B42: $'000 nominal | C42: Total | E42: VOLTAGE
D43: Subtransmission | E43: HV | F43: LV | G43: Other
B44: Public lighting - energy efficient | C44: =SUM(D44:G44) -> 244.5117378 | D44: 0 | E44: 0 | F44: 0 | G44: 244.5117378
B45: Public lighting - non energy efficient | C45: =SUM(D45:G45) -> -390.9264326 | D45: 0 | E45: 0 | F45: 0 | G45: -390.9264326
B47: Public Lighting - Total Additions | C47: =SUM(D47:G47) -> -146.4146947 | D47: =SUM(D44:D45) -> 0 | E47: =SUM(E44:E45) -> 0 | F47: =SUM(F44:F45) -> 0 | G47: =SUM(G44:G45) -> -146.4146947
B49: Table 4 Alternative control - fee, quoted services
B51: $'000 nominal | C51: Total | E51: VOLTAGE
D52: Subtransmission | E52: HV | F52: LV | G52: Other
B53: Other - fee based services | C53: =SUM(D53:G53) -> 0 | D53: 0 | E53: 0 | F53: 0 | G53: 0
B54: Other - quoted services | C54: =SUM(D54:G54) -> 0 | D54: 0 | E54: 0 | F54: 0 | G54: 0
B56: Other Alternative Control - Total Additions | C56: =SUM(D56:G56) -> 0 | D56: =SUM(D53:D54) -> 0 | E56: =SUM(E53:E54) -> 0 | F56: =SUM(F53:F54) -> 0 | G56: =SUM(G53:G54) -> 0
B58: Table 5 Negotiated
B60: $'000 nominal | C60: Total | E60: VOLTAGE
D61: Subtransmission | E61: HV | F61: LV | G61: Other
B62: Negotiated services | C62: =SUM(D62:G62) -> 911.7894671 | D62: 0 | E62: 0 | F62: 0 | G62: 911.7894671
B64: Negotiated - Total Additions | C64: =SUM(D64:G64) -> 911.7894671 | D64: =D62 -> 0 | E64: =E62 -> 0 | F64: =F62 -> 0 | G64: =G62 -> 911.7894671
B66: Table 6 Unregulated
B68: $'000 nominal | C68: Total | E68: VOLTAGE
D69: Subtransmission | E69: HV | F69: LV | G69: Other
B70: Unregulated | C70: =SUM(D70:G70) -> 55.58032047 | D70: 0 | E70: 0 | F70: 0 | G70: 55.58032047
B72: Unregulated - Total Additions | C72: =SUM(D72:G72) -> 55.58032047 | D72: =D70 -> 0 | E72: =E70 -> 0 | F72: =F70 -> 0 | G72: =G70 -> 55.58032047
B74: Table 7 Total all additions
B76: $'000 nominal | C76: Total | E76: VOLTAGE
D77: Subtransmission | E77: HV | F77: LV | G77: Other
B78: Total Additions (Net of Customer Contributions) $'000 nominal | C78: =SUM(D78:G78) -> 160903.5382 | D78: =D25+D38+D47+D56+D64+D72 -> 55903.27196 | E78: =E25+E38+E47+E56+E64+E72 -> 46370.85495 | F78: =F25+F38+F47+F56+F64+F72 -> 16742.49764 | G78: =G25+G38+G47+G56+G64+G72 -> 41886.9136
B80: Table 8 Customer Contributions
B82: $'000 nominal
B83: Standard control services | C83: 20547.09689
B84: AMI | C84: 0
B85: Public lighting | C85: 1452.422
B86: Alternative control fee and quoted services | C86: 0
B87: Negotiated | C87: 2630.760911
B88: Unregulated | C88: 0
B89: Total Customer Contributions | C89: =SUM(C83:C88) -> 24630.2798

Sheet 6c. Capex 2A
B1: =Cover!C22 -> CitiPower Pty
B2: Additions by Reason - Overheads
B3: (Net of Customer Contributions)
B4: =Cover!C26 -> 2013
B6: Instructions:
B7: Reported expenditure is to be entered INCLUSIVE of any profit margins or management fees paid directly or indirectly to related party contractors (which is not an actual incurred cost of the related party contractor) for the regulatory reporting period.
B8: If allocating based on assumptions then provide method.
B13: $'000 nominal | C13: DIRECT | H13: INDIRECT | M13: TOTAL OVERHEADS
D14: Voltage | I14: Voltage | N14: Voltage
C15: Subtransmission | D15: HV | E15: LV | F15: Other | G15: Subtotal | H15: Subtransmission | I15: HV | J15: LV | K15: Other | L15: Subtotal | M15: Subtransmission | N15: HV | O15: LV | P15: Other | Q15: TOTAL
B16: Demand Related
B17: Reinforcement | C17: 1522.857958 | D17: 1263.18591 | E17: 456.0814579 | F17: 25.7801936 | G17: =SUM(C17:F17) -> 3267.90552 | H17: 1615.045241 | I17: 1339.653762 | J17: 483.6906712 | K17: 27.34081584 | L17: =SUM(H17:K17) -> 3465.73049 | M17: =SUM(C17,H17) -> 3137.903199 | N17: =SUM(D17,I17) -> 2602.839673 | O17: =SUM(E17,J17) -> 939.7721291 | P17: =SUM(F17,K17) -> 53.12100945 | Q17: =SUM(M17:P17) -> 6733.63601
B18: New customer connection | C18: 3002.198978 | D18: 2490.275228 | E18: 899.1300071 | F18: 50.82369664 | G18: =SUM(C18:F18) -> 6442.42791 | H18: 3441.515118 | I18: 2854.680822 | J18: 1030.701008 | K18: 58.26080204 | L18: =SUM(H18:K18) -> 7385.15775 | M18: =SUM(C18,H18) -> 6443.714096 | N18: 5344.956051 | O18: 1929.831015 | P18: 109.0844987 | Q18: =SUM(M18:P18) -> 13827.58566
B19: Non Demand Related
B20: Reliability & quality maintained | C20: 1231.528639 | D20: 1021.532978 | E20: 368.8311008 | F20: 20.84833097 | G20: =SUM(C20:F20) -> 2642.741048 | H20: 1397.016375 | I20: 1158.802364 | J20: 418.393102 | K20: 23.64984366 | L20: =SUM(H20:K20) -> 2997.861685 | M20: =SUM(C20,H20) -> 2628.545014 | N20: =SUM(D20,I20) -> 2180.335342 | O20: 787.2242028 | P20: 44.49817463 | Q20: =SUM(M20:P20) -> 5640.602733
B21: Environmental, safety & legal | C21: 612.2599007 | D21: 507.8596307 | E21: 183.3660104 | F21: 10.3648398 | G21: 1313.850382 | H21: 667.8473767 | I21: 553.968538 | J21: 200.0139301 | K21: 11.30587037 | L21: 1433.135715 | M21: =SUM(C21,H21) -> 1280.107277 | N21: 1061.828169 | O21: 383.3799405 | P21: 21.67071018 | Q21: 2746.986097
B22: Total Across Voltage Levels | C22: =SUM(C17:C18,C20:C21) -> 6368.845475 | D22: =SUM(D17:D18,D20:D21) -> 5282.853747 | E22: =SUM(E17:E18,E20:E21) -> 1907.408576 | F22: =SUM(F17:F18,F20:F21) -> 107.817061 | G22: 13666.92486 | H22: =SUM(H17:H18,H20:H21) -> 7121.42411 | I22: =SUM(I17:I18,I20:I21) -> 5907.105486 | J22: =SUM(J17:J18,J20:J21) -> 2132.798711 | K22: =SUM(K17:K18,K20:K21) -> 120.5573319 | L22: 15281.88564 | M22: =SUM(M17:M18,M20:M21) -> 13490.26959 | N22: =SUM(N17:N18,N20:N21) -> 11189.95923 | O22: =SUM(O17:O18,O20:O21) -> 4040.207287 | P22: =SUM(P17:P18,P20:P21) -> 228.3743929 | Q22: 28948.8105
B23: SCADA/Network control | C23: 0 | D23: 0 | E23: 0 | F23: 230.80698 | G23: 230.80698 | H23: 0 | I23: 0 | J23: 0 | K23: 275.97535 | L23: 275.97535 | M23: =SUM(C23,H23) -> 0 | N23: 0 | O23: 0 | P23: 506.78233 | Q23: 506.78233
B24: Non network general - IT | C24: 0 | D24: 0 | E24: 0 | F24: 0 | G24: 0 | H24: 0 | I24: 0 | J24: 0 | K24: 0 | L24: 0 | M24: 0 | N24: 0 | O24: 0 | P24: 0 | Q24: 0
B25: Non network general - other | C25: 0 | D25: 0 | E25: 0 | F25: 0 | G25: =SUM(C25:F25) -> 0 | H25: 0 | I25: 0 | J25: 0 | K25: 2e-05 | L25: =SUM(H25:K25) -> 2e-05 | M25: =SUM(C25,H25) -> 0 | N25: 0 | O25: 0 | P25: 2e-05 | Q25: =SUM(M25:P25) -> 2e-05
B26: Metering - Non AMI | C26: 0 | D26: 0 | E26: 0 | F26: 0 | G26: =SUM(C26:F26) -> 0 | H26: 0 | I26: 0 | J26: 0 | K26: 0 | L26: =SUM(H26:K26) -> 0 | M26: 0 | N26: 0 | O26: 0 | P26: 0 | Q26: =SUM(M26:P26) -> 0
B27: Standard Control - Total Additions | C27: =SUM(C22:C26) -> 6368.845475 | D27: =SUM(D22:D26) -> 5282.853747 | E27: =SUM(E22:E26) -> 1907.408576 | F27: =SUM(F22:F26) -> 338.624041 | G27: 13897.73184 | H27: =SUM(H22:H26) -> 7121.42411 | I27: =SUM(I22:I26) -> 5907.105486 | J27: =SUM(J22:J26) -> 2132.798711 | K27: =SUM(K22:K26) -> 396.5327019 | L27: 15557.86101 | M27: =SUM(M22:M26) -> 13490.26959 | N27: =SUM(N22:N26) -> 11189.95923 | O27: =SUM(O22:O26) -> 4040.207287 | P27: =SUM(P22:P26) -> 735.1567429 | Q27: 29455.59285
B29: Table 2 AMI
B31: $'000 nominal | C31: DIRECT | H31: INDIRECT | M31: TOTAL OVERHEADS
D32: Voltage | I32: Voltage | N32: Voltage
C33: Subtransmission | D33: HV | E33: LV | F33: Other | G33: Subtotal | H33: Subtransmission | I33: HV | J33: LV | K33: Other | L33: Subtotal | M33: Subtransmission | N33: HV | O33: LV | P33: Other | Q33: TOTAL
B34: Accumulation Meters | C34: 0 | D34: 0 | E34: 0 | F34: 0.13003 | G34: =SUM(C34:F34) -> 0.13003 | H34: 0 | I34: 0 | J34: 0 | K34: 2.19488 | L34: =SUM(H34:K34) -> 2.19488 | M34: =SUM(C34,H34) -> 0 | N34: 0 | O34: 0 | P34: 2.32491 | Q34: =SUM(M34:P34) -> 2.32491
B35: Manually read interval meters | C35: 0 | D35: 0 | E35: 0 | F35: 0.05606 | G35: 0.05606 | H35: 0 | I35: 0 | J35: 0 | K35: 1.7157 | L35: 1.7157 | M35: 0 | N35: 0 | O35: 0 | P35: 1.77176 | Q35: 1.77176
B36: Remotely read interval meters & transformers | C36: 0 | D36: 0 | E36: 0 | F36: 8.44363 | G36: 8.44363 | H36: 0 | I36: 0 | J36: 0 | K36: 232.01955 | L36: 232.01955 | M36: 0 | N36: 0 | O36: 0 | P36: 240.46318 | Q36: 240.46318
B37: AMI communication | C37: 0 | D37: 0 | E37: 0 | F37: 0 | G37: 0 | H37: 0 | I37: 0 | J37: 0 | K37: 0 | L37: 0 | M37: 0 | N37: 0 | O37: 0 | P37: 0 | Q37: 0
B38: Metering data services (IT) | C38: 0 | D38: 0 | E38: 0 | F38: 0 | G38: 0 | H38: 0 | I38: 0 | J38: 0 | K38: 0 | L38: 0 | M38: 0 | N38: 0 | O38: 0 | P38: 0 | Q38: 0
B39: Metering data services (other) | C39: 0 | D39: 0 | E39: 0 | F39: 0 | G39: 0 | H39: 0 | I39: 0 | J39: 0 | K39: 0 | L39: 0 | M39: 0 | N39: 0 | O39: 0 | P39: 0 | Q39: 0
B41: AMI - Total Additions | C41: =SUM(C34:C39) -> 0 | D41: =SUM(D34:D39) -> 0 | E41: =SUM(E34:E39) -> 0 | F41: =SUM(F34:F39) -> 8.62972 | G41: =SUM(C41:F41) -> 8.62972 | H41: =SUM(H34:H39) -> 0 | I41: =SUM(I34:I39) -> 0 | J41: =SUM(J34:J39) -> 0 | K41: =SUM(K34:K39) -> 235.93013 | L41: =SUM(H41:K41) -> 235.93013 | M41: =SUM(M34:M39) -> 0 | N41: =SUM(N34:N39) -> 0 | O41: =SUM(O34:O39) -> 0 | P41: =SUM(P34:P39) -> 244.55985 | Q41: =SUM(M41:P41) -> 244.55985
B43: Table 3 Public lighting - Alternative Control
B45: $'000 nominal | C45: DIRECT | H45: INDIRECT | M45: TOTAL OVERHEADS
D46: Voltage | I46: Voltage | N46: Voltage
C47: Subtransmission | D47: HV | E47: LV | F47: Other | G47: Subtotal | H47: Subtransmission | I47: HV | J47: LV | K47: Other | L47: Subtotal | M47: Subtransmission | N47: HV | O47: LV | P47: Other | Q47: TOTAL
B48: Public lighting - energy efficient | C48: 0 | D48: 0 | E48: 0 | F48: 24.82077621 | G48: =SUM(C48:F48) -> 24.82077621 | H48: 0 | I48: 0 | J48: 0 | K48: 27.10655614 | L48: =SUM(H48:K48) -> 27.10655614 | M48: =SUM(C48,H48) -> 0 | N48: =SUM(D48,I48) -> 0 | O48: =SUM(E48,J48) -> 0 | P48: 51.92733235 | Q48: =SUM(M48:P48) -> 51.92733235
B49: Public lighting - non energy efficient | C49: 0 | D49: 0 | E49: 0 | F49: 107.7541069 | G49: =SUM(C49:F49) -> 107.7541069 | H49: 0 | I49: 0 | J49: 0 | K49: 117.677333 | L49: =SUM(H49:K49) -> 117.677333 | M49: =SUM(C49,H49) -> 0 | N49: 0 | O49: 0 | P49: 225.4314398 | Q49: =SUM(M49:P49) -> 225.4314398
B51: Public Lighting - Total Additions | C51: =SUM(C48:C49) -> 0 | D51: =SUM(D48:D49) -> 0 | E51: =SUM(E48:E49) -> 0 | F51: =SUM(F48:F49) -> 132.5748831 | G51: =SUM(C51:F51) -> 132.5748831 | H51: =SUM(H48:H49) -> 0 | I51: =SUM(I48:I49) -> 0 | J51: =SUM(J48:J49) -> 0 | K51: =SUM(K48:K49) -> 144.7838891 | L51: =SUM(H51:K51) -> 144.7838891 | M51: =SUM(M48:M49) -> 0 | N51: =SUM(N48:N49) -> 0 | O51: =SUM(O48:O49) -> 0 | P51: =SUM(P48:P49) -> 277.3587722 | Q51: =SUM(M51:P51) -> 277.3587722
B53: Table 4 Alternative control - fee, quoted services
B55: $'000 nominal | C55: DIRECT | H55: INDIRECT | M55: TOTAL OVERHEADS
D56: Voltage | I56: Voltage | N56: Voltage
C57: Subtransmission | D57: HV | E57: LV | F57: Other | G57: Subtotal | H57: Subtransmission | I57: HV | J57: LV | K57: Other | L57: Subtotal | M57: Subtransmission | N57: HV | O57: LV | P57: Other | Q57: TOTAL
B58: Other - fee based services | C58: 0 | D58: 0 | E58: 0 | F58: 0 | G58: =SUM(C58:F58) -> 0 | H58: 0 | I58: 0 | J58: 0 | K58: 0 | L58: =SUM(H58:K58) -> 0 | M58: =SUM(C58,H58) -> 0 | N58: 0 | O58: 0 | P58: 0 | Q58: =SUM(M58:P58) -> 0
B59: Other - quoted services | C59: 0 | D59: 0 | E59: 0 | F59: 0 | G59: =SUM(C59:F59) -> 0 | H59: 0 | I59: 0 | J59: 0 | K59: 0 | L59: =SUM(H59:K59) -> 0 | M59: 0 | N59: 0 | O59: 0 | P59: 0 | Q59: =SUM(M59:P59) -> 0
B61: Other Alternative Control - Total Additions | C61: =SUM(C58:C59) -> 0 | D61: =SUM(D58:D59) -> 0 | E61: =SUM(E58:E59) -> 0 | F61: =SUM(F58:F59) -> 0 | G61: =SUM(C61:F61) -> 0 | H61: =SUM(H58:H59) -> 0 | I61: =SUM(I58:I59) -> 0 | J61: =SUM(J58:J59) -> 0 | K61: =SUM(K58:K59) -> 0 | L61: =SUM(H61:K61) -> 0 | M61: =SUM(M58:M59) -> 0 | N61: =SUM(N58:N59) -> 0 | O61: =SUM(O58:O59) -> 0 | P61: =SUM(P58:P59) -> 0 | Q61: =SUM(M61:P61) -> 0
B63: Table 5 Negotiated
B65: $'000 nominal | C65: DIRECT | H65: INDIRECT | M65: TOTAL OVERHEADS
D66: Voltage | I66: Voltage | N66: Voltage
C67: Subtransmission | D67: HV | E67: LV | F67: Other | G67: Subtotal | H67: Subtransmission | I67: HV | J67: LV | K67: Other | L67: Subtotal | M67: Subtransmission | N67: HV | O67: LV | P67: Other | Q67: TOTAL
B68: Negotiated services | C68: 0 | D68: 0 | E68: 0 | F68: 328.21638 | G68: =SUM(C68:F68) -> 328.21638 | H68: 0 | I68: 0 | J68: 0 | K68: 370.68659 | L68: =SUM(H68:K68) -> 370.68659 | M68: =SUM(C68,H68) -> 0 | N68: =SUM(D68,I68) -> 0 | O68: =SUM(E68,J68) -> 0 | P68: =SUM(F68,K68) -> 698.90297 | Q68: =SUM(M68:P68) -> 698.90297
B70: Negotiated - Total Additions | C70: =SUM(C68) -> 0 | D70: =SUM(D68) -> 0 | E70: =SUM(E68) -> 0 | F70: =SUM(F68) -> 328.21638 | G70: =SUM(C70:F70) -> 328.21638 | H70: =SUM(H68) -> 0 | I70: =SUM(I68) -> 0 | J70: =SUM(J68) -> 0 | K70: =SUM(K68) -> 370.68659 | L70: =SUM(H70:K70) -> 370.68659 | M70: =SUM(M68) -> 0 | N70: =SUM(N68) -> 0 | O70: =SUM(O68) -> 0 | P70: =SUM(P68) -> 698.90297 | Q70: =SUM(M70:P70) -> 698.90297
B72: Table 6 Unregulated
B74: $'000 nominal | C74: DIRECT | H74: INDIRECT | M74: TOTAL OVERHEADS
D75: Voltage | I75: Voltage | N75: Voltage
C76: Subtransmission | D76: HV | E76: LV | F76: Other | G76: Subtotal | H76: Subtransmission | I76: HV | J76: LV | K76: Other | L76: Subtotal | M76: Subtransmission | N76: HV | O76: LV | P76: Other | Q76: TOTAL
B77: Unregulated | C77: 0 | D77: 0 | E77: 0 | F77: 5.642046915 | G77: =SUM(C77:F77) -> 5.642046915 | H77: 0 | I77: 0 | J77: 0 | K77: 6.16163089 | L77: =SUM(H77:K77) -> 6.16163089 | M77: =SUM(C77,H77) -> 0 | N77: =SUM(D77,I77) -> 0 | O77: =SUM(E77,J77) -> 0 | P77: =SUM(F77,K77) -> 11.80367781 | Q77: =SUM(M77:P77) -> 11.80367781
B79: Unregulated - Total Additions | C79: =SUM(C77) -> 0 | D79: =SUM(D77) -> 0 | E79: =SUM(E77) -> 0 | F79: =SUM(F77) -> 5.642046915 | G79: =SUM(C79:F79) -> 5.642046915 | H79: =SUM(H77) -> 0 | I79: =SUM(I77) -> 0 | J79: =SUM(J77) -> 0 | K79: =SUM(K77) -> 6.16163089 | L79: =SUM(H79:K79) -> 6.16163089 | M79: =SUM(M77) -> 0 | N79: =SUM(N77) -> 0 | O79: =SUM(O77) -> 0 | P79: =SUM(P77) -> 11.80367781 | Q79: =SUM(M79:P79) -> 11.80367781
B81: Table 7 Total all additions
B83: $'000 nominal | C83: DIRECT | H83: INDIRECT | M83: TOTAL OVERHEADS
D84: Voltage | I84: Voltage | N84: Voltage
C85: Subtransmission | D85: HV | E85: LV | F85: Other | G85: Subtotal | H85: Subtransmission | I85: HV | J85: LV | K85: Other | L85: Subtotal | M85: Subtransmission | N85: HV | O85: LV | P85: Other | Q85: TOTAL
B86: Total Additions (Net of Customer Contributions) $'000 nominal | C86: =C27+C41+C51+C61+C70+C79 -> 6368.845475 | D86: =D27+D41+D51+D61+D70+D79 -> 5282.853747 | E86: =E27+E41+E51+E61+E70+E79 -> 1907.408576 | F86: =F27+F41+F51+F61+F70+F79 -> 813.687071 | G86: =SUM(C86:F86) -> 14372.79487 | H86: =H27+H41+H51+H61+H70+H79 -> 7121.42411 | I86: =I27+I41+I51+I61+I70+I79 -> 5907.105486 | J86: =J27+J41+J51+J61+J70+J79 -> 2132.798711 | K86: =K27+K41+K51+K61+K70+K79 -> 1154.094942 | L86: =SUM(H86:K86) -> 16315.42325 | M86: =M27+M41+M51+M61+M70+M79 -> 13490.26959 | N86: =N27+N41+N51+N61+N70+N79 -> 11189.95923 | O86: =O27+O41+O51+O61+O70+O79 -> 4040.207287 | P86: =P27+P41+P51+P61+P70+P79 -> 1967.782013 | Q86: =SUM(M86:P86) -> 30688.21812
B88: Table 8 Customer Contributions
B90: $'000 nominal
B91: Standard control services | C91: 0
B92: AMI | C92: 0
B93: Public lighting | C93: 0
B94: Alternative control fee and quoted services | C94: 0
B95: Negotiated | C95: 0
B96: Unregulated | C96: 0
B97: Total Customer Contributions | C97: =SUM(C91:C96) -> 0

Sheet 6d. Capex 2B
B1: =Cover!C22 -> CitiPower Pty
B2: Additions by Reason - Overheads
B3: (Net of Customer Contributions)
B4: =Cover!C26 -> 2013
B6: Instructions:
B7: Reported expenditure is to be entered EXCLUSIVE of any profit margins or management fees paid directly or indirectly to related party contractors (which is not an actual incurred cost of the related party contractor) for the regulatory reporting period.
B8: If allocating based on assumptions then provide method.
B10: Table 1 Standard Control Service
B12: $'000 nominal | C12: DIRECT | H12: INDIRECT | M12: TOTAL OVERHEADS
D13: Voltage | I13: Voltage | N13: Voltage
C14: Subtransmission | D14: HV | E14: LV | F14: Other | G14: Subtotal | H14: Subtransmission | I14: HV | J14: LV | K14: Other | L14: Subtotal | M14: Subtransmission | N14: HV | O14: LV | P14: Other | Q14: TOTAL
B15: Demand Related
B16: Reinforcement | C16: 1522.857958 | D16: 1263.18591 | E16: 456.0814579 | F16: 25.7801936 | G16: =SUM(C16:F16) -> 3267.90552 | H16: 1498.597058 | I16: 1243.061888 | J16: 448.8155492 | K16: 25.3694851 | L16: =SUM(H16:K16) -> 3215.84398 | M16: =SUM(C16,H16) -> 3021.455016 | N16: =SUM(D16,I16) -> 2506.247799 | O16: 904.8970071 | P16: 51.14967871 | Q16: =SUM(M16:P16) -> 6483.7495
B17: New customer connection | C17: 3002.198978 | D17: 2490.275228 | E17: 899.1300071 | F17: 50.82369664 | G17: =SUM(C17:F17) -> 6442.42791 | H17: 3193.374588 | I17: 2648.852288 | J17: 956.3852818 | K17: 54.0600748 | L17: =SUM(H17:K17) -> 6852.672232 | M17: =SUM(C17,H17) -> 6195.573565 | N17: 5139.127516 | O17: 1855.515289 | P17: 104.8837714 | Q17: =SUM(M17:P17) -> 13295.10014
B18: Non Demand Related
B19: Reliability & quality maintained | C19: 1231.528639 | D19: 1021.532978 | E19: 368.8311008 | F19: 20.84833097 | G19: =SUM(C19:F19) -> 2642.741048 | H19: 1296.288535 | I19: 1075.250259 | J19: 388.2260731 | K19: 21.94463983 | L19: =SUM(H19:K19) -> 2781.709507 | M19: =SUM(C19,H19) -> 2527.817174 | N19: =SUM(D19,I19) -> 2096.783237 | O19: 757.0571738 | P19: 42.7929708 | Q19: =SUM(M19:P19) -> 5424.450555
B20: Environmental, safety & legal | C20: 612.2599007 | D20: 507.8596307 | E20: 183.3660104 | F20: 10.3648398 | G20: 1313.850382 | H20: 619.6941661 | I20: 514.0262329 | J20: 185.5925021 | K20: 10.49069317 | L20: 1329.803594 | M20: =SUM(C20,H20) -> 1231.954067 | N20: 1021.885864 | O20: 368.9585124 | P20: 20.85553297 | Q20: 2643.653976
B21: Total Across Voltage Levels | C21: =SUM(C16:C17,C19:C20) -> 6368.845475 | D21: =SUM(D16:D17,D19:D20) -> 5282.853747 | E21: =SUM(E16:E17,E19:E20) -> 1907.408576 | F21: =SUM(F16:F17,F19:F20) -> 107.817061 | G21: 13666.92486 | H21: =SUM(H16:H17,H19:H20) -> 6607.954346 | I21: =SUM(I16:I17,I19:I20) -> 5481.190667 | J21: =SUM(J16:J17,J19:J20) -> 1979.019406 | K21: =SUM(K16:K17,K19:K20) -> 111.8648929 | L21: 14180.02931 | M21: =SUM(M16:M17,M19:M20) -> 12976.79982 | N21: =SUM(N16:N17,N19:N20) -> 10764.04441 | O21: =SUM(O16:O17,O19:O20) -> 3886.427982 | P21: =SUM(P16:P17,P19:P20) -> 219.6819539 | Q21: 27846.95417
B22: SCADA/Network control | C22: 0 | D22: 0 | E22: 0 | F22: 230.80698 | G22: 230.80698 | H22: 0 | I22: 0 | J22: 0 | K22: 256.0769427 | L22: 256.0769427 | M22: =SUM(C22,H22) -> 0 | N22: =SUM(D22,I22) -> 0 | O22: 0 | P22: 486.8839227 | Q22: 486.8839227
B23: Non network general - IT | C23: 0 | D23: 0 | E23: 0 | F23: 0 | G23: 0 | H23: 0 | I23: 0 | J23: 0 | K23: 0 | L23: 0 | M23: =SUM(C23,H23) -> 0 | N23: 0 | O23: 0 | P23: 0 | Q23: 0
B24: Non network general - other | C24: 0 | D24: 0 | E24: 0 | F24: 0 | H24: 0 | I24: 0 | J24: 0 | K24: 0
B25: Metering - Non AMI | C25: 0 | D25: 0 | E25: 0 | F25: 0 | G25: 0 | H25: 0 | I25: 0 | J25: 0 | K25: 0 | L25: 0 | M25: =SUM(C25,H25) -> 0 | N25: 0 | O25: 0 | P25: 0 | Q25: 0
B26: Standard Control - Total Additions | C26: =SUM(C21:C25) -> 6368.845475 | D26: =SUM(D21:D25) -> 5282.853747 | E26: =SUM(E21:E25) -> 1907.408576 | F26: =SUM(F21:F25) -> 338.624041 | G26: 13897.73184 | H26: =SUM(H21:H25) -> 6607.954346 | I26: =SUM(I21:I25) -> 5481.190667 | J26: =SUM(J21:J25) -> 1979.019406 | K26: =SUM(K21:K25) -> 367.9418355 | L26: 14436.10626 | M26: =SUM(M21:M25) -> 12976.79982 | N26: =SUM(N21:N25) -> 10764.04441 | O26: =SUM(O21:O25) -> 3886.427982 | P26: =SUM(P21:P25) -> 706.5658766 | Q26: 28333.8381
B28: Table 2 AMI
B30: $'000 nominal | C30: DIRECT | H30: INDIRECT | M30: TOTAL OVERHEADS
D31: Voltage | I31: Voltage | N31: Voltage
C32: Subtransmission | D32: HV | E32: LV | F32: Other | G32: Subtotal | H32: Subtransmission | I32: HV | J32: LV | K32: Other | L32: Subtotal | M32: Subtransmission | N32: HV | O32: LV | P32: Other | Q32: TOTAL
B33: Accumulation Meters | C33: 0 | D33: 0 | E33: 0 | F33: 0.13003 | G33: =SUM(C33:F33) -> 0.13003 | H33: 0 | I33: 0 | J33: 0 | K33: 2.036624502 | L33: =SUM(H33:K33) -> 2.036624502 | M33: =SUM(C33,H33) -> 0 | N33: =SUM(D33,I33) -> 0 | O33: 0 | P33: 2.166654502 | Q33: =SUM(M33:P33) -> 2.166654502
B34: Manually read interval meters | C34: 0 | D34: 0 | E34: 0 | F34: 0.05606 | G34: 0.05606 | H34: 0 | I34: 0 | J34: 0 | K34: 1.591994396 | L34: 1.591994396 | M34: 0 | N34: 0 | O34: 0 | P34: 1.648054396 | Q34: 1.648054396
B35: Remotely read interval meters & transformers | C35: 0 | D35: 0 | E35: 0 | F35: 8.44363 | G35: 8.44363 | H35: 0 | I35: 0 | J35: 0 | K35: 215.2904489 | L35: 215.2904489 | M35: 0 | N35: 0 | O35: 0 | P35: 223.7340789 | Q35: 223.7340789
B36: AMI communication | C36: 0 | D36: 0 | E36: 0 | F36: 0 | G36: 0 | H36: 0 | I36: 0 | J36: 0 | K36: 0 | L36: 0 | M36: 0 | N36: 0 | O36: 0 | P36: 0 | Q36: 0
B37: Metering data services (IT) | C37: 0 | D37: 0 | E37: 0 | F37: 0 | G37: 0 | H37: 0 | I37: 0 | J37: 0 | K37: 0 | L37: 0 | M37: 0 | N37: 0 | O37: 0 | P37: 0 | Q37: 0
B38: Metering data services (other) | C38: 0 | D38: 0 | E38: 0 | F38: 0 | G38: 0 | H38: 0 | I38: 0 | J38: 0 | K38: 0 | L38: 0 | M38: 0 | N38: 0 | O38: 0 | P38: 0 | Q38: 0
B40: AMI - Total Additions | C40: =SUM(C33:C38) -> 0 | D40: =SUM(D33:D38) -> 0 | E40: =SUM(E33:E38) -> 0 | F40: =SUM(F33:F38) -> 8.62972 | G40: =SUM(C40:F40) -> 8.62972 | H40: =SUM(H33:H38) -> 0 | I40: =SUM(I33:I38) -> 0 | J40: =SUM(J33:J38) -> 0 | K40: =SUM(K33:K38) -> 218.9190678 | L40: =SUM(H40:K40) -> 218.9190678 | M40: =SUM(M33:M38) -> 0 | N40: =SUM(N33:N38) -> 0 | O40: =SUM(O33:O38) -> 0 | P40: =SUM(P33:P38) -> 227.5487878 | Q40: =SUM(M40:P40) -> 227.5487878
B42: Table 3 Public lighting - Alternative Control
B44: $'000 nominal | C44: DIRECT | H44: INDIRECT | M44: TOTAL OVERHEADS
D45: Voltage | I45: Voltage | N45: Voltage
C46: Subtransmission | D46: HV | E46: LV | F46: Other | G46: Subtotal | H46: Subtransmission | I46: HV | J46: LV | K46: Other | L46: Subtotal | M46: Subtransmission | N46: HV | O46: LV | P46: Other | Q46: TOTAL
B47: Public lighting - energy efficient | C47: 0 | D47: 0 | E47: 0 | F47: 24.82077621 | G47: =SUM(C47:F47) -> 24.82077621 | H47: 0 | I47: 0 | J47: 0 | K47: 25.15211602 | L47: =SUM(H47:K47) -> 25.15211602 | M47: =SUM(C47,H47) -> 0 | N47: =SUM(D47,I47) -> 0 | O47: 0 | P47: 49.97289223 | Q47: =SUM(M47:P47) -> 49.97289223
B48: Public lighting - non energy efficient | C48: 0 | D48: 0 | E48: 0 | F48: 107.7541069 | G48: =SUM(C48:F48) -> 107.7541069 | H48: 0 | I48: 0 | J48: 0 | K48: 109.192548 | L48: =SUM(H48:K48) -> 109.192548 | M48: =SUM(C48,H48) -> 0 | N48: 0 | O48: 0 | P48: 216.9466549 | Q48: =SUM(M48:P48) -> 216.9466549
B50: Public Lighting - Total Additions | C50: =SUM(C47:C48) -> 0 | D50: =SUM(D47:D48) -> 0 | E50: =SUM(E47:E48) -> 0 | F50: =SUM(F47:F48) -> 132.5748831 | G50: =SUM(C50:F50) -> 132.5748831 | H50: =SUM(H47:H48) -> 0 | I50: =SUM(I47:I48) -> 0 | J50: =SUM(J47:J48) -> 0 | K50: =SUM(K47:K48) -> 134.344664 | L50: =SUM(H50:K50) -> 134.344664 | M50: =SUM(M47:M48) -> 0 | N50: =SUM(N47:N48) -> 0 | O50: =SUM(O47:O48) -> 0 | P50: =SUM(P47:P48) -> 266.9195471 | Q50: =SUM(M50:P50) -> 266.9195471
B52: Table 4 Alternative control - fee, quoted services
B54: $'000 nominal | C54: DIRECT | H54: INDIRECT | M54: TOTAL OVERHEADS
D55: Voltage | I55: Voltage | N55: Voltage
C56: Subtransmission | D56: HV | E56: LV | F56: Other | G56: Subtotal | H56: Subtransmission | I56: HV | J56: LV | K56: Other | L56: Subtotal | M56: Subtransmission | N56: HV | O56: LV | P56: Other | Q56: TOTAL
B57: Other - fee based services | C57: 0 | D57: 0 | E57: 0 | F57: 0 | G57: =SUM(C57:F57) -> 0 | H57: 0 | I57: 0 | J57: 0 | K57: 0 | L57: =SUM(H57:K57) -> 0 | M57: =SUM(C57,H57) -> 0 | N57: =SUM(D57,I57) -> 0 | O57: 0 | P57: 0 | Q57: =SUM(M57:P57) -> 0
B58: Other - quoted services | C58: 0 | D58: 0 | E58: 0 | F58: 0 | G58: =SUM(C58:F58) -> 0 | H58: 0 | I58: 0 | J58: 0 | K58: 0 | L58: =SUM(H58:K58) -> 0 | M58: =SUM(C58,H58) -> 0 | N58: 0 | O58: 0 | P58: 0 | Q58: =SUM(M58:P58) -> 0
B60: Other Alternative Control - Total Additions | C60: =SUM(C57:C58) -> 0 | D60: =SUM(D57:D58) -> 0 | E60: =SUM(E57:E58) -> 0 | F60: =SUM(F57:F58) -> 0 | G60: =SUM(C60:F60) -> 0 | H60: =SUM(H57:H58) -> 0 | I60: =SUM(I57:I58) -> 0 | J60: =SUM(J57:J58) -> 0 | K60: =SUM(K57:K58) -> 0 | L60: =SUM(H60:K60) -> 0 | M60: =SUM(M57:M58) -> 0 | N60: =SUM(N57:N58) -> 0 | O60: =SUM(O57:O58) -> 0 | P60: =SUM(P57:P58) -> 0 | Q60: =SUM(M60:P60) -> 0
B62: Table 5 Negotiated
B64: $'000 nominal | C64: DIRECT | H64: INDIRECT | M64: TOTAL OVERHEADS
D65: Voltage | I65: Voltage | N65: Voltage
C66: Subtransmission | D66: HV | E66: LV | F66: Other | G66: Subtotal | H66: Subtransmission | I66: HV | J66: LV | K66: Other | L66: Subtotal | M66: Subtransmission | N66: HV | O66: LV | P66: Other | Q66: TOTAL
B67: Negotiated services | C67: 0 | D67: 0 | E67: 0 | F67: 328.21638 | G67: =SUM(C67:F67) -> 328.21638 | H67: 0 | I67: 0 | J67: 0 | K67: 343.9593016 | L67: =SUM(H67:K67) -> 343.9593016 | M67: =SUM(C67,H67) -> 0 | N67: =SUM(D67,I67) -> 0 | O67: =SUM(E67,J67) -> 0 | P67: =SUM(F67,K67) -> 672.1756816 | Q67: =SUM(M67:P67) -> 672.1756816
B69: Negotiated - Total Additions | C69: =C67 -> 0 | D69: =D67 -> 0 | E69: =E67 -> 0 | F69: =F67 -> 328.21638 | G69: =SUM(C69:F69) -> 328.21638 | H69: =H67 -> 0 | I69: =I67 -> 0 | J69: =J67 -> 0 | K69: =K67 -> 343.9593016 | L69: =SUM(H69:K69) -> 343.9593016 | M69: =M67 -> 0 | N69: =N67 -> 0 | O69: =O67 -> 0 | P69: =P67 -> 672.1756816 | Q69: =SUM(M69:P69) -> 672.1756816
B71: Table 6 Unregulated
B73: $'000 nominal | C73: DIRECT | H73: INDIRECT | M73: TOTAL OVERHEADS
D74: Voltage | I74: Voltage | N74: Voltage
C75: Subtransmission | D75: HV | E75: LV | F75: Other | G75: Subtotal | H75: Subtransmission | I75: HV | J75: LV | K75: Other | L75: Subtotal | M75: Subtransmission | N75: HV | O75: LV | P75: Other | Q75: TOTAL
B76: Unregulated | C76: 0 | D76: 0 | E76: 0 | F76: 5.642046915 | G76: =SUM(C76:F76) -> 5.642046915 | H76: 0 | I76: 0 | J76: 0 | K76: 5.717364251 | L76: =SUM(H76:K76) -> 5.717364251 | M76: =SUM(C76,H76) -> 0 | N76: =SUM(D76,I76) -> 0 | O76: =SUM(E76,J76) -> 0 | P76: =SUM(F76,K76) -> 11.35941117 | Q76: =SUM(M76:P76) -> 11.35941117
B78: Unregulated - Total Additions | C78: =C76 -> 0 | D78: =D76 -> 0 | E78: =E76 -> 0 | F78: =F76 -> 5.642046915 | G78: =SUM(C78:F78) -> 5.642046915 | H78: =H76 -> 0 | I78: =I76 -> 0 | J78: =J76 -> 0 | K78: =K76 -> 5.717364251 | L78: =SUM(H78:K78) -> 5.717364251 | M78: =M76 -> 0 | N78: =N76 -> 0 | O78: =O76 -> 0 | P78: =P76 -> 11.35941117 | Q78: =SUM(M78:P78) -> 11.35941117
B80: Table 7 Total all additions
B82: $'000 nominal | C82: DIRECT | H82: INDIRECT | M82: TOTAL OVERHEADS
D83: Voltage | I83: Voltage | N83: Voltage
C84: Subtransmission | D84: HV | E84: LV | F84: Other | G84: Subtotal | H84: Subtransmission | I84: HV | J84: LV | K84: Other | L84: Subtotal | M84: Subtransmission | N84: HV | O84: LV | P84: Other | Q84: TOTAL
B85: Total Additions (Net of Customer Contributions) $'000 nominal | C85: =C26+C40+C50+C60+C69+C78 -> 6368.845475 | D85: =D26+D40+D50+D60+D69+D78 -> 5282.853747 | E85: =E26+E40+E50+E60+E69+E78 -> 1907.408576 | F85: =F26+F40+F50+F60+F69+F78 -> 813.687071 | G85: =SUM(C85:F85) -> 14372.79487 | H85: =H26+H40+H50+H60+H69+H78 -> 6607.954346 | I85: =I26+I40+I50+I60+I69+I78 -> 5481.190667 | J85: =J26+J40+J50+J60+J69+J78 -> 1979.019406 | K85: =K26+K40+K50+K60+K69+K78 -> 1070.882233 | L85: =SUM(H85:K85) -> 15139.04665 | M85: =M26+M40+M50+M60+M69+M78 -> 12976.79982 | N85: =N26+N40+N50+N60+N69+N78 -> 10764.04441 | O85: =O26+O40+O50+O60+O69+O78 -> 3886.427982 | P85: =P26+P40+P50+P60+P69+P78 -> 1884.569304 | Q85: =SUM(M85:P85) -> 29511.84152
B87: Table 8 Customer Contributions
B89: $'000 nominal
B90: Standard control services | C90: 0
B91: AMI | C91: 0
B92: Public lighting | C92: 0
B93: Alternative control fee and quoted services | C93: 0
B94: Negotiated | C94: 0
B95: Unregulated | C95: 0
B96: Total Customer Contributions | C96: =SUM(C90:C95) -> 0

Sheet 9. Capex Tax
B1: =Cover!C22 -> CitiPower Pty
B2: Additions by Tax
B3: =Cover!C26 -> 2013
B5: Table 1 Standard Control Services - excl metering
B7: Asset Class | C7: Tax Depreciation - Rate (Post Ralph 10 May 2006 onwards) | D7: Additions per Taxation Category Exclusive of Related Party Margin | E7: Additions per Taxation Category Inclusive of Related Party Margin
D8: $'000 nominal | E8: $'000 nominal
B9: Demand related capital expenditure | C9: 0.04 | D9: 99581.64688 | E9: 103340.0725
B10: Replacement expenditure (Group 1) | C10: 1 | D10: 18993.52043 | E10: 19747.76823
B11: Replacement expenditure (Group 2) | C11: 0.1 | D11: 4021.470002 | E11: 4127.55568
B12: Replacement expenditure (Group 3) | C12: 0.04 | D12: 4655.662222 | E12: 4788.15135
B13: Environment, safety & legal | C13: 0.1 | D13: 13257.79854 | E13: 13799.05405
B14: SCADA/Network control | C14: 0.1 | D14: 2574.54894 | E14: 2658.54474
B15: Non-network general assets - IT | C15: 0.4 | D15: 4389.06777 | E15: 5104.17477
B16: Non-network general assets - Other | C16: 0.1764705882 | D16: 2530.427149 | E16: 2530.42715
B17: RBPC - Excl Metering - TOTAL ADDITIONS | D17: =SUM(D9:D16) -> 150004.1419 | E17: =SUM(E9:E16) -> 156095.7485 | F17: 0
B19: Capitalised Finance Charges Included in above Total | D19: Nil | E19: Nil
B21: Table 2 Metering
B23: Asset Class | C23: Tax Depreciation - Rate (Post Ralph 10 May 2006) | D23: Additions per Taxation Category Exclusive of Related Party Margin | E23: Additions per Taxation Category Inclusive of Related Party Margin
D24: $'000 nominal | E24: $'000 nominal
B25: Meters and transformers (Group 1) (Unit cost < $1,000) | C25: 0.375 | D25: 24670.57535 | E25: 25220.68732
B26: Meters and transformers (Group 2) (Unit cost => $1,000) | C26: 0.06 | D26: 136.3247894 | E26: 141.3900035
B27: IT | C27: 0.4 | D27: 4228.70362 | E27: 4885.63804
B28: Communications | C28: 0.2142857143 | D28: 1589.934267 | E28: 1773.621232
B29: Other | C29: 0.1764705882 | D29: 0 | E29: 0
B30: Metering - TOTAL ADDITIONS | D30: =SUM(D25:D29) -> 30625.53803 | E30: =SUM(E25:E29) -> 32021.3366 | F30: 0
B32: Capitalised Finance Charges Included in above Total | D32: Nil | E32: Nil

Sheet 10. AMI
B1: =Cover!C22 -> CitiPower Pty
B2: Advanced Metering Infrastructure
B3: =Cover!C26 -> 2013
B5: Table 1 Standard control asset base - metering
C7: Opening value | D7: Actual capital expenditure – as incurred | E7: Actual asset disposals – as incurred | F7: Actual capital contributions – as incurred | G7: Actual net capital expenditure – as incurred
C8: $'000 nominal | D8: $'000 nominal | E8: $'000 nominal | F8: $'000 nominal | G8: $'000 nominal
B9: Accumulation meters | C9: 0 | D9: 19.83778 | E9: 0 | F9: 0 | G9: =D9-E9-F9 -> 19.83778
B10: Manually read interval meters | C10: 0 | D10: 15.20142 | E10: 0 | F10: 0 | G10: 15.20142
B11: Remotely read interval meters and transformers | C11: 0 | D11: 25327.03812 | E11: 0 | F11: 0 | G11: 25327.03812
B12: IT | C12: 0 | D12: 4885.63804 | E12: 0 | F12: 0 | G12: 4885.63804
B13: Communications | C13: 0 | D13: 1773.621232 | E13: 0 | F13: 0 | G13: 1773.621232
B14: Other | C14: 0 | D14: 0 | E14: 0 | F14: 0 | G14: 0
B15: Total | C15: =SUM(C9:C14) -> 0 | D15: =SUM(D9:D14) -> 32021.3366 | E15: =SUM(E9:E14) -> 0 | F15: =SUM(F9:F14) -> 0 | G15: =D15-E15-F15 -> 32021.3366
B17: Table 2a Number of meters installed
C18: Current Year | D18: Prior Year
B19: Accumulation meters
B20: Single phase non off peak | C20: 2 | D20: 10
B21: Single phase off peak | C21: 3 | D21: 3
B22: Multi phase direct connect | C22: 7 | D22: 6
B23: Multi phase current transformers | C23: 0 | D23: 0
B24: Total accumulation meters installed | C24: =SUM(C20:C23) -> 12 | D24: =SUM(D20:D23) -> 19
B25: MRIM meters
B26: Single phase non off peak | C26: 4 | D26: 8
B27: Single phase off peak | C27: 1 | D27: 6
B28: Multi phase direct connect | C28: 0 | D28: 3
B29: Multi phase current transformers | C29: 3 | D29: 55
B30: Total MRIM meters installed | C30: =SUM(C26:C29) -> 8 | D30: =SUM(D26:D29) -> 72
B31: AMI meters
B32: Single phase single element | C32: 39508 | D32: 67040
B33: Single phase single element with contactor | C33: 2381 | D33: 3687
B34: Single phase two element with contactor | C34: 7908 | D34: 12372
B35: Three phase | C35: 18340 | D35: 20578
B36: Three phase direct connected meter | C36: 716 | D36: 473
B37: Three phase direct connected meter with contactor | C37: 0 | D37: 0
B38: Three phase Current transformer connected meter | C38: 1552 | D38: 850
B39: Total AMI meters installed | C39: =SUM(C32:C38) -> 70405 | D39: =SUM(D32:D38) -> 105000
B41: Total meters installed | C41: =SUM(C24,C30,C39) -> 70425 | D41: =SUM(D24,D30,D39) -> 105091
B43: Table 2b Cumulative number of meters
C44: Current Year | D44: Prior Year
B45: Accumulation meters
B46: Single phase non off peak | C46: 6208 | D46: 39945.51488
B47: Single phase off peak | C47: 2878 | D47: 15621.79952
B48: Multi phase direct connect | C48: 5165 | D48: 21786.15378
B49: Multi phase current transformers | C49: 99 | D49: 474.4291823
B50: Total accumulation meters | C50: =SUM(C46:C49) -> 14350 | D50: =SUM(D46:D49) -> 77827.89737
B51: MRIM meters
B52: Single phase non off peak | C52: 312 | D52: 725
B53: Single phase off peak | C53: 199 | D53: 2541
B54: Multi phase direct connect | C54: 186 | D54: 984
B55: Multi phase current transformers | C55: 82 | D55: 1089
B56: Total MRIM meters | C56: =SUM(C52:C55) -> 779 | D56: =SUM(D52:D55) -> 5339
B57: AMI meters
B58: Single phase single element | C58: 218239 | D58: 180723.2119
B59: Single phase single element with contactor | C59: 7647 | D59: 5409.866967
B60: Single phase two element with contactor | C60: 33107 | D60: 25545.8706
B61: Three phase | C61: 55660 | D61: 38136.50711
B62: Three phase direct connected meter | C62: 1425 | D62: 736.2066693
B63: Three phase direct connected meter with contactor | C63: 0 | D63: 0
B64: Three phase Current transformer connected meter | C64: 2292 | D64: 816.3380074
B65: Total AMI meters | C65: =SUM(C58:C64) -> 318370 | D65: =SUM(D58:D64) -> 251368.0012
B67: Total meters | C67: =SUM(C50,C56,C65) -> 333499 | D67: =SUM(D50,D56,D65) -> 334534.8986
B69: Table 3 AMI meter reconciliation
C70: Current Year | D70: Prior Year
B71: Opening number of meters | C71: 251368.0012 | D71: 148356
B72: Installs | C72: =C39 -> 70405 | D72: =D39 -> 105000
B73: Abolishments | C73: 1681 | D73: 1068
B74: AMI meter for AMI meter replacements | C74: 1722 | D74: 920
B75: Closing number of meters | C75: =(C71+C72)-(C73+C74) -> 318370.0012 | D75: =(D71+D72)-(D73+D74) -> 251368
B77: Table 4 Number of meter read quantity - end of year
B79: Number of meters read monthly - accumulation | C79: 1499
B80: Number of meters read quarterly - accumulation | C80: 13707
B81: Number of meters read monthly - interval | C81: 422
B82: Number of meters read quarterly - interval | C82: 1480
B83: Number of meters read remotely | C83: 316530
B84: Total | C84: =SUM(C79:C83) -> 333638

Sheet 11a. Maintenance A
B1: =Cover!C22 -> CitiPower Pty
B2: Maintenance Costs Exclusive of Margin
B3: =Cover!C26 -> 2013
B5: Instructions:
B6: Reported expenditure is to be entered EXCLUSIVE of any profit margins or management fees paid directly or indirectly to related party contractors (which is not an actual incurred cost of the related party contractor) for the reporting period.
B9: Statutory Account code or reference to account code | C9: Description | D9: Audited Statutory Financial Statements | E9: Adjustments | F9: CitiPower | G9: Standard Control Services | L9: AMI | M9: Public Lighting - Alternative Control | O9: Other Alternative Control Services | Q9: Negotiated Services | R9: Unregulated Services | S9: Standard Control Services Prior Year
M10: Energy efficient | N10: Non energy efficient | O10: Fee based service | P10: Quoted service
D11: $'000 nominal | E11: $'000 nominal | F11: $'000 nominal | G11: $'000 nominal | L11: $'000 nominal | M11: $'000 nominal | N11: $'000 nominal | O11: $'000 nominal | P11: $'000 nominal | Q11: $'000 nominal | R11: $'000 nominal | S11: $'000 nominal
C12: Routine | D12: 4607.615362 | E12: -36.81384196 | F12: 4570.80152 | G12: 4570.80152 | L12: 0 | M12: 0 | N12: 0 | O12: 0 | P12: 0 | Q12: 0 | R12: 0 | S12: 2107.415947
C13: Condition based | D13: 17368.02174 | E13: -564.0230309 | F13: 16803.99871 | G13: 16803.99871 | L13: 0 | M13: 0 | N13: 0 | O13: 0 | P13: 0 | Q13: 0 | R13: 0 | S13: 13536.07518
C14: Emergency | D14: 4937.584831 | E14: -222.5222656 | F14: 4715.062566 | G14: 4715.062566 | L14: 0 | M14: 0 | N14: 0 | O14: 0 | P14: 0 | Q14: 0 | R14: 0 | S14: 4324.8644
C15: SCADA/Network Control | D15: 75.14156 | E15: -3.244727278 | F15: 71.89683272 | G15: 71.89683272 | L15: 0 | M15: 0 | N15: 0 | O15: 0 | P15: 0 | Q15: 0 | R15: 0 | S15: 387.4779917
C16: Other - Standard Control Services (a) | D16: 2880.765279 | E16: -117.8681324 | F16: 2762.897147 | G16: 2762.897147 | L16: 0 | M16: 0 | N16: 0 | O16: 0 | P16: 0 | Q16: 0 | R16: 0 | S16: 2263.06884
C17: AMI | D17: 1356.62357 | E17: -47.44777193 | F17: 1309.175798 | G17: 0 | L17: 1309.175798 | M17: 0 | N17: 0 | O17: 0 | P17: 0 | Q17: 0 | R17: 0 | S17: 0
C18: Public Lighting | D18: 3396.640716 | E18: -125.553888 | F18: 3271.086828 | G18: 1.665334537e-16 | L18: 0 | M18: 720.9430819 | N18: 2550.143746 | O18: 0 | P18: 0 | Q18: 0 | R18: 0 | S18: 0
C19: Alternative control -other | D19: 3478.112934 | E19: -86.26640995 | F19: 3391.846524 | G19: 0 | L19: 0 | M19: 0 | N19: 0 | O19: 1832.216674 | P19: 1559.62985 | Q19: 0 | R19: 0 | S19: 0
C20: Negotiated services | D20: 0 | E20: 0 | F20: 0 | G20: 0 | L20: 0 | M20: 0 | N20: 0 | O20: 0 | P20: 0 | Q20: 0 | R20: 0 | S20: 0
C21: Sub Total | D21: =SUM(D12:D20) -> 38100.50599 | E21: =SUM(E12:E20) -> -1203.740068 | F21: =SUM(F12:F20) -> 36896.76592 | G21: =SUM(G12:K20) -> 28924.65677 | L21: =SUM(L12:L20) -> 1309.175798 | M21: 720.9430819 | N21: 2550.143746 | O21: 1832.216674 | P21: 1559.62985 | Q21: 0 | R21: 0 | S21: 22618.90236
C22: Unregulated services | D22: 0 | E22: 0 | F22: 0 | G22: 0 | L22: 0 | M22: 0 | N22: 0 | O22: 0 | P22: 0 | Q22: 0 | R22: 0 | S22: 0
C23: Total | D23: =SUM(D21:D22) -> 38100.50599 | E23: =SUM(E21:E22) -> -1203.740068 | F23: =SUM(F21:F22) -> 36896.76592 | G23: =SUM(G21:K22) -> 28924.65677 | L23: =SUM(L21:L22) -> 1309.175798 | M23: 720.9430819 | N23: 2550.143746 | O23: 1832.216674 | P23: 1559.62985 | Q23: 0 | R23: 0 | S23: 22618.90236
B26: a. Please list any cost item which is more than 5% of the total standard control maintenance cost in the table below:
B28: Statutory Account code or reference to account code | C28: Description | D28: Audited statutory financial statements | E28: Adjustments | F28: CitiPower | G28: Standard Control Services
C30: Underground cable locations | D30: 2880.765279 | E30: -117.8681324 | F30: 2762.897147 | G30: 2762.897147

Sheet 11b. Maintenance B
B1: =Cover!C22 -> CitiPower Pty
B2: Maintenance Costs Inclusive of Margin
B3: =Cover!C26 -> 2013
B5: Instructions:
B6: Reported expenditure is to be entered INCLUSIVE of any profit margins or management fees paid directly or indirectly to related party contractors (which is not an actual incurred cost of the related party contractor) for the reporting period.
B9: Statutory Account code or reference to account code | C9: Description | D9: Audited Statutory Financial Statements | E9: Adjustments | F9: CitiPower | G9: Standard Control Services | L9: AMI | M9: Public Lighting - Alternative Control | O9: Other Alternative Control Services | Q9: Negotiated Services | R9: Unregulated Services | S9: Standard Control Services Prior Year
M10: Energy efficient | N10: Non energy efficient | O10: Fee based service | P10: Quoted service
D11: $'000 nominal | E11: $'000 nominal | F11: $'000 nominal | G11: $'000 nominal | L11: $'000 nominal | M11: $'000 nominal | N11: $'000 nominal | O11: $'000 nominal | P11: $'000 nominal | Q11: $'000 nominal | R11: $'000 nominal | S11: $'000 nominal
C12: Routine | D12: 4607.615362 | E12: 0 | F12: 4607.615362 | G12: 4607.615362 | L12: 0 | M12: 0 | N12: 0 | O12: 0 | P12: 0 | Q12: 0 | R12: 0 | S12: 2120.851313
C13: Condition based | D13: 17368.02174 | E13: 0 | F13: 17368.02174 | G13: 17368.02174 | L13: 0 | M13: 0 | N13: 0 | O13: 0 | P13: 0 | Q13: 0 | R13: 0 | S13: 13998.58656
C14: Emergency | D14: 4937.584831 | E14: 0 | F14: 4937.584831 | G14: 4937.584831 | L14: 0 | M14: 0 | N14: 0 | O14: 0 | P14: 0 | Q14: 0 | R14: 0 | S14: 4519.06746
C15: SCADA/Network Control | D15: 75.14156 | E15: 0 | F15: 75.14156 | G15: 75.14156 | L15: 0 | M15: 0 | N15: 0 | O15: 0 | P15: 0 | Q15: 0 | R15: 0 | S15: 405.57592
C16: Other - Standard Control Services (a) | D16: 2880.765279 | E16: 0 | F16: 2880.765279 | G16: 2880.765279 | L16: 0 | M16: 0 | N16: 0 | O16: 0 | P16: 0 | Q16: 0 | R16: 0 | S16: 2369.053409
C17: AMI | D17: 1356.62357 | E17: 0 | F17: 1356.62357 | G17: 0 | L17: 1356.62357 | M17: 0 | N17: 0 | O17: 0 | P17: 0 | Q17: 0 | R17: 0 | S17: 0
C18: Public Lighting | D18: 3396.640716 | E18: 0 | F18: 3396.640716 | G18: 1.110223025e-15 | L18: 0 | M18: 748.6149878 | N18: 2648.025728 | O18: 0 | P18: 0 | Q18: 0 | R18: 0 | S18: -1.776356839e-15
C19: Alternative control -other | D19: 3478.112934 | E19: 0 | F19: 3478.112934 | G19: 0 | L19: 0 | M19: 0 | N19: 0 | O19: 1856.198399 | P19: 1621.914535 | Q19: 0 | R19: 0 | S19: 0
C20: Negotiated services | D20: 0 | E20: 0 | F20: 0 | G20: 0 | L20: 0 | M20: 0 | N20: 0 | O20: 0 | P20: 0 | Q20: 0 | R20: 0 | S20: 0
C21: Sub Total | D21: =SUM(D12:D20) -> 38100.50599 | E21: =SUM(E12:E20) -> 0 | F21: =SUM(F12:F20) -> 38100.50599 | G21: =SUM(G12:K20) -> 29869.12877 | L21: =SUM(L12:L20) -> 1356.62357 | M21: 748.6149878 | N21: 2648.025728 | O21: 1856.198399 | P21: 1621.914535 | Q21: 0 | R21: 0 | S21: 23413.13466
C22: Unregulated services | D22: 0 | E22: 0 | F22: 0 | G22: 0 | L22: 0 | M22: 0 | N22: 0 | O22: 0 | P22: 0 | Q22: 0 | R22: 0 | S22: 0
C23: Total | D23: =SUM(D21:D22) -> 38100.50599 | E23: =SUM(E21:E22) -> 0 | F23: =SUM(F21:F22) -> 38100.50599 | G23: =SUM(G21:K22) -> 29869.12877 | L23: =SUM(L21:L22) -> 1356.62357 | M23: 748.6149878 | N23: 2648.025728 | O23: 1856.198399 | P23: 1621.914535 | Q23: 0 | R23: 0 | S23: 23413.13466
B26: a. Please list any cost item which is more than 5% of the total standard control maintenance cost in the table below:
B28: Statutory Account code or reference to account code | C28: Description | D28: Audited statutory financial statements | E28: Adjustments | F28: CitiPower | G28: Standard Control Services
C30: Underground cable locations | D30: 2880.765279 | E30: 0 | F30: 2880.765279 | G30: 2880.765279

Sheet 12a. Operating A
B1: =Cover!C22 -> CitiPower Pty
B2: Operating Expenditures Exclusive of Margin
B3: =Cover!C26 -> 2013
B5: Instructions:
B6: Reported expenditure is to be entered EXCLUSIVE of any profit margins or management fees paid directly or indirectly to related party contractors (which is not an actual incurred cost of the related party contractor) for the reporting period.
B9: Table 1 Operating Expenditure
B11: Account code or reference to account code | C11: Description | D11: Audited Statutory Financial Statements | E11: Adjustments | F11: CitiPower | G11: Standard Control Services | H11: AMI | I11: Public Lighting - Alternative Control | K11: Other Alternative Control Services | M11: Negotiated Services | N11: Unregulated Services | O11: Standard Control Services Prior Year
I12: Energy efficient | J12: Non-energy efficient | K12: Fee based service | L12: Quoted service
C13: Designated Pricing Proposal Charges: | D13: $'000 nominal | E13: $'000 nominal | F13: $'000 nominal | G13: $'000 nominal | H13: $'000 nominal | I13: $'000 nominal | J13: $'000 nominal | K13: $'000 nominal | L13: $'000 nominal | M13: $'000 nominal | N13: $'000 nominal | O13: $'000 nominal
C14: Transmission Connection Fee | D14: 12586.05776 | E14: -12586.05776 | F14: 0 | G14: 0 | H14: 0 | I14: 0 | J14: 0 | K14: 0 | L14: 0 | M14: 0 | N14: 0 | O14: 0 | Q14: =F14-SUM(G14:N14) -> 0
C15: Avoided TUoS charges/transmission costs | D15: 64406.19069 | E15: -64406.19069 | F15: 0 | G15: 0 | H15: 0 | I15: 0 | J15: 0 | K15: 0 | L15: 0 | M15: 0 | N15: 0 | O15: 0 | Q15: =F15-SUM(G15:N15) -> 0
C16: AEMO shared TUOS Charges | D16: 0 | E16: 0 | F16: 0 | G16: 0 | H16: 0 | I16: 0 | J16: 0 | K16: 0 | L16: 0 | M16: 0 | N16: 0 | O16: 0 | Q16: 0
C17: Net Cross Boundary Network Charges | D17: 3264.13346 | E17: -3264.13346 | F17: 0 | G17: 0 | H17: 0 | I17: 0 | J17: 0 | K17: 0 | L17: 0 | M17: 0 | N17: 0 | O17: 0 | Q17: 0
C18: Jurisdictional Scheme Amounts: | Q18: 0
C19: Premium Feed In Tariff | D19: 1985.09133 | E19: -1985.09133 | F19: 0 | G19: 0 | H19: 0 | I19: 0 | J19: 0 | K19: 0 | L19: 0 | M19: 0 | N19: 0 | O19: 0 | Q19: 0
C20: Transitional Feed In Tariff | D20: 0 | E20: 0 | F20: 0 | G20: 0 | H20: 0 | I20: 0 | J20: 0 | K20: 0 | L20: 0 | M20: 0 | N20: 0 | O20: 0 | Q20: 0
C21: <insert future jurisdictional scheme payment> | D21: 0 | E21: 0 | F21: 0 | G21: 0 | H21: 0 | I21: 0 | J21: 0 | K21: 0 | L21: 0 | M21: 0 | N21: 0 | O21: 0 | Q21: 0
C22: Sub Total | D22: =SUM(D14:D21) -> 82241.47324 | E22: -82241.47324 | F22: 0 | G22: 0 | H22: 0 | I22: 0 | J22: 0 | K22: 0 | L22: 0 | M22: 0 | N22: 0 | O22: 0 | Q22: 0
C23: Operating Costs | Q23: 0
C24: Network Operating Costs | D24: 11395.14484 | E24: 2812.813816 | F24: 14207.95866 | G24: 14207.95866 | H24: 0 | I24: 0 | J24: 0 | K24: 0 | L24: 0 | M24: 0 | N24: 0 | O24: 11264.47869 | Q24: 0
C25: Billing & Revenue Collection | D25: 2750.763936 | E25: -732.3819248 | F25: 2018.382011 | G25: 2018.382011 | H25: 0 | I25: 0 | J25: 0 | K25: 0 | L25: 0 | M25: 0 | N25: 0 | O25: 1194.717158 | Q25: 0
C26: Advertising/Marketing | D26: 5.411777721 | E26: 3.251972131 | F26: 8.663749852 | G26: 8.663749852 | H26: 0 | I26: 0 | J26: 0 | K26: 0 | L26: 0 | M26: 0 | N26: 0 | O26: 110.5575475 | Q26: 0
C27: Customer Service | D27: 2769.789137 | E27: -315.4347013 | F27: 2454.354436 | G27: 2454.354436 | H27: 0 | I27: 0 | J27: 0 | K27: 0 | L27: 0 | M27: 0 | N27: 0 | O27: 1541.395431 | Q27: 0
C28: Regulatory | D28: 0 | E28: 0 | F28: 0 | G28: 0 | H28: 0 | I28: 0 | J28: 0 | K28: 0 | L28: 0 | M28: 0 | N28: 0 | O28: 0 | Q28: 0
C29: Regulatory Reset | D29: 281.07824 | E29: 0 | F29: 281.07824 | G29: 281.07824 | H29: 0 | I29: 0 | J29: 0 | K29: 0 | L29: 0 | M29: 0 | N29: 0 | O29: 0 | Q29: 0
C30: IT | D30: 0 | E30: 0 | F30: 0 | G30: 0 | H30: 0 | I30: 0 | J30: 0 | K30: 0 | L30: 0 | M30: 0 | N30: 0 | O30: 0 | Q30: 0
C31: Licence fee | D31: 24.96086 | E31: 0 | F31: 24.96086 | G31: 24.96086 | H31: 0 | I31: 0 | J31: 0 | K31: 0 | L31: 0 | M31: 0 | N31: 0 | O31: 17.977 | Q31: 0
C32: GSL payments | D32: 13.89 | E32: 0 | F32: 13.89 | G32: 13.89 | H32: 0 | I32: 0 | J32: 0 | K32: 0 | L32: 0 | M32: 0 | N32: 0 | O32: 7.993215641 | Q32: 0
C33: Non-network alternatives costs | D33: 0 | E33: 0 | F33: 0 | G33: 0 | H33: 0 | I33: 0 | J33: 0 | K33: 0 | L33: 0 | M33: 0 | N33: 0 | O33: 0 | Q33: 0
C34: Debt raising costs | D34: 0 | E34: 0 | F34: 0 | G34: 0 | H34: 0 | I34: 0 | J34: 0 | K34: 0 | L34: 0 | M34: 0 | N34: 0 | O34: 0 | Q34: 0
C35: Other - Standard Control Services (a,b) | D35: 28169.56221 | E35: -24098.83883 | F35: 4070.723375 | G35: 4070.723375 | H35: 0 | I35: 0 | J35: 0 | K35: 0 | L35: 0 | M35: 0 | N35: 0 | O35: 1698.613477 | Q35: 0
C36: AMI | D36: 9264.561942 | E36: -1125.7416 | F36: 8138.820342 | G36: 0 | H36: 8138.820342 | I36: 0 | J36: 0 | K36: 0 | L36: 0 | M36: 0 | N36: 0 | O36: 0 | Q36: 0
C37: Public Lighting | D37: 92.87126414 | E37: -13.24768617 | F37: 79.62357797 | G37: 0 | H37: 0 | I37: 17.5489289 | J37: 62.07464907 | K37: 0 | L37: 0 | M37: 0 | N37: 0 | O37: 0 | Q37: 0
C38: Alternative control -other | D38: 6048.980029 | E38: -211.9531158 | F38: 5837.026914 | G38: 0 | H38: 0 | I38: 0 | J38: 0 | K38: 3556.565646 | L38: 2280.461267 | M38: 0 | N38: 0 | O38: 0 | Q38: 0
C39: Negotiated services | D39: 0 | E39: 0 | F39: 0 | G39: 0 | H39: 0 | I39: 0 | J39: 0 | K39: 0 | L39: 0 | M39: 0 | N39: 0 | O39: 0 | Q39: 0
C40: Sub Total | D40: =SUM(D24:D39) -> 60817.01424 | E40: -23681.53207 | F40: 37135.48217 | G40: 23080.01133 | H40: 8138.820342 | I40: 17.5489289 | J40: 62.07464907 | K40: 3556.565646 | L40: 2280.461267 | M40: 0 | N40: 0 | O40: 15835.73252 | Q40: 0
C41: Unregulated services | D41: 0 | E41: 0 | F41: 0 | G41: 0 | H41: 0 | I41: 0 | J41: 0 | K41: 0 | L41: 0 | M41: 0 | N41: 0 | O41: 0 | Q41: 0
C42: Total | D42: =SUM(D22, D40:D41) -> 143058.4875 | E42: -105923.0053 | F42: 37135.48217 | G42: 23080.01133 | H42: 8138.820342 | I42: 17.5489289 | J42: 62.07464907 | K42: 3556.565646 | L42: 2280.461267 | M42: 0 | N42: 0 | O42: 15835.73252 | Q42: 0
B45: a. Please list any cost item which is more than 5% of standard control operating costs in the Table 2:
B48: Table 2 Operating Expenditure - Other Costs
B50: Statutory Account code or reference to account code | C50: Description | D50: Audited Statutory Financial Statements | E50: Adjustments | F50: CitiPower | G50: Standard Control Services
B60: Table 3 Operating Expenditure - Non-Recurrent Network Operating Costs
B62: Statutory Account code or reference to account code | C62: Description | D62: Audited Statutory Financial Statements | E62: Adjustments | F62: CitiPower | G62: Standard Control Services
B70: b. Please identify any non recurrent cost which is more than 5% of the total standard control operating costs in the Table 3:

Sheet 12b. Operating B
B1: =Cover!C22 -> CitiPower Pty
B2: ACTIVITIES B: Operating Expenditures Inclusive of Margin
B3: =Cover!C26 -> 2013
B5: Instructions:
B6: Reported expenditure is to be entered INCLUSIVE of any profit margins or management fees paid directly or indirectly to related party contractors (which is not an actual incurred cost of the related party contractor) for the reporting period.
B9: Table 1 Operating Expenditure
B11: Account code or reference to account code | C11: Description | D11: Audited Statutory Financial Statements | E11: Adjustments | F11: CitiPower | G11: Standard Control Services | H11: AMI | I11: Public Lighting - Alternative Control | K11: Other Alternative Control Services | M11: Negotiated Services | N11: Unregulated Services | O11: Standard Control Services Prior Year
I12: Energy efficient | J12: Non efficient | K12: Fee based service | L12: Quoted service
C13: Designated Pricing Proposal Charges: | D13: $'000 nominal | E13: $'000 nominal | F13: $'000 nominal | G13: $'000 nominal | H13: $'000 nominal | I13: $'000 nominal | J13: $'000 nominal | K13: $'000 nominal | L13: $'000 nominal | M13: $'000 nominal | N13: $'000 nominal | O13: $'000 nominal
C14: Transmission Connection Fee | D14: 12586.05776 | E14: -12586.05776 | F14: 0 | G14: 0 | H14: 0 | I14: 0 | J14: 0 | K14: 0 | L14: 0 | M14: 0 | N14: 0 | O14: 0 | Q14: =F14-SUM(G14:N14) -> 0
C15: Avoided TUoS charges/transmission costs | D15: 64406.19069 | E15: -64406.19069 | F15: 0 | G15: 0 | H15: 0 | I15: 0 | J15: 0 | K15: 0 | L15: 0 | M15: 0 | N15: 0 | O15: 0 | Q15: =F15-SUM(G15:N15) -> 0
C16: AEMO shared TUOS Charges | D16: 0 | E16: 0 | F16: 0 | G16: 0 | H16: 0 | I16: 0 | J16: 0 | K16: 0 | L16: 0 | M16: 0 | N16: 0 | O16: 0 | Q16: 0
C17: Net Cross Boundary Network Charges | D17: 3264.13346 | E17: -3264.13346 | F17: 0 | G17: 0 | H17: 0 | I17: 0 | J17: 0 | K17: 0 | L17: 0 | M17: 0 | N17: 0 | O17: 0 | Q17: 0
C18: Jurisdictional Scheme Amounts: | Q18: 0
C19: Premium Feed In Tariff | D19: 1985.09133 | E19: -1985.09133 | F19: 0 | G19: 0 | H19: 0 | I19: 0 | J19: 0 | K19: 0 | L19: 0 | M19: 0 | N19: 0 | O19: 0 | Q19: 0
C20: Transitional Feed In Tariff | D20: 0 | E20: 0 | F20: 0 | G20: 0 | H20: 0 | I20: 0 | J20: 0 | K20: 0 | L20: 0 | M20: 0 | N20: 0 | O20: 0 | Q20: 0
C21: <insert future jurisdictional scheme payment> | Q21: 0
C22: Sub Total | D22: =SUM(D14:D21) -> 82241.47324 | E22: -82241.47324 | F22: 0 | G22: 0 | H22: 0 | I22: 0 | J22: 0 | K22: 0 | L22: 0 | M22: 0 | N22: 0 | O22: 0 | Q22: 0
C23: Operating Costs | Q23: 0
C24: Network Operating Costs | D24: 11395.14484 | E24: 2905.114814 | F24: 14300.25966 | G24: 14300.25966 | H24: 0 | I24: 0 | J24: 0 | K24: 0 | L24: 0 | M24: 0 | N24: 0 | O24: 11359.4526 | Q24: 0
C25: Billing & Revenue Collection | D25: 2750.763936 | E25: 0 | F25: 2750.763936 | G25: 2750.763936 | H25: 0 | I25: 0 | J25: 0 | K25: 0 | L25: 0 | M25: 0 | N25: 0 | O25: 2225.849913 | Q25: 0
C26: Advertising/Marketing | D26: 5.411777721 | E26: 0 | F26: 5.411777721 | G26: 5.411777721 | H26: 0 | I26: 0 | J26: 0 | K26: 0 | L26: 0 | M26: 0 | N26: 0 | O26: 50.66002668 | Q26: 0
C27: Customer Service | D27: 2769.789137 | E27: 0 | F27: 2769.789137 | G27: 2769.789137 | H27: 0 | I27: 0 | J27: 0 | K27: 0 | L27: 0 | M27: 0 | N27: 0 | O27: 2342.926758 | Q27: 0
C28: Regulatory | D28: 0 | E28: 0 | F28: 0 | G28: 0 | H28: 0 | I28: 0 | J28: 0 | K28: 0 | L28: 0 | M28: 0 | N28: 0 | O28: 0 | Q28: 0
C29: Regulatory Reset | D29: 281.07824 | E29: 0 | F29: 281.07824 | G29: 281.07824 | H29: 0 | I29: 0 | J29: 0 | K29: 0 | L29: 0 | M29: 0 | N29: 0 | O29: 0 | Q29: 0
C30: IT | D30: 0 | E30: 0 | F30: 0 | G30: 0 | H30: 0 | I30: 0 | J30: 0 | K30: 0 | L30: 0 | M30: 0 | N30: 0 | O30: 0 | Q30: 0
C31: Licence fee | D31: 24.96086 | E31: 0 | F31: 24.96086 | G31: 24.96086 | H31: 0 | I31: 0 | J31: 0 | K31: 0 | L31: 0 | M31: 0 | N31: 0 | O31: 17.977 | Q31: 0
C32: GSL payments | D32: 13.89 | E32: 0 | F32: 13.89 | G32: 13.89 | H32: 0 | I32: 0 | J32: 0 | K32: 0 | L32: 0 | M32: 0 | N32: 0 | O32: 7.993215641 | Q32: 0
C33: Non-network alternatives costs | D33: 0 | E33: 0 | F33: 0 | G33: 0 | H33: 0 | I33: 0 | J33: 0 | K33: 0 | L33: 0 | M33: 0 | N33: 0 | O33: 0 | Q33: 0
C34: Debt raising costs | D34: 0 | E34: 0 | F34: 0 | G34: 0 | H34: 0 | I34: 0 | J34: 0 | K34: 0 | L34: 0 | M34: 0 | N34: 0 | O34: 0 | Q34: 0
C35: Other - Standard Control Services (a,b) | D35: 28169.56221 | E35: -23647.25194 | F35: 4522.310263 | G35: 4522.310263 | H35: 0 | I35: 0 | J35: 0 | K35: 0 | L35: 0 | M35: 0 | N35: 0 | O35: 2422.417124 | Q35: 0
C36: AMI | D36: 9264.561942 | E36: 0 | F36: 9264.561942 | G36: 0 | H36: 9264.561942 | I36: 0 | J36: 0 | K36: 0 | L36: 0 | M36: 0 | N36: 0 | O36: 0 | Q36: 0
C37: Public Lighting | D37: 92.87126414 | E37: 0 | F37: 92.87126414 | G37: 0 | H37: 0 | I37: 20.46870101 | J37: 72.40256313 | K37: 0 | L37: 0 | M37: 0 | N37: 0 | O37: 0 | Q37: 0
C38: Alternative control -other | D38: 6048.980029 | E38: 168.5192836 | F38: 6217.499313 | G38: 0 | H38: 0 | I38: 0 | J38: 0 | K38: 3884.499125 | L38: 2333.000188 | M38: 0 | N38: 0 | O38: 0 | Q38: 0
C39: Negotiated services | D39: 0 | E39: 0 | F39: 0 | G39: 0 | H39: 0 | I39: 0 | J39: 0 | K39: 0 | L39: 0 | M39: 0 | N39: 0 | O39: 0 | Q39: 0
C40: Sub Total | D40: =SUM(D24:D39) -> 60817.01424 | E40: -20573.61785 | F40: 40243.39639 | G40: 24668.46387 | H40: 9264.561942 | I40: 20.46870101 | J40: 72.40256313 | K40: 3884.499125 | L40: 2333.000188 | M40: 0 | N40: 0 | O40: 18427.27664 | Q40: 0
C41: Unregulated services | D41: 0 | E41: 0 | F41: 0 | G41: 0 | H41: 0 | I41: 0 | J41: 0 | K41: 0 | L41: 0 | M41: 0 | N41: 0 | O41: 0 | Q41: 0
C42: Total | D42: =SUM(D22, D40:D41) -> 143058.4875 | E42: -102815.0911 | F42: 40243.39639 | G42: 24668.46387 | H42: 9264.561942 | I42: 20.46870101 | J42: 72.40256313 | K42: 3884.499125 | L42: 2333.000188 | M42: 0 | N42: 0 | O42: 18427.27664 | Q42: 0
B45: a. Please list any cost item which is more than 5% of standard control operating costs in the Table 2:
B48: Table 2 Operating Expenditure - Other Costs
B50: Statutory Account code or reference to account code | C50: Description | D50: Audited Statutory Financial Statements | E50: Adjustments | F50: CitiPower | G50: Standard Control Services
B60: Table 3 Operating Expenditure - Non-Recurrent Network Operating Costs
B62: Statutory Account code or reference to account code | C62: Description | D62: Audited Statutory Financial Statements | E62: Adjustments | F62: CitiPower | G62: Standard Control Services
B71: b. Please identify any non recurrent cost which is more than 5% of the total standard control operating costs in the Table 3:

Sheet 13. Labour
B1: =Cover!C22 -> CitiPower Pty
B2: Labour and Non-Labour Costs
B3: =Cover!C26 -> 2013
B5: Account code or reference to account code | C5: Description | D5: Labour Costs | E5: Non-Labour Costs | F5: Total
D7: $'000 nominal | E7: $'000 nominal | F7: $'000 nominal
C8: Operating Expenditure | D8: 13264.51707 | E8: 26553.46232 | F8: =SUM(D8:E8) -> 39817.97939
C9: Maintenance Expenditure | D9: 9890.23931 | E9: 28210.26668 | F9: =SUM(D9:E9) -> 38100.50599
C10: Capital Expenditure | D10: 19335.93205 | E10: 172185.3782 | F10: =SUM(D10:E10) -> 191521.3102
C11: Total | D11: =SUM(D8:D10) -> 42490.68843 | E11: =SUM(E8:E10) -> 226949.1072 | F11: =SUM(F8:F10) -> 269439.7956

Sheet 15. Total Overheads
B1: =Cover!C22 -> CitiPower Pty
B2: Total Overheads
B3: =Cover!C26 -> 2013
B5: Statutory Account code or reference to account code | D5: Gross Capex | E5: Opex | F5: Total
C6: Direct overheads | D6: $'000 nominal | E6: $'000 nominal | F6: $'000 nominal
C7: Standard Control | D7: 13897.73184 | E7: 2632.303842 | F7: =SUM(D7:E7) -> 16530.03568
C8: AMI | D8: 8.62972 | E8: 5.81404 | F8: =SUM(D8:E8) -> 14.44376
C9: Public lighting - energy efficient | D9: 24.82077621 | E9: 70.69811951 | F9: 95.51889572
C10: Public lighting - energy non efficient | D10: 107.7541069 | E10: 250.0757298 | F10: 357.8298367
C11: Alternative control - fee based | D11: 0 | E11: 14.02833897 | F11: 14.02833897
C12: Alternative control - quoted | D12: 0 | E12: 257.2778 | F12: 257.2778
C13: Negotiated services | D13: 328.21638 | E13: 0 | F13: 328.21638
C14: Unregulated | D14: 5.642046915 | E14: 0 | F14: 5.642046915
C15: Subtotal | D15: =SUM(D7:D14) -> 14372.79487 | E15: =SUM(E7:E14) -> 3230.19787 | F15: =SUM(F7:F14) -> 17602.99274
C16: Indirect overheads | D16: $'000 nominal | E16: $'000 nominal | F16: $'000 nominal
C17: Standard Control | D17: 15557.86101 | E17: 3021.102741 | F17: =SUM(D17:E17) -> 18578.96375
C18: AMI | D18: 235.93013 | E18: 178.036 | F18: =SUM(D18:E18) -> 413.96613
C19: Public lighting - energy efficient | D19: 27.10655614 | E19: 78.89071579 | F19: 105.9972719
C20: Public lighting - energy non efficient | D20: 117.677333 | E20: 279.0548527 | F20: 396.7321857
C21: Alternative control - fee based | D21: 0 | E21: 433.2908903 | F21: 433.2908903
C22: Alternative control - quoted | D22: 0 | E22: 372.0727313 | F22: 372.0727313
C23: Negotiated services | D23: 370.68659 | E23: 0 | F23: 370.68659
C24: Unregulated | D24: 6.16163089 | E24: 0 | F24: 6.16163089
C25: Subtotal | D25: =SUM(D17:D24) -> 16315.42325 | E25: =SUM(E17:E24) -> 4362.447931 | F25: =SUM(F17:F24) -> 20677.87118
C26: Total overheads | D26: $'000 nominal | E26: $'000 nominal | F26: $'000 nominal
C27: Standard Control | D27: =D7+D17 -> 29455.59285 | E27: 5653.406583 | F27: 35108.99943
C28: AMI | D28: 244.55985 | E28: 183.85004 | F28: 428.40989
C29: Public lighting - energy efficient | D29: 51.92733235 | E29: 149.5888353 | F29: 201.5161677
C30: Public lighting - energy non efficient | D30: 225.4314398 | E30: 529.1305825 | F30: 754.5620223
C31: Alternative control - fee based | D31: 0 | E31: 447.3192292 | F31: 447.3192292
C32: Alternative control - quoted | D32: 0 | E32: 629.3505313 | F32: 629.3505313
C33: Negotiated services | D33: =D13+D23 -> 698.90297 | E33: 0 | F33: 698.90297
C34: Unregulated | D34: 11.80367781 | E34: 0 | F34: 11.80367781
C35: Total Overheads | D35: =SUM(D27:D34) -> 30688.21812 | E35: =SUM(E27:E34) -> 7592.645801 | F35: =SUM(F27:F34) -> 38280.86392
B37: Note: (a) Provide direct overheads where applicable
B38: (b) The allocation of overheads is to be consistent with the approved Cost Allocation Method

Sheet 16. Provisions
B1: =Cover!C22 -> CitiPower Pty
B2: Provisions
B3: =Cover!C26 -> 2013
B5: Instructions
B6: Fill out separate tables for each provision In addition it is mandatory to produce for each provision that has been allocated to the Regulated Business Segments a supporting - written explanation of the need for the provision - written explanation of the movements in the provision.
B10: Account code or reference to account code | C10: Provision for Uninsured Loss | D10: Audited Statutory Financial Statements | E10: Adjustments | F10: CitiPower | G10: Standard Control Services | H10: AMI | I10: Public Lighting | K10: Other Alternative Control Services | M10: Negotiated Services | N10: Unregulated Services
I11: Energy efficient | J11: Non efficient | K11: Fee based service | L11: Quoted service
D12: $'000 nominal | E12: $'000 nominal | F12: $'000 nominal | G12: $'000 nominal | H12: $'000 nominal | I12: $'000 nominal | J12: $'000 nominal | K12: $'000 nominal | L12: $'000 nominal | M12: $'000 nominal | N12: $'000 nominal
C13: Opening Balance | D13: -206.95021 | E13: 0 | F13: -206.95021 | G13: -206.95021 | H13: 0 | I13: 0 | J13: 0 | K13: 0 | L13: 0 | M13: 0 | N13: 0
C14: Liabilities paid from provision charged to opex | D14: 0 | E14: 0 | F14: 0 | G14: 0 | H14: 0 | I14: 0 | J14: 0 | K14: 0 | L14: 0 | M14: 0 | N14: 0
C15: Liabilities paid from provision charged to capex | D15: 0 | E15: 0 | F15: 0 | G15: 0 | H15: 0 | I15: 0 | J15: 0 | K15: 0 | L15: 0 | M15: 0 | N15: 0
C16: Increase /decrease in provision charged to opex | D16: 3.12145 | E16: 0 | F16: 3.12145 | G16: 3.12145 | H16: 0 | I16: 0 | J16: 0 | K16: 0 | L16: 0 | M16: 0 | N16: 0
C17: Increase/decrease in provision charged to capex | D17: 0 | E17: 0 | F17: 0 | G17: 0 | H17: 0 | I17: 0 | J17: 0 | K17: 0 | L17: 0 | M17: 0 | N17: 0
C18: Other adjustments (a) | D18: 0 | E18: 0 | F18: 0 | G18: 0 | H18: 0 | I18: 0 | J18: 0 | K18: 0 | L18: 0 | M18: 0 | N18: 0
D19: 0 | E19: 0 | F19: 0 | G19: 0 | H19: 0 | I19: 0 | J19: 0 | K19: 0 | L19: 0 | M19: 0 | N19: 0
C20: Closing Balance | D20: =SUM(D13:D19) -> -203.82876 | E20: =SUM(E13:E19) -> 0 | F20: -203.82876 | G20: -203.82876 | H20: 0 | I20: 0 | J20: 0 | K20: 0 | L20: 0 | M20: 0 | N20: 0
B22: a: Please explain other adjustments in the table below:
B24: Account code or reference to account code | C24: Provision for Uninsured Loss | D24: Audited Statutory Financial Statements | E24: Adjustments | F24: CitiPower | G24: Standard Control Services | H24: AMI | I24: Public Lighting | K24: Other Alternative Control Services | M24: Negotiated Services | N24: Unregulated Services
I25: Energy efficient | J25: Non efficient | K25: Fee based service | L25: Quoted service
D26: $'000 nominal | E26: $'000 nominal | F26: $'000 nominal | G26: $'000 nominal | H26: $'000 nominal | I26: $'000 nominal | J26: $'000 nominal | K26: $'000 nominal | L26: $'000 nominal | M26: $'000 nominal | N26: $'000 nominal
C31: Explanation of the need for the provision
C33: Provision for claims relating to damages sustained from Network assets.
C35: Explanation of the movements in the provision
C37: Decrease in provision is due to a revised evaluation of the adequacy of the provision in relation to claims that are likely to be made.
B43: Account code or reference to account code | C43: Provision for Transmission Fees | D43: Audited Statutory Financial Statements | E43: Adjustments | F43: CitiPower | G43: Standard Control Services | H43: AMI | I43: Public Lighting | K43: Other Alternative Control Services | M43: Negotiated Services | N43: Unregulated Services
I44: Energy efficient | J44: Non efficient | K44: Fee based service | L44: Quoted service
D45: $'000 nominal | E45: $'000 nominal | F45: $'000 nominal | G45: $'000 nominal | H45: $'000 nominal | I45: $'000 nominal | J45: $'000 nominal | K45: $'000 nominal | L45: $'000 nominal | M45: $'000 nominal | N45: $'000 nominal
C46: Opening Balance | D46: 0 | E46: 0 | F46: 0 | G46: 0 | H46: 0 | I46: 0 | J46: 0 | K46: 0 | L46: 0 | M46: 0 | N46: 0
C47: Liabilities paid from provision charged to opex | D47: 0 | E47: 0 | F47: 0 | G47: 0 | H47: 0 | I47: 0 | J47: 0 | K47: 0 | L47: 0 | M47: 0 | N47: 0
C48: Liabilities paid from provision charged to capex | D48: 0 | E48: 0 | F48: 0 | G48: 0 | H48: 0 | I48: 0 | J48: 0 | K48: 0 | L48: 0 | M48: 0 | N48: 0
C49: Increase /decrease in provision charged to opex | D49: 0 | E49: 0 | F49: 0 | G49: 0 | H49: 0 | I49: 0 | J49: 0 | K49: 0 | L49: 0 | M49: 0 | N49: 0
C50: Increase/decrease in provision charged to capex | D50: 0 | E50: 0 | F50: 0 | G50: 0 | H50: 0 | I50: 0 | J50: 0 | K50: 0 | L50: 0 | M50: 0 | N50: 0
C51: Other adjustments (a) | D51: 0 | E51: 0 | F51: 0 | G51: 0 | H51: 0 | I51: 0 | J51: 0 | K51: 0 | L51: 0 | M51: 0 | N51: 0
C53: Closing Balance | D53: =SUM(D46:D52) -> 0 | E53: 0 | F53: 0 | G53: 0 | H53: 0 | I53: 0 | J53: 0 | K53: 0 | L53: 0 | M53: 0 | N53: 0
B55: a: Please explain other adjustments in the table below:
B57: Account code or reference to account code | C57: Provision for Transmission Fees | D57: Audited Statutory Financial Statements | E57: Adjustments | F57: CitiPower | G57: Standard Control Services | H57: AMI | I57: Public Lighting | K57: Other Alternative Control Services | M57: Negotiated Services | N57: Unregulated Services
I58: Energy efficient | J58: Non efficient | K58: Fee based service | L58: Quoted service
D59: $'000 nominal | E59: $'000 nominal | F59: $'000 nominal | G59: $'000 nominal | H59: $'000 nominal | I59: $'000 nominal | J59: $'000 nominal | K59: $'000 nominal | L59: $'000 nominal | M59: $'000 nominal | N59: $'000 nominal
C64: Explanation of the need for the provision
C66: Represents over/under collection of transmission charges included in network tariffs that will be adjusted for in future years.
C68: Explanation of the movements in the provision
C70: The increase in the provision charged to profit represents the over collection of transmission charges in network tariffs.
B76: Account code or reference to account code | C76: Provision for Environment | D76: Audited Statutory Financial Statements | E76: Adjustments | F76: CitiPower | G76: Standard Control Services | H76: AMI | I76: Public Lighting | K76: Other Alternative Control Services | M76: Negotiated Services | N76: Unregulated Services
I77: Energy efficient | J77: Non efficient | K77: Fee based service | L77: Quoted service
D78: $'000 nominal | E78: $'000 nominal | F78: $'000 nominal | G78: $'000 nominal | H78: $'000 nominal | I78: $'000 nominal | J78: $'000 nominal | K78: $'000 nominal | L78: $'000 nominal | M78: $'000 nominal | N78: $'000 nominal
C79: Opening Balance | D79: -900 | E79: 0 | F79: -900 | G79: -900 | H79: 0 | I79: 0 | J79: 0 | K79: 0 | L79: 0 | M79: 0 | N79: 0
C80: Liabilities paid from provision charged to opex | D80: 0 | E80: 0 | F80: 0 | G80: 0 | H80: 0 | I80: 0 | J80: 0 | K80: 0 | L80: 0 | M80: 0 | N80: 0
C81: Liabilities paid from provision charged to capex | D81: 0 | E81: 0 | F81: 0 | G81: 0 | H81: 0 | I81: 0 | J81: 0 | K81: 0 | L81: 0 | M81: 0 | N81: 0
C82: Increase /decrease in provision charged to opex | D82: 0 | E82: 0 | F82: 0 | G82: 0 | H82: 0 | I82: 0 | J82: 0 | K82: 0 | L82: 0 | M82: 0 | N82: 0
C83: Increase/decrease in provision charged to capex | D83: 0 | E83: 0 | F83: 0 | G83: 0 | H83: 0 | I83: 0 | J83: 0 | K83: 0 | L83: 0 | M83: 0 | N83: 0
C84: Other adjustments (a) | D84: 0 | E84: 0 | F84: 0 | G84: 0 | H84: 0 | I84: 0 | J84: 0 | K84: 0 | L84: 0 | M84: 0 | N84: 0
C86: Closing Balance | D86: =SUM(D79:D85) -> -900 | E86: 0 | F86: -900 | G86: -900 | H86: 0 | I86: 0 | J86: 0 | K86: 0 | L86: 0 | M86: 0 | N86: 0
B88: a: Please explain other adjustments in the table below:
B90: Account code or reference to account code | C90: Provision for Environment | D90: Audited Statutory Financial Statements | E90: Adjustments | F90: CitiPower | G90: Standard Control Services | H90: AMI | I90: Public Lighting | K90: Other Alternative Control Services | M90: Negotiated Services | N90: Unregulated Services
I91: Energy efficient | J91: Non efficient | K91: Fee based service | L91: Quoted service
D92: $'000 nominal | E92: $'000 nominal | F92: $'000 nominal | G92: $'000 nominal | H92: $'000 nominal | I92: $'000 nominal | J92: $'000 nominal | K92: $'000 nominal | L92: $'000 nominal | M92: $'000 nominal | N92: $'000 nominal
C97: Explanation of the need for the provision
C99: The provision records the estimated costs in attending to environmental matters.
C101: Explanation of the movements in the provision
C103: Decrease in provision due to reassessment of the work involved in relation to current environmental matters.
B109: Account code or reference to account code | C109: Provision for Doubtful Debts | D109: Audited Statutory Financial Statements | E109: Adjustments | F109: CitiPower | G109: Standard Control Services | H109: AMI | I109: Public Lighting | K109: Other Alternative Control Services | M109: Negotiated Services | N109: Unregulated Services
I110: Energy efficient | J110: Non efficient | K110: Fee based service | L110: Quoted service
D111: $'000 nominal | E111: $'000 nominal | F111: $'000 nominal | G111: $'000 nominal | H111: $'000 nominal | I111: $'000 nominal | J111: $'000 nominal | K111: $'000 nominal | L111: $'000 nominal | M111: $'000 nominal | N111: $'000 nominal
C112: Opening Balance | D112: -1016.50005 | E112: 0 | F112: -1016.50005 | G112: -991.00005 | H112: 0 | I112: 0 | J112: -25.5 | K112: 0 | L112: 0 | M112: 0 | N112: 0
C113: Liabilities paid from provision charged to opex | D113: 0 | E113: 0 | F113: 0 | G113: 0 | H113: 0 | I113: 0 | J113: 0 | K113: 0 | L113: 0 | M113: 0 | N113: 0
C114: Liabilities paid from provision charged to capex | D114: 0 | E114: 0 | F114: 0 | G114: 0 | H114: 0 | I114: 0 | J114: 0 | K114: 0 | L114: 0 | M114: 0 | N114: 0
C115: Increase /decrease in provision charged to opex | D115: 36.5 | E115: 0 | F115: 36.5 | G115: 67.5 | H115: 0 | I115: 0 | J115: -31 | K115: 0 | L115: 0 | M115: 0 | N115: 0
C116: Increase/decrease in provision charged to capex | D116: 0 | E116: 0 | F116: 0 | G116: 0 | H116: 0 | I116: 0 | J116: 0 | K116: 0 | L116: 0 | M116: 0 | N116: 0
C117: Other adjustments (a) | D117: 0 | E117: 0 | F117: 0 | G117: 0 | H117: 0 | I117: 0 | J117: 0 | K117: 0 | L117: 0 | M117: 0 | N117: 0
C119: Closing Balance | D119: =SUM(D112:D118) -> -980.00005 | E119: 0 | F119: -980.00005 | G119: -923.50005 | H119: 0 | I119: 0 | J119: -56.5 | K119: 0 | L119: 0 | M119: 0 | N119: 0
B121: a: Please explain other adjustments in the table below:
B123: Account code or reference to account code | C123: Provision for Doubtful Debts | D123: Audited Statutory Financial Statements | E123: Adjustments | F123: CitiPower | G123: Standard Control Services | H123: AMI | I123: Public Lighting | K123: Other Alternative Control Services | M123: Negotiated Services | N123: Unregulated Services
I124: Energy efficient | J124: Non efficient | K124: Fee based service | L124: Quoted service
D125: $'000 nominal | E125: $'000 nominal | F125: $'000 nominal | G125: $'000 nominal | H125: $'000 nominal | I125: $'000 nominal | J125: $'000 nominal | K125: $'000 nominal | L125: $'000 nominal | M125: $'000 nominal | N125: $'000 nominal
C130: Explanation of the need for the provision
C132: Provision against doubtful tariff and non-tariff receivables.
C134: Explanation of the movements in the provision
C136: Movement based on remeasurement of debts considered to be doubtful.
B142: Account code or reference to account code | C142: Provision for Employee Entitlements | D142: Audited Statutory Financial Statements | E142: Adjustments | F142: CitiPower | G142: Standard Control Services | H142: AMI | I142: Public Lighting | K142: Other Alternative Control Services | M142: Negotiated Services | N142: Unregulated Services
I143: Energy efficient | J143: Non efficient | K143: Fee based service | L143: Quoted service
D144: $'000 nominal | E144: $'000 nominal | F144: $'000 nominal | G144: $'000 nominal | H144: $'000 nominal | I144: $'000 nominal | J144: $'000 nominal | K144: $'000 nominal | L144: $'000 nominal | M144: $'000 nominal | N144: $'000 nominal
C145: Opening Balance | D145: -13435.06878 | E145: 0 | F145: -13435.06878 | G145: -13435.06878 | H145: 0 | I145: 0 | J145: 0 | K145: 0 | L145: 0 | M145: 0 | N145: 0
C146: Liabilities paid from provision charged to opex | D146: 1986.627011 | E146: 0 | F146: 1986.627011 | G146: 1986.627011 | H146: 0 | I146: 0 | J146: 0 | K146: 0 | L146: 0 | M146: 0 | N146: 0
C147: Liabilities paid from provision charged to capex | D147: 1658.980309 | E147: 0 | F147: 1658.980309 | G147: 1658.980309 | H147: 0 | I147: 0 | J147: 0 | K147: 0 | L147: 0 | M147: 0 | N147: 0
C148: Increase /decrease in provision charged to opex | D148: -1304.53063 | E148: 0 | F148: -1304.53063 | G148: -1304.53063 | H148: 0 | I148: 0 | J148: 0 | K148: 0 | L148: 0 | M148: 0 | N148: 0
C149: Increase/decrease in provision charged to capex | D149: -1696.98204 | E149: 0 | F149: -1696.98204 | G149: -1696.98204 | H149: 0 | I149: 0 | J149: 0 | K149: 0 | L149: 0 | M149: 0 | N149: 0
C150: Other adjustments (a) | D150: 0 | E150: 0 | F150: 0 | G150: 0 | H150: 0 | I150: 0 | J150: 0 | K150: 0 | L150: 0 | M150: 0 | N150: 0
C152: Closing Balance | D152: =SUM(D145:D151) -> -12790.97413 | E152: 0 | F152: -12790.97413 | G152: -12790.97413 | H152: 0 | I152: 0 | J152: 0 | K152: 0 | L152: 0 | M152: 0 | N152: 0
B154: a: Please explain other adjustments in the table below:
B156: Account code or reference to account code | C156: Provision for Employee Entitlements | D156: Audited Statutory Financial Statements | E156: Adjustments | F156: CitiPower | G156: Standard Control Services | H156: AMI | I156: Public Lighting | K156: Other Alternative Control Services | M156: Negotiated Services | N156: Unregulated Services
I157: Energy efficient | J157: Non efficient | K157: Fee based service | L157: Quoted service
D158: $'000 nominal | E158: $'000 nominal | F158: $'000 nominal | G158: $'000 nominal | H158: $'000 nominal | I158: $'000 nominal | J158: $'000 nominal | K158: $'000 nominal | L158: $'000 nominal | M158: $'000 nominal | N158: $'000 nominal
C163: Explanation of the need for the provision
C165: Annual leave ("AL") is provided for all employees.
C167: Long service leave ("LSL") is provided to meet the likely future entitlement of employees for LSL.
C169: Explanation of the movements in the provision
C171: Decrease in provision due to AL and LSL paid to employees in respect of leave taken.
C173: Increase in provision made to meet the future AL and LSL entitlements of employees.

Sheet 17. Shared Cost Allocation
B1: CitiPower
B2: Shared Cost Allocations
B3: =Cover!C26 -> 2013
B5: Instructions
B6: 1. For shared cost allocation within distribution services, please state that all items have been allocated in accordance with the approved Cost Allocation Model (CAM)
B7: 2. For cost allocation between distribution and non-distribution business, please provide work paper to demonstrate costs have been allocated from statutory accounts to distribution business in accordance with the cost allocations principles set out in Appendix A of the RIN.
B10: Billing & Revenue Collection - Allocated
B11: Statutory Account code or reference to account code | C11: Statutory Accounts | D11: Audited Statutory Financial Statements | E11: Adjustments | F11: CitiPower | G11: Standard Control Services | H11: AMI | I11: Public Lighting | K11: Other Alternative Control Services | M11: Negotiated Services | N11: Unregulated Services
I12: Energy efficient | J12: Non efficient | K12: Fee based service | L12: Quoted service
C13: $'000 nominal | D13: $'000 nominal | E13: $'000 nominal | F13: $'000 nominal | G13: $'000 nominal | H13: $'000 nominal | I13: $'000 nominal | J13: $'000 nominal | K13: $'000 nominal | L13: $'000 nominal | M13: $'000 nominal | N13: $'000 nominal
B14: 0 | C14: 2310.675545 | D14: 2310.675545 | E14: 0 | F14: 2310.675545 | G14: 2042.028174 | H14: 119.8268347 | I14: 8.676702599 | J14: 30.6915181 | K14: 64.83348138 | L14: 44.61883397 | M14: 0 | N14: 0
F15: 0
B16: Note: please provide the following:
B18: Basis of allocation:
B19: Allocation based on Expenditure Split
B21: Reason for choosing this basis:
B22: Reflective of the costs incurred in providing different categories of distribution services
B25: Advertising/Marketing - Allocated
B26: Statutory Account code or reference to account code | C26: Statutory Accounts | D26: Audited Statutory Financial Statements | E26: Adjustments | F26: CitiPower | G26: Standard Control Services | H26: AMI | I26: Public Lighting | K26: Other Alternative Control Services | M26: Negotiated Services | N26: Unregulated Services
I27: Energy efficient | J27: Non efficient | K27: Fee based service | L27: Quoted service
C28: $'000 nominal | D28: $'000 nominal | E28: $'000 nominal | F28: $'000 nominal | G28: $'000 nominal | H28: $'000 nominal | I28: $'000 nominal | J28: $'000 nominal | K28: $'000 nominal | L28: $'000 nominal | M28: $'000 nominal | N28: $'000 nominal
B29: 0 | C29: 6.12374628 | D29: 6.12374628 | E29: 0 | F29: 6.12374628 | G29: 5.411777721 | H29: 0.3175647637 | I29: 0.02299497451 | J29: 0.08133858092 | K29: 0.1718215226 | L29: 0.118248717 | M29: 0 | N29: 0
F30: 0
B31: Note: please provide the following:
B33: Basis of allocation:
B34: Allocation based on Expenditure Split
B36: Reason for choosing this basis:
B37: Reflective of the costs incurred in providing different categories of distribution services
B40: Customer Service - Allocated
B41: Statutory Account code or reference to account code | C41: Statutory Accounts | D41: Audited Statutory Financial Statements | E41: Adjustments | F41: CitiPower | G41: Standard Control Services | H41: AMI | I41: Public Lighting | K41: Other Alternative Control Services | M41: Negotiated Services | N41: Unregulated Services
I42: Energy efficient | J42: Non efficient | K42: Fee based service | L42: Quoted service
C43: $'000 nominal | D43: $'000 nominal | E43: $'000 nominal | F43: $'000 nominal | G43: $'000 nominal | H43: $'000 nominal | I43: $'000 nominal | J43: $'000 nominal | K43: $'000 nominal | L43: $'000 nominal | M43: $'000 nominal | N43: $'000 nominal
B44: 0 | C44: 3134.180079 | D44: 3134.180079 | E44: 0 | F44: 3134.180079 | G44: 2769.789137 | H44: 162.5320695 | I44: 11.76900344 | J44: 41.62970644 | K44: 87.93956651 | L44: 60.52059575 | M44: 0 | N44: 0
F45: 0
B46: Note: please provide the following:
B48: Basis of allocation:
B49: Allocation based on Expenditure Split
B51: Reason for choosing this basis:
B52: Reflective of the costs incurred in providing different categories of distribution services

Sheet 18. Avoided Cost Payments
B1: =Cover!C22 -> CitiPower Pty
B2: Avoided Cost Payments
B3: =Cover!C26 -> 2013
B6: Statutory Account code or reference to account code | C6: Description | D6: Avoided Cost Payment | E6: Number of Projects
C7: Deferral of Augmentation to Transmission Networks | D7: $'000 nominal
C8: Embedded generators | D8: 102.69773 | E8: 3
C9: Related party embedded generators | D9: 0 | E9: 0
C10: Customers | D10: 0 | E10: 0
C11: Avoided TUOS | D11: 0 | E11: 0
C12: Sub Total | D12: =SUM(D8:D11) -> 102.69773 | E12: =SUM(E8:E11) -> 3
C13: Deferral of Augmentation to Distribution Networks
C14: Embedded generators | D14: 0 | E14: 0
C15: Related party embedded generators | D15: 0 | E15: 0
C16: Customers | D16: 0 | E16: 0
C17: Sub Total | D17: =SUM(D14:D16) -> 0 | E17: =SUM(E14:E16) -> 0
C19: TOTAL | D19: =D17+D12 -> 102.69773 | E19: =E17+E12 -> 3

Sheet 19. Alt Control&Others
B1: =Cover!C22 -> CitiPower Pty
B2: Alternative Control Services and Other Services
B3: =Cover!C26 -> 2013
B6: Statutory Account code or reference to account code | C6: Description | D6: Direct O&M Costs | E6: Indirect O&M costs | F6: Direct Capex | G6: Indirect Capex | H6: Revenue
C8: Alternative Control Services - Fee Based | D8: $'000 nominal | E8: $'000 nominal | F8: $'000 nominal | G8: $'000 nominal | H8: $'000 nominal
C9: Meter investigation | D9: 85.68142551 | E9: 14.05870316 | F9: 0 | G9: 0 | H9: -29.27112
C10: Meter Testing | D10: 107.8026245 | E10: 17.68837398 | F10: 0 | G10: 0 | H10: -55.02951
C11: De-energisation of existing connections | D11: 535.0019588 | E11: 15.88610417 | F11: 0 | G11: 0 | H11: -721.9595617
C12: Energisation of existing connections | D12: 811.440006 | E12: 24.09452947 | F12: 0 | G12: 0 | H12: -1122.689524
C13: Special meter reading | D13: 56.61926441 | E13: 1.681226615 | F13: 0 | G13: 0 | H13: -58.46091352
C14: Re-test of type 5 and 6 metering installations for first tier customers with annual consumption greater than 160 MWh | D14: 0 | E14: 0 | F14: 0 | G14: 0 | H14: 0
C15: Operation, repair, replacement and maintenance of DNSP public lighting assets | D15: 0 | E15: 0 | F15: 0 | G15: 0 | H15: 0
C16: Fault response - not DNSP fault | D16: 0 | E16: 0 | F16: 0 | G16: 0 | H16: 0
C17: Temporary disconnect/reconnect services | D17: 0 | E17: 0 | F17: 0 | G17: 0 | H17: 0
C18: Wasted attendance - not DNSP fault | D18: 298.1521197 | E18: 46.83008531 | F18: 0 | G18: 0 | H18: -10.653
C19: Service truck visits | D19: 900.1265176 | E19: 143.8373067 | F19: 0 | G19: 0 | H19: -999.6039
C20: Reserve feeder | D20: 241.9472933 | E20: 7.184272583 | F20: 0 | G20: 0 | H20: -182.35309
C21: PV installation | D21: 145.299394 | E21: 4.31445394 | F21: 0 | G21: 0 | H21: -197.72991
C22: Routine connections - customers below 100 amps | D22: 1968.707954 | E22: 310.6607038 | F22: 0 | G22: 0 | H22: -3126.10649
C23: Temporary supply services | D23: 0 | E23: 0 | F23: 0 | G23: 0 | H23: 0
C24: Remote meter re-configuration | D24: 0 | E24: 0 | F24: 0 | G24: 0 | H24: 0
C25: Remote de-energisation | D25: 0 | E25: 0 | F25: 0 | G25: 0 | H25: 0
C26: Remote re-energisation | D26: 0 | E26: 0 | F26: 0 | G26: 0 | H26: 0
C27: Total fee based alternative control services | D27: =SUM(D9:D26) -> 5150.778558 | E27: =SUM(E9:E26) -> 586.2357597 | F27: =SUM(F9:F26) -> 0 | G27: =SUM(G9:G26) -> 0 | H27: =SUM(H9:H26) -> -6503.857019
C29: Alternative Control Services - Quoted | D29: $'000 nominal | E29: $'000 nominal | F29: $'000 nominal | G29: $'000 nominal | H29: $'000 nominal
C30: Rearrangement of network assets at customer request, excluding alteration and relocation of existing public lighting assets | D30: 0 | E30: 0 | F30: 0 | G30: 0 | H30: 0
C31: Supply enhancement at customer request | D31: 0 | E31: 0 | F31: 0 | G31: 0 | H31: 0
C32: Supply abolishment | D32: 529.5705658 | E32: 83.81718484 | F32: 0 | G32: 0 | H32: -250.36517
C33: Emergency recoverable works (that is, emergency works where customer is at fault and immediate action needs to be taken by the DNSP) | D33: 792.76877 | E33: 117.1024749 | F33: 0 | G33: 0 | H33: -805.33617
C34: Auditing of design and construction | D34: 80.5768172 | E34: 9.106205226 | F34: 0 | G34: 0 | H34: 0
C35: Specification and design enquiry fees | D35: 1158.741823 | E35: 130.9525644 | F35: 0 | G35: 0 | H35: -1161.96859
C36: Elective underground service where an existing overhead service exists | D36: 0 | E36: 0 | F36: 0 | G36: 0 | H36: 0
C37: Damage to overhead service cables pulled down by high load vehicles | D37: 0 | E37: 0 | F37: 0 | G37: 0 | H37: 0
C38: High load escorts—lifting overhead lines | D38: 27.60369423 | E38: 4.095087861 | F38: 0 | G38: 0 | H38: -24.7078
C39: Covering of low voltage mains for safety reasons | D39: 837.5453648 | E39: 124.2522768 | F39: 0 | G39: 0 | H39: -1102.93731
C40: Routine connections, for customers > 100amps | D40: 0 | E40: 0 | F40: 0 | G40: 0 | H40: 0
C41: After hours truck by appointment | D41: 50.77727882 | E41: 8.004615794 | F41: 0 | G41: 0 | H41: -102.74985
C42: Total quoted alternative control services | D42: =SUM(D30:D41) -> 3477.584314 | E42: =SUM(E30:E41) -> 477.3304098 | F42: =SUM(F30:F41) -> 0 | G42: =SUM(G30:G41) -> 0 | H42: =SUM(H30:H41) -> -3448.06489
C44: Public Lighting | D44: $'000 nominal | E44: $'000 nominal | F44: $'000 nominal | G44: $'000 nominal | H44: $'000 nominal
C45: Efficient | D45: 669.724272 | E45: 99.35941592 | F45: 227.3239929 | G45: 27.10655614 | H45: -1115.184447
C46: Non-energy efficient | D46: 2368.970876 | E46: 351.4574167 | F46: 986.8786381 | G46: 117.677333 | H46: -3289.895693
C47: Total public lighting | D47: =SUM(D45:D46) -> 3038.695148 | E47: =SUM(E45:E46) -> 450.8168326 | F47: =SUM(F45:F46) -> 1214.202631 | G47: =SUM(G45:G46) -> 144.7838891 | H47: =SUM(H45:H46) -> -4405.08014
C49: Other Activities - Non Regulated | D49: $'000 nominal | E49: $'000 nominal | F49: $'000 nominal | G49: $'000 nominal | H49: $'000 nominal
C50: Pole, Duct & Fibre Rental | D50: 0 | E50: 0 | F50: 0 | G50: 0 | H50: -2797.07329
C51: Public Lighting | D51: 0 | E51: 0 | F51: 51.67334904 | G51: 6.16163089 | H51: -35.6098
C52: Total non - regulated | D52: =SUM(D50:D51) -> 0 | E52: =SUM(E50:E51) -> 0 | F52: =SUM(F50:F51) -> 51.67334904 | G52: =SUM(G50:G51) -> 6.16163089 | H52: =SUM(H50:H51) -> -2832.68309
C54: TOTAL | D54: =SUM(D27,D42,D47,D52) -> 11667.05802 | E54: =SUM(E27,E42,E47,E52) -> 1514.383002 | F54: =SUM(F27,F42,F47,F52) -> 1265.87598 | G54: =SUM(G27,G42,G47,G52) -> 150.94552 | H54: =SUM(H27,H42,H47,H52) -> -17189.68514
B56: Note: Services classes are those used in the 2010 Distribution Determination Other alternative control services.

Sheet 20. Demand and Revenue
B1: =Cover!C22 -> CitiPower Pty
B2: Total Revenue and Demand
B3: =Cover!C26 -> 2013
B5: Table 1 Standard Control Services Revenue - Current Year
B6: Note: insert additional rows as necessary
B8: Statutory Account code or reference to account code | C8: Distribution Category | D8: Amount of Electricity Distributed | E8: Distribution Revenue
C9: Tariff categories | D9: GWh | E9: $'000 nominal
C10: C1R - Residential Single Rate | D10: 851.1856759 | E10: 47424.10842
C11: C1RB - Residential Single Rate - Bulk | D11: 105.8122963 | E11: 4677.545341
C12: C13R - Residential - flexible pricing | D12: 0.04962750086 | E12: 2.016407861
C13: C13RB - Residential - flexible pricing bulk | D13: 0.002024457011 | E13: 0.05676260849
C14: C2R - Residential Two Rate | D14: 94.84890674 | E14: 4414.037228
C15: C2RB - Residential Two Rate - Bulk | D15: 33.96558932 | E15: 1292.617995
C16: C3R - Residential Three Rate | D16: 110.5816015 | E16: 6401.983559
C17: C3RB - Residential Three Rate - Bulk | D17: 26.36209603 | E17: 1363.3528
C18: CDS - Dedicated Supplies | D18: 44.16413979 | E18: 406.4537123
C19: CDSB - Dedicated Supplies - Bulk | D19: 2.607201063 | E19: 21.09130611
C20: C1G - General Purpose Single Rate | D20: 311.9795111 | E20: 16901.8031
C21: C1GB - General Purpose Single Rate - Bulk | D21: 128.8571628 | E21: 5570.409744
C22: C2G5 - General Purpose Two Rate (5 day peak) | D22: 584.3859169 | E22: 30912.43214
C23: C2G5B - General Purpose Two Rate (5 day peak) bulk | D23: 200.0208583 | E23: 8280.931343
C24: C3G - General Purpose Interval | D24: 191.4802289 | E24: 10520.72593
C25: C3GB - General Purpose Interval Bulk | D25: 307.0903285 | E25: 12802.45101
C26: C2G7 - General Purpose Two Rate (7 day peak) | D26: 134.8976078 | E26: 6341.896887
C27: C2G7B - General Purpose Two Rate (7 day peak) bulk | D27: 35.17882169 | E27: 1257.008867
C28: C2U - Unmetered Supplies | D28: 39.0223705 | E28: 1312.977765
C29: C2DL - Large LV Demand metered | D29: 153.5002724 | E29: 5404.846789
C30: C2L7 - Large two Rate (7 day Peak) Bulk | D30: 21.68231087 | E30: 895.9590255
C31: C2DLB - Large LV Demand metered bulk | D31: 1825.530713 | E31: 53871.75662
C32: C2DLER - Large LV Demand R | D32: 0 | E32: 0
C33: C2DLEG - Large LV Demand G | D33: 6.25196906 | E33: 170.5814345
C34: C2DLBER - Large LV Demand Bulk R | D34: 0 | E34: 0
C35: C2DLBEG - Large LV Demand Bulk G | D35: 113.4410018 | E35: 3456.695787
C36: C2DH - HV Demand Metered | D36: 534.4989675 | E36: 10043.92503
C37: C2DHD1 - HV Holden | D37: 0 | E37: 0
C38: C2DHER - HV Demand R | D38: 0 | E38: 0
C39: C2DHEG - HV Demand G | D39: 8.911752727 | E39: 206.4313797
C40: C2DT - Subtransmission | D40: 115.045997 | E40: 716.2466916
C43: Total | D43: =SUM(D10:D40) -> 5981.354949 | E43: =SUM(E10:E40) -> 234670.3431
B45: Table 2 Standard Control Revenue - Prior Year
B46: Note: insert additional rows as necessary
B48: Statutory Account code or reference to account code | C48: Distribution Category | D48: Amount of Electricity Distributed | E48: Distribution Revenue
C49: Tariff categories | D49: GWh | E49: $'000 nominal
C50: C1R - Residential Single Rate | D50: 880.8956772 | E50: 44134.98473
C51: C1RB - Residential Single Rate - Bulk | D51: 108.1309111 | E51: 4322.790478
C52: C2R - Residential Two Rate | D52: 99.5102521 | E52: 4087.49795
C53: C2RB - Residential Two Rate - Bulk | D53: 36.80503905 | E53: 1257.433047
C54: C3R - Residential Three Rate | D54: 91.34198214 | E54: 4615.964088
C55: C3RB - Residential Three Rate - Bulk | D55: 20.4191582 | E55: 906.955017
C56: CDS - Dedicated Supplies | D56: 46.99430961 | E56: 393.9788424
C57: CDSB - Dedicated Supplies - Bulk | D57: 2.737165671 | E57: 20.16125229
C58: C1G - General Purpose Single Rate | D58: 328.1582638 | E58: 16164.29995
C59: C1GB - General Purpose Single Rate - Bulk | D59: 140.5987613 | E59: 5532.126572
C60: C2G5 - General Purpose Two Rate (5 day peak) | D60: 633.1137422 | E60: 30599.64173
C61: C2G5B - General Purpose Two Rate (5 day peak) bulk | D61: 221.1271543 | E61: 8192.313636
C62: C3G - General Purpose Interval | D62: 186.3919803 | E62: 9315.998687
C63: C3GB - General Purpose Interval Bulk | D63: 331.2851961 | E63: 12111.82412
C64: C2G7 - General Purpose Two Rate (7 day peak) | D64: 140.29936 | E64: 6003.909604
C65: C2G7B - General Purpose Two Rate (7 day peak) bulk | D65: 37.4032451 | E65: 1211.372704
C66: C2U - Unmetered Supplies | D66: 39.69929792 | E66: 1227.014244
C67: C2DL - Large LV Demand metered | D67: 140.328257 | E67: 4444.717292
C68: C2L7 - Large two Rate (7 day Peak) Bulk | D68: 26.48134771 | E68: 993.5753251
C69: C2DLB - Large LV Demand metered bulk | D69: 1819.503167 | E69: 47599.92349
C70: C2DLER - Large LV Demand R | D70: 0 | E70: 0
C71: C2DLEG - Large LV Demand G | D71: 7.381136158 | E71: 303.7847886
C72: C2DLBER - Large LV Demand Bulk R | D72: 0 | E72: 0
C73: C2DLBEG - Large LV Demand Bulk G | D73: 75.7727477 | E73: 2215.45123
C74: C2DH - HV Demand Metered | D74: 538.4453981 | E74: 9081.156926
C75: C2DHD1 - HV Holden | D75: -0.003865703188 | E75: -0.002626685373
C76: C2DHER - HV Demand R | D76: 0 | E76: 0
C77: C2DHEG - HV Demand G | D77: 10.10440486 | E77: 185.4538588
C78: C2DT - Subtransmission | D78: 122.2060345 | E78: 645.7991336
C80: Total | D80: =SUM(D50:D79) -> 6085.130123 | E80: =SUM(E50:E79) -> 215568.1261
B82: Table 3 AMI - Current Year
B83: Note: 'Number of Meters\NMIs refers to end of year figures
B85: Statutory Account code or reference to account code | C85: Distribution Category | D85: Number of Meters | E85: Metering Revenue
C86: Tariff categories | E86: $'000 nominal
C87: MP - Single phase non-off peak meter | D87: 201725.6556 | E87: 25713.34764
C88: MP - Single phase off peak meter | D88: 52896.97449 | E88: 6742.614323
C89: MP - Two or threee phase direct connet | D89: 56477.48767 | E89: 9408.711022
C90: MP - Two or threee phase current transformer connet | D90: 2213.699013 | E90: 465.802551
C94: Total | D94: =SUM(D87:D93) -> 313313.8167 | E94: =SUM(E87:E93) -> 42330.47554
B97: Table 4 AMI - Prior Year
B98: Note: 'Number of Meters\NMIs refers to end of year figures
B100: Statutory Account code or reference to account code | C100: Distribution Category | D100: Number of Meters | E100: Metering Revenue
C101: Tariff categories | E101: $'000 nominal
C102: MP - Single phase non-off peak meter | D102: 203352.076 | E102: 20194.95053
C103: MP - Single phase off peak meter | D103: 51265.45439 | E103: 5091.186358
C104: MP - Two or threee phase direct connet | D104: 52107.40855 | E104: 6763.563814
C105: MP - Two or threee phase current transformer connet | D105: 1823.824299 | E105: 298.9988405
C109: Total | D109: =SUM(D102:D108) -> 308548.7633 | E109: =SUM(E102:E108) -> 32348.69954
B112: Table 5 Public lighting- Current Year
B114: Statutory Account code or reference to account code | C114: Distribution Category | D114: Number of Lights | E114: Metering Revenue
C115: Tariff categories | E115: $'000 nominal
C116: MDs - Unmetered Supplies | D116: 63645 | E116: 88.86450923
C123: Total | D123: =SUM(D116:D122) -> 63645 | E123: =SUM(E116:E122) -> 88.86450923
B126: Table 6 Public lighting - Prior Year
B128: Statutory Account code or reference to account code | C128: Distribution Category | D128: Number of Lights | E128: Metering Revenue
C129: Tariff categories | E129: $'000 nominal
C130: MDs - Unmetered Supplies | D130: 63536 | E130: 78.16688407
C137: Total | D137: =SUM(D130:D136) -> 63536 | E137: =SUM(E130:E136) -> 78.16688407

Sheet 21. EBSS
B1: =Cover!C22 -> CitiPower Pty
B2: Efficiency Benefits Sharing Schemes
B3: =Cover!C26 -> 2013
B5: Table 1 Opex for EBSS Purposes
B7: Note: a) Only superannuation costs related to defined benefit schemes are to be reported
B8: b) Only self insurance cost categories approved in the AER's determination are to be reported
C10: $'000 nominal
B11: Total Actual Opex | C11: 52004.66811
B12: Debt raising costs | C12: 0
B13: Self insurance | C13: 0
B14: Superannuation defined benefit schemes | C14: 2052
B15: Non network alternatives costs | C15: 0
B16: DMIA costs | C16: 0
B17: Pass through event costs | C17: 0
B18: GSL payments | C18: 13.89
B19: Total opex adjustment for EBSS purposes | C19: =SUM(C12:C18) -> 2065.89
B20: Total opex for EBSS purposes | C20: =C11-C19 -> 49938.77811
B22: Note: Total opex for EBSS purposes has not been adjusted for movement in provisions
B24: Table 2 Explanation of Capitalisation Policy Changes
B26: Note: This should include a description of any items that have previously been considered as opex items, but are now being considered capex items.
B28: Capitalisation Policy Change | C28: Impact on forecast opex ($'000 nominal) | D28: Description
B29: 0 | C29: 0 | D29: 0
B30: 0 | C30: 0 | D30: 0
B31: 0 | C31: 0 | D31: 0
B32: 0 | C32: 0 | D32: 0
B33: Total | C33: =SUM(C29:C32) -> 0

Sheet 22. Juris Scheme
B1: =Cover!C22 -> CitiPower Pty
B2: Jurisdictional Scheme Payments
B3: =Cover!C26 -> 2013
B6: Scheme Payment Name | C6: Description | D6: Date DNSP Became Subject to Scheme | E6: Description of Cost Recovery Method | F6: Total Scheme Payments ($'000 nominal)
B7: Premium Solar Feed-in Tariff & Transitional feed-in tariff payments | C7: Credit per kWh paid for excess electricity fed back into the grid | D7: 1 November 2009 | E7: Appendix F3 of the Final Decision Distribution determination 2011-2015 | F7: 3334.12821
B8: 0 | C8: 0 | D8: 0 | E8: 0 | F8: 0
B9: 0 | C9: 0 | D9: 0 | E9: 0 | F9: 0
B10: 0 | C10: 0 | D10: 0 | E10: 0 | F10: 0
B11: Total jurisdictional scheme payments | D11: Total jurisdictional scheme payments | F11: =SUM(F7:F10) -> 3334.12821

Sheet 23. DMIS-DMIA
B1: =Cover!C22 -> CitiPower Pty
B2: Demand management incentive scheme
B3: =Cover!C26 -> 2013
B5: Instructions:
B7: Enter all demand management innovation allowance information for the relevant regulatory year in the tables below. The information should be provided in accordance with the AER's Final demand management incentive scheme for Victorian DNSPs, April 2009.
B9: Table 1 provide the following for each demand management incentive allowance project undertaken:
B10: a) the name of each project
B11: b) operating expenditure ($ nominal)
B12: c) capital expenditure ($ nominal)
B14: Table 2 provide information on the total amount of DMIA spent in the previous regulatory year
B15: a) the name of each project
B16: b) operating expenditure ($ nominal)
B17: c) capital expenditure ($ nominal)
B19: Table 3 provide the following for each demand management program or project for which forgone revenue is claimed:
B20: a) the name of the project
B21: b) forecast demand (MW) without the implementation of the non-tariff demand management program
B22: c) actual demand (MW) with the implementation of the non-tariff demand management program
B23: d) price applicable to forgone quantities
B28: Table 1 DMIA undertaken
B30: Name of project
C31: =B3 -> 2013
C32: Operating expenditure ($ nominal) | D32: Capital expenditure ($ nominal) | E32: Total expenditure ($ nominal)
B33: 0 | C33: 0 | E33: =SUM(C33:D33) -> 0
E34: 0
E35: 0
E36: 0
E37: 0
E38: 0
B39: Total | C39: =SUM(C33:C38) -> 0 | D39: =SUM(D33:D38) -> 0 | E39: =SUM(E33:E38) -> 0
B41: Table 2 DMIA expenditure in the regulatory reporting year
B43: Name of project | C43: Total amount of the DMIA spent in previous regulatory year
C45: Operating expenditure ($ nominal) | D45: Capital expenditure ($ nominal) | E45: Total expenditure ($ nominal)
B46: 0 | C46: 0 | E46: =SUM(C46:D46) -> 0
E47: =SUM(C47:D47) -> 0
E48: =SUM(C48:D48) -> 0
B49: Total | C49: =SUM(C46:C48) -> 0 | D49: =SUM(D46:D48) -> 0 | E49: =SUM(E46:E48) -> 0
B51: Table 3 Foregone revenue in the regulatory reporting year
B53: Name of project
C54: =B39 -> Total
C55: Forecast quantity | D55: Actual quantity | E55: Forgone quantity | F55: Price
E56: =C56-D56 -> 0
E57: =C57-D57 -> 0
E58: 0
E59: 0
E60: 0
E61: 0
B62: Total | C62: =SUM(C56:C61) -> 0 | D62: =SUM(D56:D61) -> 0 | E62: 0

Sheet 24. Self Insurance
B1: =Cover!C22 -> CitiPower Pty
B2: Self Insurance
B3: =Cover!C26 -> 2013
B5: Table 1 Self Insurance Events with an Incurred Cost of Greater than $100 000 per Event.
B7: Type of Self Insurance Event | C7: Date of Event | D7: Description of Event | I7: Cost of the Event that Relates to Regulated Assets ($'000 nominal) | K7: Other Costs (eg Costs Related to Non-regulated Assets) ($'000 nominal) | M7: Total Cost of Self Insurance Event ($'000 nominal) | O7: Costs Covered by External Funding ($'000 nominal) | Q7: Costs to be passed through ($'000 nominal) | S7: Independently verifiable information attached?
B8: [eg. Liability, fire etc]
D16: Total actual cost of self insurance | I16: =SUM(I8:J15) -> 0 | K16: =SUM(K8:L15) -> 0 | M16: =SUM(M8:N15) -> 0 | O16: =SUM(O8:P15) -> 0 | Q16: =SUM(Q8:R15) -> 0
B18: Table 2 Self insurance events with an incurred cost of less than $100 000 per event
B20: Number of events | C20: Costs of the events that relate to regulated assets | F20: Costs covered by external funding | J20: Costs that do not relate to regulated assets
B24: Table 3 Total self insurance that relate to regulated assets
B26: Total self insurance | D26: =I16+C21+C22 -> 0
B28: Note: This section is not intended to reconcile with EBSS data

Sheet 25. CHAP
B1: =Cover!C22 -> CitiPower Pty
B2: Change of Accounting Policy
B3: =Cover!C26 -> 2013
B5: Please state the nature and reason for the change:
B10: Table 1 The aggregate effect of the change in accounting policy on the balance sheet and income statements
B12: Statutory Account code or reference to account code | C12: CitiPower Category | D12: Previously Stated | E12: Adjustment | F12: Restated
C13: Balance Sheet | D13: $'000 nominal | E13: $'000 nominal | F13: $'000 nominal
C14: Item
C17: Income Statement
C18: Item

Sheet 26. Related Party
B1: =Cover!C22 -> CitiPower Pty
B2: Related Party Transactions
B3: =Cover!C26 -> 2013
B5: Table 1. Payments made by CitiPower to Related Party under CONTROL or INFLUENCING Ownership
B6: Note: for transactions with a Related Party that is related to the provision of standard control services, alternative control services, Advanced Metering Infrastructure or negotiated distribution services and greater than $500,000
B8: Name of related party | C8: Services Provided | D8: Contract Charge ($'000 nominal) | F8: Actual Cost ($'000 nominal) | H8: Margin ($'000 nominal) | J8: Description of how this transaction amount was determined | K8: Description of how this amount is reflected in the Regulatory Accounting Statements, including the asset class or cost category | L8: Where the related party costs have been allocated to different asset classes or cost categories, the description of the basis of allocation and the quantum of the allocator
D9: Capex | E9: Opex | F9: Capex | G9: Opex | H9: Capex | I9: Opex
B10: CHED Services | C10: Corporate Services - management, administration, back office and other business functions | J10: The services fee amount is based on an arms length negotiated price. The actual incurred cost of the individual services was determined by the related party. | K10: The contract price / actual cost is included in operating expenses, maintenance and capital expenditure, allocated between Standard Control and AMI | L10: Refer to the Services Fee Allocation workpaper for details of the amount and the method of its allocation.
B11: CHED Services | C11: Infill Insurance Premium | J11: The fee amount is in accordance with external assessment and advice for these services. | K11: The contract price / actual cost is included in Operating Expenses as a directly attributable cost to Standard Control | L11: No costs are allocated
B12: CHED Services | C12: AMI Project Services | J12: The actual incurred cost was determined by the related party. | K12: The contract price actual cost has been directly attributed to AMI capital and operating expenses | L12: No costs are allocated
B13: CHED Services | C13: Metering and Servicing Activities | J13: The fee amount is based on an arms length negotiated price. The actual incurred cost was determined by the related party. | K13: The contract price / actual cost is included in operating, maintenance and capital expenditure as a directly attributable cost to AMI and ACS. | L13: No costs are allocated
B14: CHED Services | C14: IT AMI Support Services | J14: The fee amount is based on an arms length negotiated price. The actual incurred cost was determined by the related party | K14: The contract price / actual cost is included in operating expenses as an ACS. | L14: No costs are allocated
B15: Powercor Network Services | C15: Network Services - construction, maintenance, faults, emergency and related services | J15: The fee amount is based on an arms length negotiated price and the actual cost incurred was determined by the related party. | K15: The contract price /actual cost is directly attributable to Standard Control, AMI and ACS capital, maintenance and operating expenditure. | L15: No costs are allocated
B16: CHED Services | C16: IT System Enhancements | J16: The fee amount is based on an arms length negotiated price. The actual incurred cost was determined by the related party | K16: The contract price / actual cost is included in capital expenses and is allocated directly to Standard Control and AMI | L16: No costs are allocated
B18: Table 2. Composition of margins in relation to table 1.
B20: Name of related party | C20: Services Provided | D20: Margins ($'000 nominal) | H20: Total ($'000 nominal)
D21: Overhead | F21: Residual
B22: CHED Services | C22: Corporate Services - management, administration, back office and other business functions | D22: 0
B23: CHED Services | C23: Infill Insurance Premium | D23: 0
B24: CHED Services | C24: AMI Project Services | D24: 0
B25: CHED Services | C25: Metering and Servicing Activities | D25: 0
B26: CHED Services | C26: IT AMI Support Services | D26: 0
B27: Powercor Network Services | C27: Network Services - construction, maintenance, faults, emergency and related services | D27: 0
B28: CHED Services | C28: IT System Enhancements | D28: 0
B30: Note: Provide, if separately identifiable the proportion of margins related to overhead costs and the proportion if any, that is related to assets used but not in the Distribution Businesses regulatory asset base.

Sheet 27. Safety and Bushfire
B1: =Cover!C22 -> CitiPower Pty
B2: Safety and Bushfire Related Expenditure
B3: =Cover!C26 -> 2013
B5: Instructions
B6: Please populate table 1 where the asset categories definitions differ from the "Asset Installation"' worksheet.
B7: The definitions in table 1 are not limited or restricted. Please include additional definitions where necessary.
B8: Median unit costs should be used. Where unit costs are not recorded at the asset category level - provide the best estimates of the unit cost using the cost allocation method outlined in table 1. As a transitional measure, the unit cost may be based on a
B9: Provide basis of allocation where applicable
B10: AER expected expenditure ($2010) means ESL and non ESL, ESMS related expected expenditure as approved under the AER Determination for 2011-15
B11: AER expected expenditure ($2010) means bushfire related expenditure as approved under the pass through application
B12: AER expected volumes means the bushfire related expenditure volumes approved under pass through applications.
B13: AER expected volumes means the ESL and non ESL and ESMS related volumes as approved under the AER Determination for 2011-15
B14: Replacement information to be reported concern the asset that has replaced an existing asset for bushfire and safety purposes.
B15: CPI applied to convert expenditure in real $2010 to nominal based on lagged September CPI index | C15: 1.085380726
B17: Table 1 Asset groups: Definitions, cost-allocation basis and methodology
B19: Asset group | C19: Category i.e., bushfire, ESMS, ESL or non-ESL | D19: Definitions | H19: Basis for allocation of cost to asset group or category
B20: Pole replacements (FC148) - subtransmission | C20: ESL | H20: Actual costs are captured at a composite project level including these and other physicals. Costs are allocated to function codes for settlement based on allocation rules. Allocation to voltages for poles is based on actual physicals completed.
B21: Pole replacements (FC148) - HV | C21: ESL
B22: Pole replacements (FC148) - LV | C22: ESL
B23: Pole replacements (FC148) - pole and stay | C23: ESL
B24: Pole replacements (FC149) - staked | C24: ESL
B25: Crossarm replacements (FC155) | C25: ESL
B26: HV overhead conductor replacements | C26: ESL | H26: Actual costs are captured at a function code level. Allocation to voltages is based on value of asset additions to various voltages
B27: LV overhead conductor replacements | C27: ESL
B28: Replacement of SWER with ABC/underground cabling
B29: Replacement of 22kV distribution feeders with ABC/underground cabling
B30: <DNSP to input as appropriate>
B33: Table 2 Bushfire-related expenditure - approved under pass-through applications (volumes)
B35: Asset group | C35: Units | D35: As approved under pass through applications | E35: Actual Units | F35: Variance | G35: Reasons for variance
B36: Pole replacements (FC148) - subtransmission | C36: no. of poles | F36: =E36-D36 -> 0
B37: Pole replacements (FC148) - HV | C37: no. of poles | F37: 0
B38: Pole replacements (FC148) - LV | C38: no. of poles | F38: 0
B39: Pole replacements (FC148) - pole and stay | C39: no. of poles | F39: 0
B40: Pole replacements (FC149) - staked | C40: no. of poles | F40: 0
B41: Crossarm replacements (FC155) | C41: no. of crossarms | F41: 0
B42: HV overhead conductor replacements | C42: no. of km | F42: 0
B43: LV overhead conductor replacements | C43: no. of km | F43: 0
B44: Replacement of SWER with ABC/underground cabling | C44: no. of km | F44: 0
B45: Replacement of 22kV distribution feeders with ABC/underground cabling | C45: no. of feeders | F45: 0
B46: <DNSP to input as appropriate> | C46: <DNSP to input as appropriate> | F46: 0
B49: Table 3 Safety related other - ESL, non ESL and ESMS (volumes) - approved under AER determination for 2011-15
B51: Asset group | C51: Units | D51: AER expected volumes | E51: Actual Units | F51: Variance | G51: Reasons for variance
B52: Pole replacements (FC148) - subtransmission | C52: no. of poles | D52: 11.1 | E52: 9 | F52: =E52-D52 -> -2.1 | G52: Actuals driven by the Asset Inspection Program - EPDR values are estimates only
B53: Pole replacements (FC148) - HV | C53: no. of poles | D53: 46.25 | E53: 39 | F53: -7.25 | G53: Actuals driven by the Asset Inspection Program - EPDR values are estimates only
B54: Pole replacements (FC148) - LV | C54: no. of poles | D54: 114.7 | E54: 83 | F54: -31.7 | G54: Actuals driven by the Asset Inspection Program - EPDR values are estimates only
B55: Pole replacements (FC148) - pole and stay | C55: no. of poles | D55: 12.95 | E55: 0 | F55: -12.95 | G55: Actuals driven by the Asset Inspection Program - EPDR values are estimates only
B56: Pole replacements (FC149) - staked | C56: no. of poles | D56: 265 | E56: 483 | F56: 218 | G56: Actuals driven by the Asset Inspection Program - EPDR values are estimates only
B57: Crossarm replacements (FC155) | C57: no. of crossarms | D57: 700 | E57: 1173 | F57: 473 | G57: Actuals driven by the Asset Inspection Program - EPDR values are estimates only
B58: HV overhead conductor replacements | C58: no. of km | D58: 2.5 | E58: 0 | F58: -2.5 | G58: Actual units not available from corporate systems
B59: LV overhead conductor replacements | C59: no. of km | D59: 0.5 | E59: 0.07 | F59: -0.43 | G59: Actual units not available from corporate systems
B60: Replacement of SWER with ABC/underground cabling | C60: no. of km | F60: 0 | G60: Not Applicable
B61: Replacement of 22kV distribution feeders with ABC/underground cabling | C61: no. of feeders | F61: 0 | G61: Not Applicable
B62: <DNSP to input as appropriate> | C62: <DNSP to input as appropriate> | F62: 0
B65: Table 4 Bushfire-related expenditure pass-through applications ($ nominal - excluding margins and overheads)
B67: Asset group | C67: As approved pass through ($'000 nominal) | D67: Actual ($'000 nominal) | E67: Variance ($'000 nominal) | F67: Reasons for variance
B68: Pole replacements (FC148) - subtransmission | E68: =C68-D68 -> 0
B69: Pole replacements (FC148) - HV | E69: 0
B70: Pole replacements (FC148) - LV | E70: 0
B71: Pole replacements (FC148) - pole and stay | E71: 0
B72: Pole replacements (FC149) - staked | E72: 0
B73: Crossarm replacements (FC155) | E73: 0
B74: HV overhead conductor replacements | E74: 0
B75: LV overhead conductor replacements | E75: 0
B76: Replacement of SWER with ABC/underground cabling | E76: 0
B77: Replacement of 22kV distribution feeders with ABC/underground cabling | E77: 0
B78: <DNSP to input as appropriate> | E78: 0
B80: Note - Reported expenditure is to be entered EXCLUDING any overheads, profit margins or management fees paid directly or indirectly to related party contractors for the report period.
B82: Table 5 Safety related other - ESL, non ESL and ESMS ($ nominal - excluding margins and overheads)
B84: Asset group | C84: Category i.e., ESMS, ESL or non-ESL | D84: AER expected expenditure ($'000 2010) | E84: Actual ($'000 nominal) | F84: Variance ($'000 nominal) | G84: Reasons for variance
B85: Pole replacements (FC148) - subtransmission | C85: ESL | D85: 95.92196909 | E85: 194.4190072 | F85: =D85*$C$15-E85 -> -90.30715074 | G85: As per reasons provided in Tables 3 and 9
B86: Pole replacements (FC148) - HV | C86: ESL | D86: 399.6748712 | E86: 842.4823644 | F86: -408.6829626 | G86: As per reasons provided in Tables 3 and 9
B87: Pole replacements (FC148) - LV | C87: ESL | D87: 991.1936806 | E87: 1792.975288 | F87: -717.1527719 | G87: As per reasons provided in Tables 3 and 9
B88: Pole replacements (FC148) - pole and stay | C88: ESL | D88: 111.9089639 | E88: 0 | F88: 121.4638325 | G88: As per reasons provided in Tables 3 and 9
B89: Pole replacements (FC149) - staked | C89: ESL | D89: 312.218087 | E89: 426.1988 | F89: -87.32330606 | G89: As per reasons provided in Tables 3 and 9
B90: Crossarm replacements (FC155) | C90: ESL | D90: 1935.332602 | E90: 4353.79832 | F90: -2253.225615 | G90: As per reasons provided in Tables 3 and 9
B91: HV overhead conductor replacements | C91: ESL | D91: 612.6502806 | E91: 123.7449529 | F91: 541.2138533 | G91: Actuals driven by the Asset Inspection Program - EPDR values are estimates only
B92: LV overhead conductor replacements | C92: ESL | D92: 122.5300561 | E92: 44.67891707 | F92: 88.31284417 | G92: Actuals driven by the Asset Inspection Program - EPDR values are estimates only
B93: Replacement of SWER with ABC/underground cabling | F93: 0 | G93: Not Applicable
B94: Replacement of 22kV distribution feeders with ABC/underground cabling | F94: 0 | G94: Not Applicable
B95: <DNSP to input as appropriate> | C95: <DNSP to input as appropriate> | F95: 0
B97: Note - Reported expenditure is to be entered EXCLUDING any overheads, profit margins or management fees paid directly or indirectly to related party contractors for the report period.
B99: Table 6 Bushfire-related expenditure pass-through applications ($ nominal - margins and overheads)
B101: Asset group | C101: As approved under pass through ($'000 nominal) | D101: Actual ($'000 nominal) | E101: Variance ($'000 nominal) | F101: Reasons for variance
B102: Pole replacements (FC148) - subtransmission | E102: =C102-D102 -> 0
B103: Pole replacements (FC148) - HV | E103: 0
B104: Pole replacements (FC148) - LV | E104: 0
B105: Pole replacements (FC148) - pole and stay | E105: 0
B106: Pole replacements (FC149) - staked | E106: 0
B107: Crossarm replacements (FC155) | E107: 0
B108: HV overhead conductor replacements | E108: 0
B109: LV overhead conductor replacements | E109: 0
B110: Replacement of SWER with ABC/underground cabling | E110: 0
B111: Replacement of 22kV distribution feeders with ABC/underground cabling | E111: 0
B112: <DNSP to input as appropriate> | E112: 0
B114: Note -Reported expenditure to be entered is the sum of overheads, profit margins or management fees paid directly or indirectly to related party contractors for the report period.
B116: Table 7 Safety related other - ESL, non ESL and ESMS ($ nominal - margins and overheads)
B118: Asset group | C118: Category i.e., ESMS, ESL or non-ESL | D118: AER expected expenditure ($ 2010) | E118: Actual ($ nominal) | F118: Variance ($'000 nominal) | G118: Reasons for variance
B119: Pole replacements (FC148) - subtransmission | C119: ESL | D119: 19.68265486 | E119: 49.15173092 | F119: =D119*$C$15-E119 -> -27.7885567 | G119: As per reasons provided in Tables 3 and 9
B120: Pole replacements (FC148) - HV | C120: ESL | D120: 82.01106192 | E120: 212.990834 | F120: -123.9776081 | G120: As per reasons provided in Tables 3 and 9
B121: Pole replacements (FC148) - LV | C121: ESL | D121: 203.3874336 | E121: 453.2881851 | F121: -232.5353848 | G121: As per reasons provided in Tables 3 and 9
B122: Pole replacements (FC148) - pole and stay | C122: ESL | D122: 22.96309734 | E122: 0 | F122: 24.92370326 | G122: As per reasons provided in Tables 3 and 9
B123: Pole replacements (FC149) - staked | C123: ESL | D123: 67.19485501 | E123: 108.48955 | F123: -35.5575495 | G123: As per reasons provided in Tables 3 and 9
B124: Crossarm replacements (FC155) | C124: ESL | D124: 402.1769681 | E124: 1089.83858 | F124: -653.3234504 | G124: As per reasons provided in Tables 3 and 9
B125: HV overhead conductor replacements | C125: ESL | D125: 137.5291573 | E125: 24.99375339 | F125: 124.2777432 | G125: Actuals driven by the Asset Inspection Program - EPDR values are estimates only
B126: LV overhead conductor replacements | C126: ESL | D126: 27.50583146 | E126: 9.02415661 | F126: 20.83014271 | G126: Actuals driven by the Asset Inspection Program - EPDR values are estimates only
B127: Replacement of SWER with ABC/underground cabling | F127: 0 | G127: Not Applicable
B128: Replacement of 22kV distribution feeders with ABC/underground cabling | F128: 0 | G128: Not Applicable
B129: <DNSP to input as appropriate> | C129: <DNSP to input as appropriate> | F129: 0
B131: Note -Reported expenditure to be entered is the sum of overheads, profit margins or management fees paid directly or indirectly to related party contractors for the report period.
B133: Table 8 Bushfire-related expenditure including approved pass-through applications ($ unit cost)
B135: Asset group | C135: As approved under pass through applications ($'000 nominal) | D135: Actual ($'000 nominal) | E135: Variance ($'000 nominal) | F135: Reasons for variance
B136: Pole replacements (FC148) - subtransmission | E136: =C136-D136 -> 0
B137: Pole replacements (FC148) - HV | E137: 0
B138: Pole replacements (FC148) - LV | E138: 0
B139: Pole replacements (FC148) - pole and stay | E139: 0
B140: Pole replacements (FC149) - staked | E140: 0
B141: Crossarm replacements (FC155) | E141: 0
B142: HV overhead conductor replacements | E142: 0
B143: LV overhead conductor replacements | E143: 0
B144: Replacement of SWER with ABC/underground cabling | E144: 0
B145: Replacement of 22kV distribution feeders with ABC/underground cabling | E145: 0
B146: <DNSP to input as appropriate> | E146: 0
B148: Note - Where applicable, provide allocation assumptions and methods.
B149: Table 9 Safety related other - ESL, non ESL and ESMS ($ unit cost)
B151: Asset group | C151: Category i.e., ESMS, ESL or non-ESL | D151: AER expected expenditure ($'000 2010) | E151: Actual ($'000 nominal) | F151: Variance ($'000 nominal) | G151: Reasons for variance
B152: Pole replacements (FC148) - subtransmission | C152: ESL | D152: 8.641618837 | E152: 21.60211191 | F152: =D152*$C$15-E152 -> -12.22266538 | G152: Average actual cost is derived from settlment rules applied to actual costs of composite maintenance packages including items in addition to poles. Average cost varies with mix of pole types, locations and acess conditions.
B153: Pole replacements (FC148) - HV | C153: ESL | D153: 8.641618837 | E153: 21.60211191 | F153: -12.22266538
B154: Pole replacements (FC148) - LV | C154: ESL | D154: 8.641618837 | E154: 21.60211191 | F154: -12.22266538
B155: Pole replacements (FC148) - pole and stay | C155: ESL | D155: 8.641618837 | E155: 0 | F155: 9.379446526
B156: Pole replacements (FC149) - staked | C156: ESL | D156: 1.178181461 | E156: 0.8823991718 | F156: 0.396376277 | G156: No material variance
B157: Crossarm replacements (FC155) | C157: ESL | D157: 2.764760861 | E157: 3.711678022 | F157: -0.7108598725 | G157: Average actual cost is derived from settlment rules applied to actual costs of composite maintenance packages including items in addition to cross arms Average cost varies with mix of cross arm types, locations and acess conditions.
B158: HV overhead conductor replacements | C158: ESL | D158: 245.0601122 | F158: 265.9835225 | G158: Refer comments in table 3
B159: LV overhead conductor replacements | C159: ESL | D159: 245.0601122 | F159: 265.9835225 | G159: Refer comments in table 3
B160: Replacement of SWER with ABC/underground cabling | F160: 0 | G160: Not Applicable
B161: Replacement of 22kV distribution feeders with ABC/underground cabling | F161: 0 | G161: Not Applicable
B162: <DNSP to input as appropriate> | C162: <DNSP to input as appropriate> | F162: 0

Sheet 29. Unmetered supply
B1: CitiPower
B2: Unmetered Supply Tariff Quantity Data Template (Actual t-2)
B3: 0
D6: Qt-2
D7: NMIs | E7: Meters | F7: Lights
B8: Proposed tariff | D8: ActVolComp1 | E8: ActVolComp2 | F8: ActVolComp3
B9: metering data services - unmetered supplies | F9: 63645

Sheet 30. Actual t-2 Distr Tariff
B1: CitiPower
B2: Tariff Quantity Data Template (Actual t-2) Distribution Tariff Revenue
B3: 0
D5: Distribution Tariffs (Pt-2) | Z5: Actual Quantities (Qt-2) (INCLUDING boundary load adjustment) | AW5: Actual Revenue (P-2)*(Qt-2)
B6: Tariffs t-2 | D6: (t-2)Tar Fixed | E6: (t-2)Tar PkBlk1 | F6: (t-2)Tar PkBlk2 | G6: (t-2)Tar PkBlk3 | H6: (t-2)Tar PkBlk4 | I6: (t-2)Tar OPkBlk1 | J6: (t-2)Tar OPkBlk2 | K6: (t-2)Tar OPkBlk3 | L6: (t-2)Tar OPkBlk4 | M6: (t-2)Tar DemBlk1 | N6: (t-2)Tar DemBlk2 | O6: (t-2)Tar DemBlk3 | P6: (t-2)Tar DemBlk4 | Q6: (t-2)Tar SumBlk1 | R6: (t-2)Tar SumBlk2 | S6: (t-2)Tar SumBlk3 | T6: (t-2)Tar SumBlk4 | U6: (t-2)Tar WtrBlk1 | V6: (t-2)Tar WtrBlk2 | W6: (t-2)Tar WtrBlk3 | X6: (t-2)Tar WtrBlk4 | Z6: ActVol Fixed | AA6: ActVol PkBlk1 | AB6: ActVol PkBlk2 | AC6: ActVol PkBlk3 | AD6: ActVol PkBlk4 | AE6: ActVol OPkBlk1 | AF6: ActVol OPkBlk2 | AG6: ActVol OPkBlk3 | AH6: ActVol OPkBlk4 | AI6: ActVol DemBlk1 | AJ6: ActVol DemBlk2 | AK6: ActVol DemBlk3 | AL6: ActVol DemBlk4 | AM6: ActVol SumBlk1 | AN6: ActVol SumBlk2 | AO6: ActVol SumBlk3 | AP6: ActVol SumBlk4 | AQ6: ActVol WtrBlk1 | AR6: ActVol WtrBlk2 | AS6: ActVol WtrBlk3 | AT6: ActVol WtrBlk4 | AW6: ActRev Fixed | AX6: ActRev PkBlk1 | AY6: ActRev PkBlk2 | AZ6: ActRev PkBlk3 | BA6: ActRev PkBlk4 | BB6: ActRev OPkBlk1 | BC6: ActRev OPkBlk2 | BD6: ActRev OPkBlk3 | BE6: ActRev OPkBlk4 | BF6: ActRev DemBlk1 | BG6: ActRev DemBlk2 | BH6: ActRev DemBlk3 | BI6: ActRev DemBlk4 | BJ6: ActRev SumBlk2 | BK6: ActRev SumBlk3 | BL6: ActRev SumBlk4 | BM6: ActRev WtrBlk1 | BN6: ActRev WtrBlk2 | BO6: ActRev WtrBlk3 | BP6: ActRev WtrBlk4 | BQ6: ActRev DemBlk4 | BR6: ActRev Total
BR7: =SUM(AW7:BQ7) -> 0
A8: C1R | B8: Residential Single Rate | D8: 18.7913 | E8: 4.5615 | F8: 6.3795 | G8: 0 | H8: 0 | I8: 0 | J8: 0 | K8: 0 | L8: 0 | M8: 0 | N8: 0 | O8: 0 | P8: 0 | Q8: 0 | R8: 0 | S8: 0 | T8: 0 | U8: 0 | V8: 0 | W8: 0 | Z8: 197026.75 | AA8: 582858140.4 | AB8: 268327535.5 | AC8: 0 | AD8: 0 | AE8: 0 | AF8: 0 | AG8: 0 | AH8: 0 | AI8: 0 | AJ8: 0 | AK8: 0 | AL8: 0 | AM8: 0 | AN8: 0 | AO8: 0 | AP8: 0 | AQ8: 0 | AR8: 0 | AS8: 0 | AW8: 3712352.131 | AX8: 26554978.57 | AY8: 17155178.93 | AZ8: 0 | BA8: 0 | BB8: 0 | BC8: 0 | BD8: 0 | BE8: 0 | BF8: 0 | BG8: 0 | BH8: 0 | BI8: 0 | BJ8: 0 | BK8: 0 | BL8: 0 | BM8: 0 | BN8: 0 | BO8: 0 | BP8: 0 | BQ8: 0 | BR8: 47422509.64
A9: C1RB | B9: Residential Single Rate - Bulk | D9: 16.6158 | E9: 3.649 | F9: 4.992 | G9: 0 | H9: 0 | I9: 0 | J9: 0 | K9: 0 | L9: 0 | M9: 0 | N9: 0 | O9: 0 | P9: 0 | Q9: 0 | R9: 0 | S9: 0 | T9: 0 | U9: 0 | V9: 0 | W9: 0 | Z9: 28807.5 | AA9: 80449062.7 | AB9: 25363233.57 | AC9: 0 | AD9: 0 | AE9: 0 | AF9: 0 | AG9: 0 | AH9: 0 | AI9: 0 | AJ9: 0 | AK9: 0 | AL9: 0 | AM9: 0 | AN9: 0 | AO9: 0 | AP9: 0 | AQ9: 0 | AR9: 0 | AS9: 0 | AW9: 479856.0764 | AX9: 2931174.972 | AY9: 1266345.788 | AZ9: 0 | BA9: 0 | BB9: 0 | BC9: 0 | BD9: 0 | BE9: 0 | BF9: 0 | BG9: 0 | BH9: 0 | BI9: 0 | BJ9: 0 | BK9: 0 | BL9: 0 | BM9: 0 | BN9: 0 | BO9: 0 | BP9: 0 | BQ9: 0 | BR9: 4677376.836
A10: C13R | B10: Residential - flexible pricing | D10: 18.6196 | E10: 0 | F10: 0 | G10: 0 | H10: 0 | I10: 0 | J10: 0 | K10: 0 | L10: 0 | M10: 0 | N10: 0 | O10: 0 | P10: 0 | Q10: 8.1145 | R10: 4.0093 | S10: 1.0045 | T10: 0 | U10: 8.1145 | V10: 4.0093 | W10: 1.0045 | Z10: 19.33333333 | AA10: 0 | AB10: 0 | AC10: 0 | AD10: 0 | AE10: 0 | AF10: 0 | AG10: 0 | AH10: 0 | AI10: 0 | AJ10: 0 | AK10: 0 | AL10: 0 | AM10: 7832.709933 | AN10: 18088.8128 | AO10: 13441.67872 | AP10: 0 | AQ10: 2089.256466 | AR10: 4587.425099 | AS10: 3587.617841 | AW10: 136.0824373 | AX10: 0 | AY10: 0 | AZ10: 0 | BA10: 0 | BB10: 0 | BC10: 0 | BD10: 0 | BE10: 0 | BF10: 0 | BG10: 0 | BH10: 0 | BI10: 0 | BJ10: 634.0806565 | BK10: 722.6017664 | BL10: 134.0101204 | BM10: 0 | BN10: 169.6915277 | BO10: 183.9272433 | BP10: 36.01410903 | BQ10: 0 | BR10: 2016.407861
A11: C13RB | B11: Residential - flexible pricing bulk | D11: 16.0561 | E11: 0 | F11: 0 | G11: 0 | H11: 0 | I11: 0 | J11: 0 | K11: 0 | L11: 0 | M11: 0 | N11: 0 | O11: 0 | P11: 0 | Q11: 7.9522 | R11: 3.9291 | S11: 0.9291 | T11: 0 | U11: 7.9522 | V11: 3.9291 | W11: 0.9291 | Z11: 3 | AA11: 10.72196531 | AB11: 0 | AC11: 0 | AD11: 0 | AE11: 4.774765854 | AF11: 0 | AG11: 0 | AH11: 0 | AI11: 0 | AJ11: 0 | AK11: 0 | AL11: 0 | AM11: 336.9723018 | AN11: 907.9761047 | AO11: 587.0298157 | AP11: 0 | AQ11: 44.99074799 | AR11: 85.99568145 | AS11: 45.99562827 | AW11: -19.4206 | AX11: 0.79 | AY11: 0 | AZ11: 0 | BA11: 0 | BB11: 0.07 | BC11: 0 | BD11: 0 | BE11: 0 | BF11: 0 | BG11: 0 | BH11: 0 | BI11: 0 | BJ11: 26.68423438 | BK11: 35.74552113 | BL11: 5.465150018 | BM11: 0 | BN11: 3.617809262 | BO11: 3.39390032 | BP11: 0.4165933822 | BQ11: 0 | BR11: 56.76260849
A12: C2R | B12: Residential Two Rate 5d | D12: 43.0201 | E12: 8.8425 | F12: 8.8425 | G12: 0 | H12: 0 | I12: 0.8628 | J12: 0 | K12: 0 | L12: 0 | M12: 0 | N12: 0 | O12: 0 | P12: 0 | Q12: 0 | R12: 0 | S12: 0 | T12: 0 | U12: 0 | V12: 0 | W12: 0 | Z12: 11094.33333 | AA12: 25594302.05 | AB12: 13442251.67 | AC12: 0 | AD12: 0 | AE12: 55812353.03 | AF12: 0 | AG12: 0 | AH12: 0 | AI12: 0 | AJ12: 0 | AK12: 0 | AL12: 0 | AM12: 0 | AN12: 0 | AO12: 0 | AP12: 0 | AQ12: 0 | AR12: 0 | AS12: 0 | AW12: 478337.6727 | AX12: 2262565.278 | AY12: 1190931.701 | AZ12: 0 | BA12: 0 | BB12: 482085.1199 | BC12: 0 | BD12: 0 | BE12: 0 | BF12: 0 | BG12: 0 | BH12: 0 | BI12: 0 | BJ12: 0 | BK12: 0 | BL12: 0 | BM12: 0 | BN12: 0 | BO12: 0 | BP12: 0 | BQ12: 0 | BR12: 4413919.772
A13: C2RB | B13: Residential Two Rate 5d - Bulk | D13: 42.4101 | E13: 6.8482 | F13: 6.8482 | G13: 0 | H13: 0 | I13: 0.7253 | J13: 0 | K13: 0 | L13: 0 | M13: 0 | N13: 0 | O13: 0 | P13: 0 | Q13: 0 | R13: 0 | S13: 0 | T13: 0 | U13: 0 | V13: 0 | W13: 0 | Z13: 4376.666667 | AA13: 8830559.729 | AB13: 5176539.031 | AC13: 0 | AD13: 0 | AE13: 19958490.55 | AF13: 0 | AG13: 0 | AH13: 0 | AI13: 0 | AJ13: 0 | AK13: 0 | AL13: 0 | AM13: 0 | AN13: 0 | AO13: 0 | AP13: 0 | AQ13: 0 | AR13: 0 | AS13: 0 | AW13: 186501.6041 | AX13: 604978.1575 | AY13: 356108.1727 | AZ13: 0 | BA13: 0 | BB13: 144994.2382 | BC13: 0 | BD13: 0 | BE13: 0 | BF13: 0 | BG13: 0 | BH13: 0 | BI13: 0 | BJ13: 0 | BK13: 0 | BL13: 0 | BM13: 0 | BN13: 0 | BO13: 0 | BP13: 0 | BQ13: 0 | BR13: 1292582.172
A14: C3R | B14: Residential Interval | D14: 43.0201 | E14: 8.8425 | F14: 8.8425 | G14: 0 | H14: 0 | I14: 0.8628 | J14: 0 | K14: 0 | L14: 0 | M14: 0 | N14: 0 | O14: 0 | P14: 0 | Q14: 0 | R14: 0 | S14: 0 | T14: 0 | U14: 0 | V14: 0 | W14: 0 | Z14: 16379.91667 | AA14: 38805325.51 | AB14: 20687406.3 | AC14: 0 | AD14: 0 | AE14: 51088869.72 | AF14: 0 | AG14: 0 | AH14: 0 | AI14: 0 | AJ14: 0 | AK14: 0 | AL14: 0 | AM14: 0 | AN14: 0 | AO14: 0 | AP14: 0 | AQ14: 0 | AR14: 0 | AS14: 0 | AW14: 707967.5092 | AX14: 3427714.64 | AY14: 1826325.633 | AZ14: 0 | BA14: 0 | BB14: 439836.9109 | BC14: 0 | BD14: 0 | BE14: 0 | BF14: 0 | BG14: 0 | BH14: 0 | BI14: 0 | BJ14: 0 | BK14: 0 | BL14: 0 | BM14: 0 | BN14: 0 | BO14: 0 | BP14: 0 | BQ14: 0 | BR14: 6401844.693
A15: C3RB | B15: Residential Interval - Bulk | D15: 42.4101 | E15: 6.8482 | F15: 6.8482 | G15: 0 | H15: 0 | I15: 0.7253 | J15: 0 | K15: 0 | L15: 0 | M15: 0 | N15: 0 | O15: 0 | P15: 0 | Q15: 0 | R15: 0 | S15: 0 | T15: 0 | U15: 0 | V15: 0 | W15: 0 | Z15: 7954.166667 | AA15: 11471877.71 | AB15: 2127260.31 | AC15: 0 | AD15: 0 | AE15: 12762958.01 | AF15: 0 | AG15: 0 | AH15: 0 | AI15: 0 | AJ15: 0 | AK15: 0 | AL15: 0 | AM15: 0 | AN15: 0 | AO15: 0 | AP15: 0 | AQ15: 0 | AR15: 0 | AS15: 0 | AW15: 338562.2147 | AX15: 786381.3796 | AY15: 145673.1955 | AZ15: 0 | BA15: 0 | BB15: 92712.04936 | BC15: 0 | BD15: 0 | BE15: 0 | BF15: 0 | BG15: 0 | BH15: 0 | BI15: 0 | BJ15: 0 | BK15: 0 | BL15: 0 | BM15: 0 | BN15: 0 | BO15: 0 | BP15: 0 | BQ15: 0 | BR15: 1363328.839
A16: C2ROP | B16: Residential Two Rate 5d - Controlled Load | D16: 0 | E16: 0 | F16: 0 | G16: 0 | H16: 0 | I16: 0.8628 | J16: 0 | K16: 0 | L16: 0 | M16: 0 | N16: 0 | O16: 0 | P16: 0 | Q16: 0 | R16: 0 | S16: 0 | T16: 0 | U16: 0 | V16: 0 | W16: 0 | Z16: 0 | AA16: 0 | AB16: 0 | AC16: 0 | AD16: 0 | AE16: 0 | AF16: 0 | AG16: 0 | AH16: 0 | AI16: 0 | AJ16: 0 | AK16: 0 | AL16: 0 | AM16: 0 | AN16: 0 | AO16: 0 | AP16: 0 | AQ16: 0 | AR16: 0 | AS16: 0 | AW16: 0 | AX16: 0 | AY16: 0 | AZ16: 0 | BA16: 0 | BB16: 0 | BC16: 0 | BD16: 0 | BE16: 0 | BF16: 0 | BG16: 0 | BH16: 0 | BI16: 0 | BJ16: 0 | BK16: 0 | BL16: 0 | BM16: 0 | BN16: 0 | BO16: 0 | BP16: 0 | BQ16: 0 | BR16: 0
A17: C2RBOP | B17: Residential Two Rate 5d - Bulk - Controlled Load | D17: 0 | E17: 0 | F17: 0 | G17: 0 | H17: 0 | I17: 0.7253 | J17: 0 | K17: 0 | L17: 0 | M17: 0 | N17: 0 | O17: 0 | P17: 0 | Q17: 0 | R17: 0 | S17: 0 | T17: 0 | U17: 0 | V17: 0 | W17: 0 | Z17: 0 | AA17: 0 | AB17: 0 | AC17: 0 | AD17: 0 | AE17: 0 | AF17: 0 | AG17: 0 | AH17: 0 | AI17: 0 | AJ17: 0 | AK17: 0 | AL17: 0 | AM17: 0 | AN17: 0 | AO17: 0 | AP17: 0 | AQ17: 0 | AR17: 0 | AS17: 0 | AW17: 0 | AX17: 0 | AY17: 0 | AZ17: 0 | BA17: 0 | BB17: 0 | BC17: 0 | BD17: 0 | BE17: 0 | BF17: 0 | BG17: 0 | BH17: 0 | BI17: 0 | BJ17: 0 | BK17: 0 | BL17: 0 | BM17: 0 | BN17: 0 | BO17: 0 | BP17: 0 | BQ17: 0 | BR17: 0
A18: CDS | B18: Dedicated Circuit | D18: 0 | E18: 0 | F18: 0 | G18: 0 | H18: 0 | I18: 0.9215 | J18: 0 | K18: 0 | L18: 0 | M18: 0 | N18: 0 | O18: 0 | P18: 0 | Q18: 0 | R18: 0 | S18: 0 | T18: 0 | U18: 0 | V18: 0 | W18: 0 | Z18: 24861.16667 | AA18: 0 | AB18: 0 | AC18: 0 | AD18: 0 | AE18: 44164139.79 | AF18: 0 | AG18: 0 | AH18: 0 | AI18: 0 | AJ18: 0 | AK18: 0 | AL18: 0 | AM18: 0 | AN18: 0 | AO18: 0 | AP18: 0 | AQ18: 0 | AR18: 0 | AS18: 0 | AW18: 0 | AX18: 0 | AY18: 0 | AZ18: 0 | BA18: 0 | BB18: 406439.5804 | BC18: 0 | BD18: 0 | BE18: 0 | BF18: 0 | BG18: 0 | BH18: 0 | BI18: 0 | BJ18: 0 | BK18: 0 | BL18: 0 | BM18: 0 | BN18: 0 | BO18: 0 | BP18: 0 | BQ18: 0 | BR18: 406439.5804
A19: CDSB | B19: Dedicated Circuit - Bulk | D19: 0 | E19: 0 | F19: 0 | G19: 0 | H19: 0 | I19: 0.8078 | J19: 0 | K19: 0 | L19: 0 | M19: 0 | N19: 0 | O19: 0 | P19: 0 | Q19: 0 | R19: 0 | S19: 0 | T19: 0 | U19: 0 | V19: 0 | W19: 0 | Z19: 1184.583333 | AA19: 0 | AB19: 0 | AC19: 0 | AD19: 0 | AE19: 2607201.063 | AF19: 0 | AG19: 0 | AH19: 0 | AI19: 0 | AJ19: 0 | AK19: 0 | AL19: 0 | AM19: 0 | AN19: 0 | AO19: 0 | AP19: 0 | AQ19: 0 | AR19: 0 | AS19: 0 | AW19: 0 | AX19: 0 | AY19: 0 | AZ19: 0 | BA19: 0 | BB19: 21090.48839 | BC19: 0 | BD19: 0 | BE19: 0 | BF19: 0 | BG19: 0 | BH19: 0 | BI19: 0 | BJ19: 0 | BK19: 0 | BL19: 0 | BM19: 0 | BN19: 0 | BO19: 0 | BP19: 0 | BQ19: 0 | BR19: 21090.48839
A20: C1G | B20: Non-Residential Single Rate | D20: 42.7469 | E20: 5.1493 | F20: 5.1493 | G20: 0 | H20: 0 | I20: 0 | J20: 0 | K20: 0 | L20: 0 | M20: 0 | N20: 0 | O20: 0 | P20: 0 | Q20: 0 | R20: 0 | S20: 0 | T20: 0 | U20: 0 | V20: 0 | W20: 0 | Z20: 19235.08333 | AA20: 63756782.87 | AB20: 248222728.2 | AC20: 0 | AD20: 0 | AE20: 0 | AF20: 0 | AG20: 0 | AH20: 0 | AI20: 0 | AJ20: 0 | AK20: 0 | AL20: 0 | AM20: 0 | AN20: 0 | AO20: 0 | AP20: 0 | AQ20: 0 | AR20: 0 | AS20: 0 | AW20: 816676.7404 | AX20: 3284671.708 | AY20: 12799674.86 | AZ20: 0 | BA20: 0 | BB20: 0 | BC20: 0 | BD20: 0 | BE20: 0 | BF20: 0 | BG20: 0 | BH20: 0 | BI20: 0 | BJ20: 0 | BK20: 0 | BL20: 0 | BM20: 0 | BN20: 0 | BO20: 0 | BP20: 0 | BQ20: 0 | BR20: 16901023.31
A21: C1GB | B21: Non-Residential Single Rate - Bulk | D21: 36.459 | E21: 4.1548 | F21: 4.1548 | G21: 0 | H21: 0 | I21: 0 | J21: 0 | K21: 0 | L21: 0 | M21: 0 | N21: 0 | O21: 0 | P21: 0 | Q21: 0 | R21: 0 | S21: 0 | T21: 0 | U21: 0 | V21: 0 | W21: 0 | Z21: 5761.166667 | AA21: 18569558.02 | AB21: 110287604.8 | AC21: 0 | AD21: 0 | AE21: 0 | AF21: 0 | AG21: 0 | AH21: 0 | AI21: 0 | AJ21: 0 | AK21: 0 | AL21: 0 | AM21: 0 | AN21: 0 | AO21: 0 | AP21: 0 | AQ21: 0 | AR21: 0 | AS21: 0 | AW21: 210259.6878 | AX21: 773367.1006 | AY21: 4586492.362 | AZ21: 0 | BA21: 0 | BB21: 0 | BC21: 0 | BD21: 0 | BE21: 0 | BF21: 0 | BG21: 0 | BH21: 0 | BI21: 0 | BJ21: 0 | BK21: 0 | BL21: 0 | BM21: 0 | BN21: 0 | BO21: 0 | BP21: 0 | BQ21: 0 | BR21: 5570119.15
A22: C2G5 | B22: Non-Residential Two Rate 5d | D22: 101.5193 | E22: 7.5938 | F22: 7.5938 | G22: 0 | H22: 0 | I22: 1.4938 | J22: 0 | K22: 0 | L22: 0 | M22: 0 | N22: 0 | O22: 0 | P22: 0 | Q22: 0 | R22: 0 | S22: 0 | T22: 0 | U22: 0 | V22: 0 | W22: 0 | Z22: 12100.08333 | AA22: 36741317.76 | AB22: 305044389.5 | AC22: 0 | AD22: 0 | AE22: 242600209.6 | AF22: 0 | AG22: 0 | AH22: 0 | AI22: 0 | AJ22: 0 | AK22: 0 | AL22: 0 | AM22: 0 | AN22: 0 | AO22: 0 | AP22: 0 | AQ22: 0 | AR22: 0 | AS22: 0 | AW22: 1172179.957 | AX22: 2870808.936 | AY22: 23211964.75 | AZ22: 0 | BA22: 0 | BB22: 3656284.021 | BC22: 0 | BD22: 0 | BE22: 0 | BF22: 0 | BG22: 0 | BH22: 0 | BI22: 0 | BJ22: 0 | BK22: 0 | BL22: 0 | BM22: 0 | BN22: 0 | BO22: 0 | BP22: 0 | BQ22: 0 | BR22: 30911237.66
A23: C2G5B | B23: Non-Residential Two Rate 5d - Bulk | D23: 97.0591 | E23: 5.9493 | F23: 5.9493 | G23: 0 | H23: 0 | I23: 1.1543 | J23: 0 | K23: 0 | L23: 0 | M23: 0 | N23: 0 | O23: 0 | P23: 0 | Q23: 0 | R23: 0 | S23: 0 | T23: 0 | U23: 0 | V23: 0 | W23: 0 | Z23: 2162.833333 | AA23: 7866604.082 | AB23: 112257497.2 | AC23: 0 | AD23: 0 | AE23: 79896756.96 | AF23: 0 | AG23: 0 | AH23: 0 | AI23: 0 | AJ23: 0 | AK23: 0 | AL23: 0 | AM23: 0 | AN23: 0 | AO23: 0 | AP23: 0 | AQ23: 0 | AR23: 0 | AS23: 0 | AW23: 210492.8412 | AX23: 468910.5437 | AY23: 6679759.028 | AZ23: 0 | BA23: 0 | BB23: 921400.0238 | BC23: 0 | BD23: 0 | BE23: 0 | BF23: 0 | BG23: 0 | BH23: 0 | BI23: 0 | BJ23: 0 | BK23: 0 | BL23: 0 | BM23: 0 | BN23: 0 | BO23: 0 | BP23: 0 | BQ23: 0 | BR23: 8280562.437
A24: C3G | B24: Non-Residential Interval | D24: 101.5193 | E24: 7.5938 | F24: 7.5938 | G24: 0 | H24: 0 | I24: 1.4938 | J24: 0 | K24: 0 | L24: 0 | M24: 0 | N24: 0 | O24: 0 | P24: 0 | Q24: 0 | R24: 0 | S24: 0 | T24: 0 | U24: 0 | V24: 0 | W24: 0 | Z24: 5292.916667 | AA24: 15950683.35 | AB24: 100464660.9 | AC24: 0 | AD24: 0 | AE24: 75064884.61 | AF24: 0 | AG24: 0 | AH24: 0 | AI24: 0 | AJ24: 0 | AK24: 0 | AL24: 0 | AM24: 0 | AN24: 0 | AO24: 0 | AP24: 0 | AQ24: 0 | AR24: 0 | AS24: 0 | AW24: 540065.0386 | AX24: 1214055.324 | AY24: 7642576.921 | AZ24: 0 | BA24: 0 | BB24: 1123666.378 | BC24: 0 | BD24: 0 | BE24: 0 | BF24: 0 | BG24: 0 | BH24: 0 | BI24: 0 | BJ24: 0 | BK24: 0 | BL24: 0 | BM24: 0 | BN24: 0 | BO24: 0 | BP24: 0 | BQ24: 0 | BR24: 10520363.66
A25: C3GB | B25: Non-Residential Interval - Bulk | D25: 97.0591 | E25: 5.9493 | F25: 5.9493 | G25: 0 | H25: 0 | I25: 1.1543 | J25: 0 | K25: 0 | L25: 0 | M25: 0 | N25: 0 | O25: 0 | P25: 0 | Q25: 0 | R25: 0 | S25: 0 | T25: 0 | U25: 0 | V25: 0 | W25: 0 | Z25: 3098.083333 | AA25: 10755094.66 | AB25: 175353412.5 | AC25: 0 | AD25: 0 | AE25: 120981821.4 | AF25: 0 | AG25: 0 | AH25: 0 | AI25: 0 | AJ25: 0 | AK25: 0 | AL25: 0 | AM25: 0 | AN25: 0 | AO25: 0 | AP25: 0 | AQ25: 0 | AR25: 0 | AS25: 0 | AW25: 301390.7945 | AX25: 641926.2085 | AY25: 10459038.78 | AZ25: 0 | BA25: 0 | BB25: 1399546.752 | BC25: 0 | BD25: 0 | BE25: 0 | BF25: 0 | BG25: 0 | BH25: 0 | BI25: 0 | BJ25: 0 | BK25: 0 | BL25: 0 | BM25: 0 | BN25: 0 | BO25: 0 | BP25: 0 | BQ25: 0 | BR25: 12801902.53
A26: C2G7 | B26: Non-Residential Two Rate 7d | D26: 92.2019 | E26: 5.2867 | F26: 5.2867 | G26: 0 | H26: 0 | I26: 1.3554 | J26: 0 | K26: 0 | L26: 0 | M26: 0 | N26: 0 | O26: 0 | P26: 0 | Q26: 0 | R26: 0 | S26: 0 | T26: 0 | U26: 0 | V26: 0 | W26: 0 | Z26: 3234.166667 | AA26: 12159469.61 | AB26: 94979894.63 | AC26: 0 | AD26: 0 | AE26: 27758243.6 | AF26: 0 | AG26: 0 | AH26: 0 | AI26: 0 | AJ26: 0 | AK26: 0 | AL26: 0 | AM26: 0 | AN26: 0 | AO26: 0 | AP26: 0 | AQ26: 0 | AR26: 0 | AS26: 0 | AW26: 299868.7827 | AX26: 638535.008 | AY26: 5027086.857 | AZ26: 0 | BA26: 0 | BB26: 376182.261 | BC26: 0 | BD26: 0 | BE26: 0 | BF26: 0 | BG26: 0 | BH26: 0 | BI26: 0 | BJ26: 0 | BK26: 0 | BL26: 0 | BM26: 0 | BN26: 0 | BO26: 0 | BP26: 0 | BQ26: 0 | BR26: 6341672.908
A27: C2G7B | B27: Non-Residential Two Rate 7d - Bulk | D27: 84.8034 | E27: 4.105 | F27: 4.105 | G27: 0 | H27: 0 | I27: 1.0339 | J27: 0 | K27: 0 | L27: 0 | M27: 0 | N27: 0 | O27: 0 | P27: 0 | Q27: 0 | R27: 0 | S27: 0 | T27: 0 | U27: 0 | V27: 0 | W27: 0 | Z27: 465.3333333 | AA27: 1726714.62 | AB27: 26017382.7 | AC27: 0 | AD27: 0 | AE27: 7434724.372 | AF27: 0 | AG27: 0 | AH27: 0 | AI27: 0 | AJ27: 0 | AK27: 0 | AL27: 0 | AM27: 0 | AN27: 0 | AO27: 0 | AP27: 0 | AQ27: 0 | AR27: 0 | AS27: 0 | AW27: 39892.67905 | AX27: 70972.3742 | AY27: 1069146.607 | AZ27: 0 | BA27: 0 | BB27: 76945.66158 | BC27: 0 | BD27: 0 | BE27: 0 | BF27: 0 | BG27: 0 | BH27: 0 | BI27: 0 | BJ27: 0 | BK27: 0 | BL27: 0 | BM27: 0 | BN27: 0 | BO27: 0 | BP27: 0 | BQ27: 0 | BR27: 1256957.322
A28: C2U | B28: Unmetered Supplies / Public Lighting | D28: 0 | E28: 6.4797 | F28: 6.4797 | G28: 0 | H28: 0 | I28: 1.6637 | J28: 0 | K28: 0 | L28: 0 | M28: 0 | N28: 0 | O28: 0 | P28: 0 | Q28: 0 | R28: 0 | S28: 0 | T28: 0 | U28: 0 | V28: 0 | W28: 0 | Z28: 1153.166667 | AA28: 1695368.685 | AB28: 9427877.267 | AC28: 0 | AD28: 0 | AE28: 27899124.55 | AF28: 0 | AG28: 0 | AH28: 0 | AI28: 0 | AJ28: 0 | AK28: 0 | AL28: 0 | AM28: 0 | AN28: 0 | AO28: 0 | AP28: 0 | AQ28: 0 | AR28: 0 | AS28: 0 | AW28: 0 | AX28: 209114.8609 | AY28: 611603.4817 | AZ28: 0 | BA28: 0 | BB28: 492228.7226 | BC28: 0 | BD28: 0 | BE28: 0 | BF28: 0 | BG28: 0 | BH28: 0 | BI28: 0 | BJ28: 0 | BK28: 0 | BL28: 0 | BM28: 0 | BN28: 0 | BO28: 0 | BP28: 0 | BQ28: 0 | BR28: 1312947.065
A29: C2L7 | B29: Large Two Rate 7d | D29: 88.0454 | E29: 4.774 | F29: 4.774 | G29: 0 | H29: 0 | I29: 1.3889 | J29: 0 | K29: 0 | L29: 0 | M29: 0 | N29: 0 | O29: 0 | P29: 0 | Q29: 0 | R29: 0 | S29: 0 | T29: 0 | U29: 0 | V29: 0 | W29: 0 | Z29: 47.75 | AA29: 192752.5252 | AB29: 17039376.67 | AC29: 0 | AD29: 0 | AE29: 4450181.676 | AF29: 0 | AG29: 0 | AH29: 0 | AI29: 0 | AJ29: 0 | AK29: 0 | AL29: 0 | AM29: 0 | AN29: 0 | AO29: 0 | AP29: 0 | AQ29: 0 | AR29: 0 | AS29: 0 | AW29: 4174.00802 | AX29: 9205.348549 | AY29: 820542.7553 | AZ29: 0 | BA29: 0 | BB29: 61965.84925 | BC29: 0 | BD29: 0 | BE29: 0 | BF29: 0 | BG29: 0 | BH29: 0 | BI29: 0 | BJ29: 0 | BK29: 0 | BL29: 0 | BM29: 0 | BN29: 0 | BO29: 0 | BP29: 0 | BQ29: 0 | BR29: 895887.9611
A30: C2DL | B30: Large Low Voltage Demand | D30: 0 | E30: 1.1758 | F30: 1.1758 | G30: 0 | H30: 0 | I30: 1.178 | J30: 0 | K30: 0 | L30: 0 | M30: 67.6158 | N30: 0 | O30: 0 | P30: 0 | Q30: 0 | R30: 0 | S30: 0 | T30: 0 | U30: 0 | V30: 0 | W30: 0 | Z30: 225.4166667 | AA30: 916910.8427 | AB30: 85230852.05 | AC30: 0 | AD30: 0 | AE30: 67352509.51 | AF30: 0 | AG30: 0 | AH30: 0 | AI30: 54471.13067 | AJ30: 0 | AK30: 0 | AL30: 0 | AM30: 0 | AN30: 0 | AO30: 0 | AP30: 0 | AQ30: 0 | AR30: 0 | AS30: 0 | AW30: 0 | AX30: 10766.25279 | AY30: 1001199.786 | AZ30: 0 | BA30: 0 | BB30: 793305.6105 | BC30: 0 | BD30: 0 | BE30: 0 | BF30: 3599347.69 | BG30: 0 | BH30: 0 | BI30: 0 | BJ30: 0 | BK30: 0 | BL30: 0 | BM30: 0 | BN30: 0 | BO30: 0 | BP30: 0 | BQ30: 0 | BR30: 5404619.339
A31: C2DLB | B31: Large Low Voltage Demand - Bulk | D31: 0 | E31: 0.6804 | F31: 0.6804 | G31: 0 | H31: 0 | I31: 1.0797 | J31: 0 | K31: 0 | L31: 0 | M31: 61.8602 | N31: 0 | O31: 0 | P31: 0 | Q31: 0 | R31: 0 | S31: 0 | T31: 0 | U31: 0 | V31: 0 | W31: 0 | Z31: 1243.416667 | AA31: 5699132.908 | AB31: 1046695872 | AC31: 0 | AD31: 0 | AE31: 773135708.1 | AF31: 0 | AG31: 0 | AH31: 0 | AI31: 637623.168 | AJ31: 0 | AK31: 0 | AL31: 0 | AM31: 0 | AN31: 0 | AO31: 0 | AP31: 0 | AQ31: 0 | AR31: 0 | AS31: 0 | AW31: 0 | AX31: 39176.50636 | AY31: 7106054.483 | AZ31: 0 | BA31: 0 | BB31: 8347362.421 | BC31: 0 | BD31: 0 | BE31: 0 | BF31: 38376208.43 | BG31: 0 | BH31: 0 | BI31: 0 | BJ31: 0 | BK31: 0 | BL31: 0 | BM31: 0 | BN31: 0 | BO31: 0 | BP31: 0 | BQ31: 0 | BR31: 53868801.84
A32: C2DLER | B32: Large Low Voltage Demand R | D32: 0 | E32: 1.2559 | F32: 1.2559 | G32: 0 | H32: 0 | I32: 1.2841 | J32: 0 | K32: 0 | L32: 0 | M32: 72.4935 | N32: 0 | O32: 0 | P32: 0 | Q32: 0 | R32: 0 | S32: 0 | T32: 0 | U32: 0 | V32: 0 | W32: 0 | Z32: 0 | AA32: 0 | AB32: 0 | AC32: 0 | AD32: 0 | AE32: 0 | AF32: 0 | AG32: 0 | AH32: 0 | AI32: 0 | AJ32: 0 | AK32: 0 | AL32: 0 | AM32: 0 | AN32: 0 | AO32: 0 | AP32: 0 | AQ32: 0 | AR32: 0 | AS32: 0 | AW32: 0 | AX32: 0 | AY32: 0 | AZ32: 0 | BA32: 0 | BB32: 0 | BC32: 0 | BD32: 0 | BE32: 0 | BF32: 0 | BG32: 0 | BH32: 0 | BI32: 0 | BJ32: 0 | BK32: 0 | BL32: 0 | BM32: 0 | BN32: 0 | BO32: 0 | BP32: 0 | BQ32: 0 | BR32: 0
A33: C2DLEG | B33: Large Low Voltage Demand G | D33: 0 | E33: 1.2559 | F33: 1.2559 | G33: 0 | H33: 0 | I33: 1.2841 | J33: 0 | K33: 0 | L33: 0 | M33: 72.4935 | N33: 0 | O33: 0 | P33: 0 | Q33: 0 | R33: 0 | S33: 0 | T33: 0 | U33: 0 | V33: 0 | W33: 0 | Z33: 9.416666667 | AA33: 32003.86325 | AB33: 3048113.289 | AC33: 0 | AD33: 0 | AE33: 3171851.908 | AF33: 0 | AG33: 0 | AH33: 0 | AI33: 1899.53 | AJ33: 0 | AK33: 0 | AL33: 0 | AM33: 0 | AN33: 0 | AO33: 0 | AP33: 0 | AQ33: 0 | AR33: 0 | AS33: 0 | AW33: 0 | AX33: 399.1668027 | AY33: 38105.59729 | AZ33: 0 | BA33: 0 | BB33: 40739.1394 | BC33: 0 | BD33: 0 | BE33: 0 | BF33: 91325.28459 | BG33: 0 | BH33: 0 | BI33: 0 | BJ33: 0 | BK33: 0 | BL33: 0 | BM33: 0 | BN33: 0 | BO33: 0 | BP33: 0 | BQ33: 0 | BR33: 170569.1881
A34: C2DLBER | B34: Large Low Voltage Demand - Bulk R | D34: 0 | E34: 0.7277 | F34: 0.7277 | G34: 0 | H34: 0 | I34: 1.1792 | J34: 0 | K34: 0 | L34: 0 | M34: 66.3215 | N34: 0 | O34: 0 | P34: 0 | Q34: 0 | R34: 0 | S34: 0 | T34: 0 | U34: 0 | V34: 0 | W34: 0 | Z34: 0 | AA34: 0 | AB34: 0 | AC34: 0 | AD34: 0 | AE34: 0 | AF34: 0 | AG34: 0 | AH34: 0 | AI34: 0 | AJ34: 0 | AK34: 0 | AL34: 0 | AM34: 0 | AN34: 0 | AO34: 0 | AP34: 0 | AQ34: 0 | AR34: 0 | AS34: 0 | AW34: 0 | AX34: 0 | AY34: 0 | AZ34: 0 | BA34: 0 | BB34: 0 | BC34: 0 | BD34: 0 | BE34: 0 | BF34: 0 | BG34: 0 | BH34: 0 | BI34: 0 | BJ34: 0 | BK34: 0 | BL34: 0 | BM34: 0 | BN34: 0 | BO34: 0 | BP34: 0 | BQ34: 0 | BR34: 0
A35: C2DLBEG | B35: Large Low Voltage Demand - Bulk G | D35: 0 | E35: 0.7277 | F35: 0.7277 | G35: 0 | H35: 0 | I35: 1.1792 | J35: 0 | K35: 0 | L35: 0 | M35: 66.3215 | N35: 0 | O35: 0 | P35: 0 | Q35: 0 | R35: 0 | S35: 0 | T35: 0 | U35: 0 | V35: 0 | W35: 0 | Z35: 107.25 | AA35: 421167.6709 | AB35: 64118462.63 | AC35: 0 | AD35: 0 | AE35: 48901371.5 | AF35: 0 | AG35: 0 | AH35: 0 | AI35: 37200.30667 | AJ35: 0 | AK35: 0 | AL35: 0 | AM35: 0 | AN35: 0 | AO35: 0 | AP35: 0 | AQ35: 0 | AR35: 0 | AS35: 0 | AW35: 0 | AX35: 3064.341514 | AY35: 465556.0317 | AZ35: 0 | BA35: 0 | BB35: 576620.049 | BC35: 0 | BD35: 0 | BE35: 0 | BF35: 2411329.018 | BG35: 0 | BH35: 0 | BI35: 0 | BJ35: 0 | BK35: 0 | BL35: 0 | BM35: 0 | BN35: 0 | BO35: 0 | BP35: 0 | BQ35: 0 | BR35: 3456569.441
A36: C2DH | B36: High Voltage Demand | D36: 0 | E36: 0.3306 | F36: 0.3306 | G36: 0 | H36: 0 | I36: 0.4851 | J36: 0 | K36: 0 | L36: 0 | M36: 43.9387 | N36: 0 | O36: 0 | P36: 0 | Q36: 0 | R36: 0 | S36: 0 | T36: 0 | U36: 0 | V36: 0 | W36: 0 | Z36: 73 | AA36: 291397.125 | AB36: 269138604.5 | AC36: 0 | AD36: 0 | AE36: 265068965.8 | AF36: 0 | AG36: 0 | AH36: 0 | AI36: 184119.7486 | AJ36: 0 | AK36: 0 | AL36: 0 | AM36: 0 | AN36: 0 | AO36: 0 | AP36: 0 | AQ36: 0 | AR36: 0 | AS36: 0 | AW36: 0 | AX36: 964.857454 | AY36: 883890.4322 | AZ36: 0 | BA36: 0 | BB36: 1286026.494 | BC36: 0 | BD36: 0 | BE36: 0 | BF36: 7872334.738 | BG36: 0 | BH36: 0 | BI36: 0 | BJ36: 0 | BK36: 0 | BL36: 0 | BM36: 0 | BN36: 0 | BO36: 0 | BP36: 0 | BQ36: 0 | BR36: 10043216.52
A37: C2DHD1 | B37: High Voltage Demand D1 | D37: 0 | E37: 0.0824 | F37: 0.0824 | G37: 0 | H37: 0 | I37: 0.0756 | J37: 0 | K37: 0 | L37: 0 | M37: 27.5879 | N37: 0 | O37: 0 | P37: 0 | Q37: 0 | R37: 0 | S37: 0 | T37: 0 | U37: 0 | V37: 0 | W37: 0 | Z37: 0 | AA37: 0 | AB37: 0 | AC37: 0 | AD37: 0 | AE37: 0 | AF37: 0 | AG37: 0 | AH37: 0 | AI37: 0 | AJ37: 0 | AK37: 0 | AL37: 0 | AM37: 0 | AN37: 0 | AO37: 0 | AP37: 0 | AQ37: 0 | AR37: 0 | AS37: 0 | AW37: 0 | AX37: 0 | AY37: 0 | AZ37: 0 | BA37: 0 | BB37: 0 | BC37: 0 | BD37: 0 | BE37: 0 | BF37: 0 | BG37: 0 | BH37: 0 | BI37: 0 | BJ37: 0 | BK37: 0 | BL37: 0 | BM37: 0 | BN37: 0 | BO37: 0 | BP37: 0 | BQ37: 0 | BR37: 0
A38: C2DHER | B38: High Voltage Demand R | D38: 0 | E38: 0.3565 | F38: 0.3565 | G38: 0 | H38: 0 | I38: 0.5348 | J38: 0 | K38: 0 | L38: 0 | M38: 47.1082 | N38: 0 | O38: 0 | P38: 0 | Q38: 0 | R38: 0 | S38: 0 | T38: 0 | U38: 0 | V38: 0 | W38: 0 | Z38: 0 | AA38: 0 | AB38: 0 | AC38: 0 | AD38: 0 | AE38: 0 | AF38: 0 | AG38: 0 | AH38: 0 | AI38: 0 | AJ38: 0 | AK38: 0 | AL38: 0 | AM38: 0 | AN38: 0 | AO38: 0 | AP38: 0 | AQ38: 0 | AR38: 0 | AS38: 0 | AW38: 0 | AX38: 0 | AY38: 0 | AZ38: 0 | BA38: 0 | BB38: 0 | BC38: 0 | BD38: 0 | BE38: 0 | BF38: 0 | BG38: 0 | BH38: 0 | BI38: 0 | BJ38: 0 | BK38: 0 | BL38: 0 | BM38: 0 | BN38: 0 | BO38: 0 | BP38: 0 | BQ38: 0 | BR38: 0
A39: C2DHEG | B39: High Voltage Demand G | D39: 0 | E39: 0.3565 | F39: 0.3565 | G39: 0 | H39: 0 | I39: 0.5348 | J39: 0 | K39: 0 | L39: 0 | M39: 47.1082 | N39: 0 | O39: 0 | P39: 0 | Q39: 0 | R39: 0 | S39: 0 | T39: 0 | U39: 0 | V39: 0 | W39: 0 | Z39: 1 | AA39: 4075.853721 | AB39: 5996274.318 | AC39: 0 | AD39: 0 | AE39: 2911402.555 | AF39: 0 | AG39: 0 | AH39: 0 | AI39: 3600 | AJ39: 0 | AK39: 0 | AL39: 0 | AM39: 0 | AN39: 0 | AO39: 0 | AP39: 0 | AQ39: 0 | AR39: 0 | AS39: 0 | AW39: 0 | AX39: 14.51199078 | AY39: 21220.70102 | AZ39: 0 | BA39: 0 | BB39: 15570.89371 | BC39: 0 | BD39: 0 | BE39: 0 | BF39: 169609.05 | BG39: 0 | BH39: 0 | BI39: 0 | BJ39: 0 | BK39: 0 | BL39: 0 | BM39: 0 | BN39: 0 | BO39: 0 | BP39: 0 | BQ39: 0 | BR39: 206415.1567
A40: C2DT | B40: Subtransmission Demand | D40: 0 | E40: 0.1026 | F40: 0.1026 | G40: 0 | H40: 0 | I40: 0.1524 | J40: 0 | K40: 0 | L40: 0 | M40: 10.1573 | N40: 0 | O40: 0 | P40: 0 | Q40: 0 | R40: 0 | S40: 0 | T40: 0 | U40: 0 | V40: 0 | W40: 0 | Z40: 7 | AA40: 28531.00672 | AB40: 73823047.28 | AC40: 0 | AD40: 0 | AE40: 41194418.67 | AF40: 0 | AG40: 0 | AH40: 0 | AI40: 71964.59967 | AJ40: 0 | AK40: 0 | AL40: 0 | AM40: 0 | AN40: 0 | AO40: 0 | AP40: 0 | AQ40: 0 | AR40: 0 | AS40: 0 | AW40: 0 | AX40: 28.83991449 | AY40: 74206.83449 | AZ40: 0 | BA40: 0 | BB40: 62796.08689 | BC40: 0 | BD40: 0 | BE40: 0 | BF40: 579015.3733 | BG40: 0 | BH40: 0 | BI40: 0 | BJ40: 0 | BK40: 0 | BL40: 0 | BM40: 0 | BN40: 0 | BO40: 0 | BP40: 0 | BQ40: 0 | BR40: 716047.1346
BR41: 0
BR42: 0
BR43: 0
BR44: 0
BR45: 0
BR46: 0
BR47: 0
BR48: 0
BR49: 0
BR50: 0
BR51: 0
BR52: 0
BR53: 0
BR54: 0
BR55: 0
BR56: 0
BR57: 0
BR58: 0
BR59: 0
BR60: 0
BR61: 0
BR62: 0
BR63: 0
BR64: 0
BR65: 0
BR66: 0
Z67: =SUM(Z7:Z66) -> 345924.5 | AA67: 924816844.2 | AB67: 3082270277 | AC67: 0 | AD67: 0 | AE67: 1974216192 | AF67: 0 | AG67: 0 | AH67: 0 | AI67: 990878.4836 | AJ67: 0 | AK67: 0 | AL67: 0 | AM67: 8169.682235 | AN67: 18996.7889 | AO67: 14028.70853 | AP67: 0 | AQ67: 2134.247214 | AR67: 4673.420781 | AS67: 3633.61347 | AT67: 0 | AW67: =SUM(AW7:AW66) -> 9498694.399 | AX67: 46803775.68 | AY67: 104438683.7 | AZ67: 0 | BA67: 0 | BB67: 20817798.82 | BC67: 0 | BD67: 0 | BE67: 0 | BF67: 53099169.59 | BG67: 0 | BH67: 0 | BI67: 0 | BJ67: 660.7648908 | BK67: 758.3472876 | BL67: 139.4752704 | BM67: 0 | BN67: 173.309337 | BO67: 187.3211436 | BP67: 36.43070242 | BQ67: 0 | BR67: 234660077.8

Sheet 31. Actual t-2 Trans Tariff
B1: CitiPower
B2: Tariff Quantity Data Template (Actual t-2) Transmission Tariff Revenue
B3: 0
D5: Transmission Tariffs (Pt-2) | Z5: Actual Quantities (Qt-2) (INCLUDING boundary load adjustment) | AW5: Actual Revenue (P-2)*(Qt-2)
B6: Tariffs t-2 | D6: (t-2)Tar Fixed | E6: (t-2)Tar PkBlk1 | F6: (t-2)Tar PkBlk2 | G6: (t-2)Tar PkBlk3 | H6: (t-2)Tar PkBlk4 | I6: (t-2)Tar OPkBlk1 | J6: (t-2)Tar OPkBlk2 | K6: (t-2)Tar OPkBlk3 | L6: (t-2)Tar OPkBlk4 | M6: (t-2)Tar DemBlk1 | N6: (t-2)Tar DemBlk2 | O6: (t-2)Tar DemBlk3 | P6: (t-2)Tar DemBlk4 | Q6: (t-2)Tar SumBlk1 | R6: (t-2)Tar SumBlk2 | S6: (t-2)Tar SumBlk3 | T6: (t-2)Tar SumBlk4 | U6: (t-2)Tar WtrBlk1 | V6: (t-2)Tar WtrBlk2 | W6: (t-2)Tar WtrBlk3 | X6: (t-2)Tar WtrBlk4 | Z6: ActVol Fixed | AA6: ActVol PkBlk1 | AB6: ActVol PkBlk2 | AC6: ActVol PkBlk3 | AD6: ActVol PkBlk4 | AE6: ActVol OPkBlk1 | AF6: ActVol OPkBlk2 | AG6: ActVol OPkBlk3 | AH6: ActVol OPkBlk4 | AI6: ActVol DemBlk1 | AJ6: ActVol DemBlk2 | AK6: ActVol DemBlk3 | AL6: ActVol DemBlk4 | AM6: ActVol SumBlk1 | AN6: ActVol SumBlk2 | AO6: ActVol SumBlk3 | AP6: ActVol SumBlk4 | AQ6: ActVol WtrBlk1 | AR6: ActVol WtrBlk2 | AS6: ActVol WtrBlk3 | AT6: ActVol WtrBlk4 | AW6: ActRev Fixed | AX6: ActRev PkBlk1 | AY6: ActRev PkBlk2 | AZ6: ActRev PkBlk3 | BA6: ActRev PkBlk4 | BB6: ActRev OPkBlk1 | BC6: ActRev OPkBlk2 | BD6: ActRev OPkBlk3 | BE6: ActRev OPkBlk4 | BF6: ActRev DemBlk1 | BG6: ActRev DemBlk2 | BH6: ActRev DemBlk3 | BI6: ActRev DemBlk4 | BJ6: ActRev SumBlk1 | BK6: ActRev SumBlk2 | BL6: ActRev SumBlk3 | BM6: ActRev SumBlk4 | BN6: ActRev WtrBlk1 | BO6: ActRev WtrBlk2 | BP6: ActRev WtrBlk3 | BQ6: ActRev WtrBlk4 | BR6: ActRev Total
BR7: =SUM(AW7:BQ7) -> 0
A8: C1R | B8: Residential Single Rate | D8: 4.8885 | E8: 0.9145 | F8: 0.9145 | G8: 0 | H8: 0 | I8: 0 | J8: 0 | K8: 0 | L8: 0 | M8: 0 | N8: 0 | O8: 0 | P8: 0 | Q8: 0 | R8: 0 | S8: 0 | T8: 0 | U8: 0 | V8: 0 | W8: 0 | Z8: 197026.75 | AA8: 582858140.4 | AB8: 268327535.5 | AC8: 0 | AD8: 0 | AE8: 0 | AF8: 0 | AG8: 0 | AH8: 0 | AI8: 0 | AJ8: 0 | AK8: 0 | AL8: 0 | AM8: 0 | AN8: 0 | AO8: 0 | AP8: 0 | AQ8: 0 | AR8: 0 | AS8: 0 | AT8: 0 | AW8: 963165.2674 | AX8: 5330237.694 | AY8: 2453855.312 | AZ8: 0 | BA8: 0 | BB8: 0 | BC8: 0 | BD8: 0 | BE8: 0 | BF8: 0 | BG8: 0 | BH8: 0 | BI8: 0 | BJ8: 0 | BK8: 0 | BL8: 0 | BM8: 0 | BN8: 0 | BO8: 0 | BP8: 0 | BQ8: 0 | BR8: 8747258.273
A9: C1RB | B9: Residential Single Rate - Bulk | D9: 3.5131 | E9: 0.7625 | F9: 0.7625 | G9: 0 | H9: 0 | I9: 0 | J9: 0 | K9: 0 | L9: 0 | M9: 0 | N9: 0 | O9: 0 | P9: 0 | Q9: 0 | R9: 0 | S9: 0 | T9: 0 | U9: 0 | V9: 0 | W9: 0 | Z9: 28807.5 | AA9: 80449062.7 | AB9: 25363233.57 | AC9: 0 | AD9: 0 | AE9: 0 | AF9: 0 | AG9: 0 | AH9: 0 | AI9: 0 | AJ9: 0 | AK9: 0 | AL9: 0 | AM9: 0 | AN9: 0 | AO9: 0 | AP9: 0 | AQ9: 0 | AR9: 0 | AS9: 0 | AT9: 0 | AW9: 101203.6283 | AX9: 613424.1031 | AY9: 193394.6559 | AZ9: 0 | BA9: 0 | BB9: 0 | BC9: 0 | BD9: 0 | BE9: 0 | BF9: 0 | BG9: 0 | BH9: 0 | BI9: 0 | BJ9: 0 | BK9: 0 | BL9: 0 | BM9: 0 | BN9: 0 | BO9: 0 | BP9: 0 | BQ9: 0 | BR9: 908022.3873
A10: C13R | B10: Residential - flexible pricing | D10: 15.9815 | E10: 0 | F10: 0 | G10: 0 | H10: 0 | I10: 0 | J10: 0 | K10: 0 | L10: 0 | M10: 0 | N10: 0 | O10: 0 | P10: 0 | Q10: 1.512 | R10: 1.4653 | S10: 0.4301 | T10: 0 | U10: 1.512 | V10: 1.4653 | W10: 0.4301 | Z10: 19.33333333 | AA10: 0 | AB10: 0 | AC10: 0 | AD10: 0 | AE10: 0 | AF10: 0 | AG10: 0 | AH10: 0 | AI10: 0 | AJ10: 0 | AK10: 0 | AL10: 0 | AM10: 7832.709933 | AN10: 18088.8128 | AO10: 13441.67872 | AP10: 0 | AQ10: 2089.256466 | AR10: 4587.425099 | AS10: 3587.617841 | AT10: 0 | AW10: 308.9756667 | AX10: 0 | AY10: 0 | AZ10: 0 | BA10: 0 | BB10: 0 | BC10: 0 | BD10: 0 | BE10: 0 | BF10: 0 | BG10: 0 | BH10: 0 | BI10: 0 | BJ10: 118.4305742 | BK10: 265.0553739 | BL10: 57.81266016 | BM10: 0 | BN10: 31.58955776 | BO10: 67.21953998 | BP10: 15.43034434 | BQ10: 0 | BR10: 864.5137171
A11: C13RB | B11: Residential - flexible pricing bulk | D11: 11.8902 | E11: 0 | F11: 0 | G11: 0 | H11: 0 | I11: 0 | J11: 0 | K11: 0 | L11: 0 | M11: 0 | N11: 0 | O11: 0 | P11: 0 | Q11: 1.4364 | R11: 1.392 | S11: 0.4086 | T11: 0 | U11: 1.4364 | V11: 1.392 | W11: 0.4086 | Z11: 3 | AA11: 10.72196531 | AB11: 0 | AC11: 0 | AD11: 0 | AE11: 4.774765854 | AF11: 0 | AG11: 0 | AH11: 0 | AI11: 0 | AJ11: 0 | AK11: 0 | AL11: 0 | AM11: 336.9723018 | AN11: 907.9761047 | AO11: 587.0298157 | AP11: 0 | AQ11: 44.99074799 | AR11: 85.99568145 | AS11: 45.99562827 | AT11: 0 | AW11: 35.6706 | AX11: 0 | AY11: 0 | AZ11: 0 | BA11: 0 | BB11: 0 | BC11: 0 | BD11: 0 | BE11: 0 | BF11: 0 | BG11: 0 | BH11: 0 | BI11: 0 | BJ11: 4.840270143 | BK11: 12.63902738 | BL11: 2.398603827 | BM11: 0 | BN11: 0.6462471042 | BO11: 1.197059886 | BP11: 0.1879381371 | BQ11: 0 | BR11: 57.57974647
A12: C2R | B12: Residential Two Rate 5d | D12: 9.6593 | E12: 1.1198 | F12: 1.1198 | G12: 0 | H12: 0 | I12: 0.7968 | J12: 0 | K12: 0 | L12: 0 | M12: 0 | N12: 0 | O12: 0 | P12: 0 | Q12: 0 | R12: 0 | S12: 0 | T12: 0 | U12: 0 | V12: 0 | W12: 0 | Z12: 11094.33333 | AA12: 25594302.05 | AB12: 13442251.67 | AC12: 0 | AD12: 0 | AE12: 55812353.03 | AF12: 0 | AG12: 0 | AH12: 0 | AI12: 0 | AJ12: 0 | AK12: 0 | AL12: 0 | AM12: 0 | AN12: 0 | AO12: 0 | AP12: 0 | AQ12: 0 | AR12: 0 | AS12: 0 | AT12: 0 | AW12: 107163.494 | AX12: 286604.9944 | AY12: 150526.3342 | AZ12: 0 | BA12: 0 | BB12: 444712.8289 | BC12: 0 | BD12: 0 | BE12: 0 | BF12: 0 | BG12: 0 | BH12: 0 | BI12: 0 | BJ12: 0 | BK12: 0 | BL12: 0 | BM12: 0 | BN12: 0 | BO12: 0 | BP12: 0 | BQ12: 0 | BR12: 989007.6514
A13: C2RB | B13: Residential Two Rate 5d - Bulk | D13: 7.1865 | E13: 0.8853 | F13: 0.8853 | G13: 0 | H13: 0 | I13: 0.802 | J13: 0 | K13: 0 | L13: 0 | M13: 0 | N13: 0 | O13: 0 | P13: 0 | Q13: 0 | R13: 0 | S13: 0 | T13: 0 | U13: 0 | V13: 0 | W13: 0 | Z13: 4376.666667 | AA13: 8830559.729 | AB13: 5176539.031 | AC13: 0 | AD13: 0 | AE13: 19958490.55 | AF13: 0 | AG13: 0 | AH13: 0 | AI13: 0 | AJ13: 0 | AK13: 0 | AL13: 0 | AM13: 0 | AN13: 0 | AO13: 0 | AP13: 0 | AQ13: 0 | AR13: 0 | AS13: 0 | AT13: 0 | AW13: 31452.915 | AX13: 78176.94528 | AY13: 45827.90004 | AZ13: 0 | BA13: 0 | BB13: 160067.0942 | BC13: 0 | BD13: 0 | BE13: 0 | BF13: 0 | BG13: 0 | BH13: 0 | BI13: 0 | BJ13: 0 | BK13: 0 | BL13: 0 | BM13: 0 | BN13: 0 | BO13: 0 | BP13: 0 | BQ13: 0 | BR13: 315524.8546
A14: C3R | B14: Residential Interval | D14: 9.6593 | E14: 1.1198 | F14: 1.1198 | G14: 0 | H14: 0 | I14: 0.7968 | J14: 0 | K14: 0 | L14: 0 | M14: 0 | N14: 0 | O14: 0 | P14: 0 | Q14: 0 | R14: 0 | S14: 0 | T14: 0 | U14: 0 | V14: 0 | W14: 0 | Z14: 16379.91667 | AA14: 38805325.51 | AB14: 20687406.3 | AC14: 0 | AD14: 0 | AE14: 51088869.72 | AF14: 0 | AG14: 0 | AH14: 0 | AI14: 0 | AJ14: 0 | AK14: 0 | AL14: 0 | AM14: 0 | AN14: 0 | AO14: 0 | AP14: 0 | AQ14: 0 | AR14: 0 | AS14: 0 | AT14: 0 | AW14: 158218.5291 | AX14: 434542.0351 | AY14: 231657.5758 | AZ14: 0 | BA14: 0 | BB14: 407076.1139 | BC14: 0 | BD14: 0 | BE14: 0 | BF14: 0 | BG14: 0 | BH14: 0 | BI14: 0 | BJ14: 0 | BK14: 0 | BL14: 0 | BM14: 0 | BN14: 0 | BO14: 0 | BP14: 0 | BQ14: 0 | BR14: 1231494.254
A15: C3RB | B15: Residential Interval - Bulk | D15: 7.1865 | E15: 0.8853 | F15: 0.8853 | G15: 0 | H15: 0 | I15: 0.802 | J15: 0 | K15: 0 | L15: 0 | M15: 0 | N15: 0 | O15: 0 | P15: 0 | Q15: 0 | R15: 0 | S15: 0 | T15: 0 | U15: 0 | V15: 0 | W15: 0 | Z15: 7954.166667 | AA15: 11471877.71 | AB15: 2127260.31 | AC15: 0 | AD15: 0 | AE15: 12762958.01 | AF15: 0 | AG15: 0 | AH15: 0 | AI15: 0 | AJ15: 0 | AK15: 0 | AL15: 0 | AM15: 0 | AN15: 0 | AO15: 0 | AP15: 0 | AQ15: 0 | AR15: 0 | AS15: 0 | AT15: 0 | AW15: 57162.61875 | AX15: 101560.5334 | AY15: 18832.63553 | AZ15: 0 | BA15: 0 | BB15: 102358.9232 | BC15: 0 | BD15: 0 | BE15: 0 | BF15: 0 | BG15: 0 | BH15: 0 | BI15: 0 | BJ15: 0 | BK15: 0 | BL15: 0 | BM15: 0 | BN15: 0 | BO15: 0 | BP15: 0 | BQ15: 0 | BR15: 279914.7109
A16: C2ROP | B16: Residential Two Rate 5d - Controlled Load | D16: 0 | E16: 0 | F16: 0 | G16: 0 | H16: 0 | I16: 0.7968 | J16: 0 | K16: 0 | L16: 0 | M16: 0 | N16: 0 | O16: 0 | P16: 0 | Q16: 0 | R16: 0 | S16: 0 | T16: 0 | U16: 0 | V16: 0 | W16: 0 | Z16: 0 | AA16: 0 | AB16: 0 | AC16: 0 | AD16: 0 | AE16: 0 | AF16: 0 | AG16: 0 | AH16: 0 | AI16: 0 | AJ16: 0 | AK16: 0 | AL16: 0 | AM16: 0 | AN16: 0 | AO16: 0 | AP16: 0 | AQ16: 0 | AR16: 0 | AS16: 0 | AT16: 0 | AW16: 0 | AX16: 0 | AY16: 0 | AZ16: 0 | BA16: 0 | BB16: 0 | BC16: 0 | BD16: 0 | BE16: 0 | BF16: 0 | BG16: 0 | BH16: 0 | BI16: 0 | BJ16: 0 | BK16: 0 | BL16: 0 | BM16: 0 | BN16: 0 | BO16: 0 | BP16: 0 | BQ16: 0 | BR16: 0
A17: C2RBOP | B17: Residential Two Rate 5d - Bulk - Controlled Load | D17: 0 | E17: 0 | F17: 0 | G17: 0 | H17: 0 | I17: 0.802 | J17: 0 | K17: 0 | L17: 0 | M17: 0 | N17: 0 | O17: 0 | P17: 0 | Q17: 0 | R17: 0 | S17: 0 | T17: 0 | U17: 0 | V17: 0 | W17: 0 | Z17: 0 | AA17: 0 | AB17: 0 | AC17: 0 | AD17: 0 | AE17: 0 | AF17: 0 | AG17: 0 | AH17: 0 | AI17: 0 | AJ17: 0 | AK17: 0 | AL17: 0 | AM17: 0 | AN17: 0 | AO17: 0 | AP17: 0 | AQ17: 0 | AR17: 0 | AS17: 0 | AT17: 0 | AW17: 0 | AX17: 0 | AY17: 0 | AZ17: 0 | BA17: 0 | BB17: 0 | BC17: 0 | BD17: 0 | BE17: 0 | BF17: 0 | BG17: 0 | BH17: 0 | BI17: 0 | BJ17: 0 | BK17: 0 | BL17: 0 | BM17: 0 | BN17: 0 | BO17: 0 | BP17: 0 | BQ17: 0 | BR17: 0
A18: CDS | B18: Dedicated Circuit | D18: 0 | E18: 0 | F18: 0 | G18: 0 | H18: 0 | I18: 0.615 | J18: 0 | K18: 0 | L18: 0 | M18: 0 | N18: 0 | O18: 0 | P18: 0 | Q18: 0 | R18: 0 | S18: 0 | T18: 0 | U18: 0 | V18: 0 | W18: 0 | Z18: 24861.16667 | AA18: 0 | AB18: 0 | AC18: 0 | AD18: 0 | AE18: 44164139.79 | AF18: 0 | AG18: 0 | AH18: 0 | AI18: 0 | AJ18: 0 | AK18: 0 | AL18: 0 | AM18: 0 | AN18: 0 | AO18: 0 | AP18: 0 | AQ18: 0 | AR18: 0 | AS18: 0 | AT18: 0 | AW18: 0 | AX18: 0 | AY18: 0 | AZ18: 0 | BA18: 0 | BB18: 271609.4597 | BC18: 0 | BD18: 0 | BE18: 0 | BF18: 0 | BG18: 0 | BH18: 0 | BI18: 0 | BJ18: 0 | BK18: 0 | BL18: 0 | BM18: 0 | BN18: 0 | BO18: 0 | BP18: 0 | BQ18: 0 | BR18: 271609.4597
A19: CDSB | B19: Dedicated Circuit - Bulk | D19: 0 | E19: 0 | F19: 0 | G19: 0 | H19: 0 | I19: 0.5937 | J19: 0 | K19: 0 | L19: 0 | M19: 0 | N19: 0 | O19: 0 | P19: 0 | Q19: 0 | R19: 0 | S19: 0 | T19: 0 | U19: 0 | V19: 0 | W19: 0 | Z19: 1184.583333 | AA19: 0 | AB19: 0 | AC19: 0 | AD19: 0 | AE19: 2607201.063 | AF19: 0 | AG19: 0 | AH19: 0 | AI19: 0 | AJ19: 0 | AK19: 0 | AL19: 0 | AM19: 0 | AN19: 0 | AO19: 0 | AP19: 0 | AQ19: 0 | AR19: 0 | AS19: 0 | AT19: 0 | AW19: 0 | AX19: 0 | AY19: 0 | AZ19: 0 | BA19: 0 | BB19: 15478.95271 | BC19: 0 | BD19: 0 | BE19: 0 | BF19: 0 | BG19: 0 | BH19: 0 | BI19: 0 | BJ19: 0 | BK19: 0 | BL19: 0 | BM19: 0 | BN19: 0 | BO19: 0 | BP19: 0 | BQ19: 0 | BR19: 15478.95271
A20: C1G | B20: Non-Residential Single Rate | D20: 10.7945 | E20: 1.2479 | F20: 1.2479 | G20: 0 | H20: 0 | I20: 0 | J20: 0 | K20: 0 | L20: 0 | M20: 0 | N20: 0 | O20: 0 | P20: 0 | Q20: 0 | R20: 0 | S20: 0 | T20: 0 | U20: 0 | V20: 0 | W20: 0 | Z20: 19235.08333 | AA20: 63756782.87 | AB20: 248222728.2 | AC20: 0 | AD20: 0 | AE20: 0 | AF20: 0 | AG20: 0 | AH20: 0 | AI20: 0 | AJ20: 0 | AK20: 0 | AL20: 0 | AM20: 0 | AN20: 0 | AO20: 0 | AP20: 0 | AQ20: 0 | AR20: 0 | AS20: 0 | AT20: 0 | AW20: 207633.107 | AX20: 795620.8934 | AY20: 3097571.426 | AZ20: 0 | BA20: 0 | BB20: 0 | BC20: 0 | BD20: 0 | BE20: 0 | BF20: 0 | BG20: 0 | BH20: 0 | BI20: 0 | BJ20: 0 | BK20: 0 | BL20: 0 | BM20: 0 | BN20: 0 | BO20: 0 | BP20: 0 | BQ20: 0 | BR20: 4100825.426
A21: C1GB | B21: Non-Residential Single Rate - Bulk | D21: 7.6723 | E21: 1.0644 | F21: 1.0644 | G21: 0 | H21: 0 | I21: 0 | J21: 0 | K21: 0 | L21: 0 | M21: 0 | N21: 0 | O21: 0 | P21: 0 | Q21: 0 | R21: 0 | S21: 0 | T21: 0 | U21: 0 | V21: 0 | W21: 0 | Z21: 5761.166667 | AA21: 18569558.02 | AB21: 110287604.8 | AC21: 0 | AD21: 0 | AE21: 0 | AF21: 0 | AG21: 0 | AH21: 0 | AI21: 0 | AJ21: 0 | AK21: 0 | AL21: 0 | AM21: 0 | AN21: 0 | AO21: 0 | AP21: 0 | AQ21: 0 | AR21: 0 | AS21: 0 | AT21: 0 | AW21: 44201.39902 | AX21: 197654.3755 | AY21: 1173901.265 | AZ21: 0 | BA21: 0 | BB21: 0 | BC21: 0 | BD21: 0 | BE21: 0 | BF21: 0 | BG21: 0 | BH21: 0 | BI21: 0 | BJ21: 0 | BK21: 0 | BL21: 0 | BM21: 0 | BN21: 0 | BO21: 0 | BP21: 0 | BQ21: 0 | BR21: 1415757.04
A22: C2G5 | B22: Non-Residential Two Rate 5d | D22: 25.6326 | E22: 1.6147 | F22: 1.6147 | G22: 0 | H22: 0 | I22: 0.6251 | J22: 0 | K22: 0 | L22: 0 | M22: 0 | N22: 0 | O22: 0 | P22: 0 | Q22: 0 | R22: 0 | S22: 0 | T22: 0 | U22: 0 | V22: 0 | W22: 0 | Z22: 12100.08333 | AA22: 36741317.76 | AB22: 305044389.5 | AC22: 0 | AD22: 0 | AE22: 242600209.6 | AF22: 0 | AG22: 0 | AH22: 0 | AI22: 0 | AJ22: 0 | AK22: 0 | AL22: 0 | AM22: 0 | AN22: 0 | AO22: 0 | AP22: 0 | AQ22: 0 | AR22: 0 | AS22: 0 | AT22: 0 | AW22: 310156.596 | AX22: 593262.0578 | AY22: 4925551.758 | AZ22: 0 | BA22: 0 | BB22: 1516493.91 | BC22: 0 | BD22: 0 | BE22: 0 | BF22: 0 | BG22: 0 | BH22: 0 | BI22: 0 | BJ22: 0 | BK22: 0 | BL22: 0 | BM22: 0 | BN22: 0 | BO22: 0 | BP22: 0 | BQ22: 0 | BR22: 7345464.322
A23: C2G5B | B23: Non-Residential Two Rate 5d - Bulk | D23: 19.9152 | E23: 1.3649 | F23: 1.3649 | G23: 0 | H23: 0 | I23: 0.5206 | J23: 0 | K23: 0 | L23: 0 | M23: 0 | N23: 0 | O23: 0 | P23: 0 | Q23: 0 | R23: 0 | S23: 0 | T23: 0 | U23: 0 | V23: 0 | W23: 0 | Z23: 2162.833333 | AA23: 7866604.082 | AB23: 112257497.2 | AC23: 0 | AD23: 0 | AE23: 79896756.96 | AF23: 0 | AG23: 0 | AH23: 0 | AI23: 0 | AJ23: 0 | AK23: 0 | AL23: 0 | AM23: 0 | AN23: 0 | AO23: 0 | AP23: 0 | AQ23: 0 | AR23: 0 | AS23: 0 | AT23: 0 | AW23: 43073.2584 | AX23: 107371.2791 | AY23: 1532202.58 | AZ23: 0 | BA23: 0 | BB23: 415942.5167 | BC23: 0 | BD23: 0 | BE23: 0 | BF23: 0 | BG23: 0 | BH23: 0 | BI23: 0 | BJ23: 0 | BK23: 0 | BL23: 0 | BM23: 0 | BN23: 0 | BO23: 0 | BP23: 0 | BQ23: 0 | BR23: 2098589.634
A24: C3G | B24: Non-Residential Interval | D24: 25.6326 | E24: 1.6147 | F24: 1.6147 | G24: 0 | H24: 0 | I24: 0.6251 | J24: 0 | K24: 0 | L24: 0 | M24: 0 | N24: 0 | O24: 0 | P24: 0 | Q24: 0 | R24: 0 | S24: 0 | T24: 0 | U24: 0 | V24: 0 | W24: 0 | Z24: 5292.916667 | AA24: 15950683.35 | AB24: 100464660.9 | AC24: 0 | AD24: 0 | AE24: 75064884.61 | AF24: 0 | AG24: 0 | AH24: 0 | AI24: 0 | AJ24: 0 | AK24: 0 | AL24: 0 | AM24: 0 | AN24: 0 | AO24: 0 | AP24: 0 | AQ24: 0 | AR24: 0 | AS24: 0 | AT24: 0 | AW24: 135671.2158 | AX24: 257555.6841 | AY24: 1622202.88 | AZ24: 0 | BA24: 0 | BB24: 469230.5937 | BC24: 0 | BD24: 0 | BE24: 0 | BF24: 0 | BG24: 0 | BH24: 0 | BI24: 0 | BJ24: 0 | BK24: 0 | BL24: 0 | BM24: 0 | BN24: 0 | BO24: 0 | BP24: 0 | BQ24: 0 | BR24: 2484660.374
A25: C3GB | B25: Non-Residential Interval - Bulk | D25: 19.9152 | E25: 1.3649 | F25: 1.3649 | G25: 0 | H25: 0 | I25: 0.5206 | J25: 0 | K25: 0 | L25: 0 | M25: 0 | N25: 0 | O25: 0 | P25: 0 | Q25: 0 | R25: 0 | S25: 0 | T25: 0 | U25: 0 | V25: 0 | W25: 0 | Z25: 3098.083333 | AA25: 10755094.66 | AB25: 175353412.5 | AC25: 0 | AD25: 0 | AE25: 120981821.4 | AF25: 0 | AG25: 0 | AH25: 0 | AI25: 0 | AJ25: 0 | AK25: 0 | AL25: 0 | AM25: 0 | AN25: 0 | AO25: 0 | AP25: 0 | AQ25: 0 | AR25: 0 | AS25: 0 | AT25: 0 | AW25: 61698.9492 | AX25: 146796.287 | AY25: 2393398.727 | AZ25: 0 | BA25: 0 | BB25: 629831.3624 | BC25: 0 | BD25: 0 | BE25: 0 | BF25: 0 | BG25: 0 | BH25: 0 | BI25: 0 | BJ25: 0 | BK25: 0 | BL25: 0 | BM25: 0 | BN25: 0 | BO25: 0 | BP25: 0 | BQ25: 0 | BR25: 3231725.325
A26: C2G7 | B26: Non-Residential Two Rate 7d | D26: 23.2364 | E26: 1.5148 | F26: 1.5148 | G26: 0 | H26: 0 | I26: 0.6251 | J26: 0 | K26: 0 | L26: 0 | M26: 0 | N26: 0 | O26: 0 | P26: 0 | Q26: 0 | R26: 0 | S26: 0 | T26: 0 | U26: 0 | V26: 0 | W26: 0 | Z26: 3234.166667 | AA26: 12159469.61 | AB26: 94979894.63 | AC26: 0 | AD26: 0 | AE26: 27758243.6 | AF26: 0 | AG26: 0 | AH26: 0 | AI26: 0 | AJ26: 0 | AK26: 0 | AL26: 0 | AM26: 0 | AN26: 0 | AO26: 0 | AP26: 0 | AQ26: 0 | AR26: 0 | AS26: 0 | AT26: 0 | AW26: 75150.39033 | AX26: 184191.6456 | AY26: 1438755.444 | AZ26: 0 | BA26: 0 | BB26: 173516.7807 | BC26: 0 | BD26: 0 | BE26: 0 | BF26: 0 | BG26: 0 | BH26: 0 | BI26: 0 | BJ26: 0 | BK26: 0 | BL26: 0 | BM26: 0 | BN26: 0 | BO26: 0 | BP26: 0 | BQ26: 0 | BR26: 1871614.261
A27: C2G7B | B27: Non-Residential Two Rate 7d - Bulk | D27: 17.8266 | E27: 1.285 | F27: 1.285 | G27: 0 | H27: 0 | I27: 0.5206 | J27: 0 | K27: 0 | L27: 0 | M27: 0 | N27: 0 | O27: 0 | P27: 0 | Q27: 0 | R27: 0 | S27: 0 | T27: 0 | U27: 0 | V27: 0 | W27: 0 | Z27: 465.3333333 | AA27: 1726714.62 | AB27: 26017382.7 | AC27: 0 | AD27: 0 | AE27: 7434724.372 | AF27: 0 | AG27: 0 | AH27: 0 | AI27: 0 | AJ27: 0 | AK27: 0 | AL27: 0 | AM27: 0 | AN27: 0 | AO27: 0 | AP27: 0 | AQ27: 0 | AR27: 0 | AS27: 0 | AT27: 0 | AW27: 8295.3112 | AX27: 22188.28286 | AY27: 334323.3677 | AZ27: 0 | BA27: 0 | BB27: 38705.17508 | BC27: 0 | BD27: 0 | BE27: 0 | BF27: 0 | BG27: 0 | BH27: 0 | BI27: 0 | BJ27: 0 | BK27: 0 | BL27: 0 | BM27: 0 | BN27: 0 | BO27: 0 | BP27: 0 | BQ27: 0 | BR27: 403512.1368
A28: C2U | B28: Unmetered Supplies / Public Lighting | D28: 0 | E28: 0.4928 | F28: 0.4928 | G28: 0 | H28: 0 | I28: 0.4801 | J28: 0 | K28: 0 | L28: 0 | M28: 0 | N28: 0 | O28: 0 | P28: 0 | Q28: 0 | R28: 0 | S28: 0 | T28: 0 | U28: 0 | V28: 0 | W28: 0 | Z28: 1153.166667 | AA28: 1695368.685 | AB28: 9427877.267 | AC28: 0 | AD28: 0 | AE28: 27899124.55 | AF28: 0 | AG28: 0 | AH28: 0 | AI28: 0 | AJ28: 0 | AK28: 0 | AL28: 0 | AM28: 0 | AN28: 0 | AO28: 0 | AP28: 0 | AQ28: 0 | AR28: 0 | AS28: 0 | AT28: 0 | AW28: 0 | AX28: 8354.776879 | AY28: 46460.57917 | AZ28: 0 | BA28: 0 | BB28: 133943.697 | BC28: 0 | BD28: 0 | BE28: 0 | BF28: 0 | BG28: 0 | BH28: 0 | BI28: 0 | BJ28: 0 | BK28: 0 | BL28: 0 | BM28: 0 | BN28: 0 | BO28: 0 | BP28: 0 | BQ28: 0 | BR28: 188759.053
A29: C2L7 | B29: Large Two Rate 7d | D29: 24.9832 | E29: 2.5756 | F29: 2.5756 | G29: 0 | H29: 0 | I29: 0.6219 | J29: 0 | K29: 0 | L29: 0 | M29: 0 | N29: 0 | O29: 0 | P29: 0 | Q29: 0 | R29: 0 | S29: 0 | T29: 0 | U29: 0 | V29: 0 | W29: 0 | Z29: 47.75 | AA29: 192752.5252 | AB29: 17039376.67 | AC29: 0 | AD29: 0 | AE29: 4450181.676 | AF29: 0 | AG29: 0 | AH29: 0 | AI29: 0 | AJ29: 0 | AK29: 0 | AL29: 0 | AM29: 0 | AN29: 0 | AO29: 0 | AP29: 0 | AQ29: 0 | AR29: 0 | AS29: 0 | AT29: 0 | AW29: 1192.9478 | AX29: 4964.534039 | AY29: 438866.1855 | AZ29: 0 | BA29: 0 | BB29: 27675.67984 | BC29: 0 | BD29: 0 | BE29: 0 | BF29: 0 | BG29: 0 | BH29: 0 | BI29: 0 | BJ29: 0 | BK29: 0 | BL29: 0 | BM29: 0 | BN29: 0 | BO29: 0 | BP29: 0 | BQ29: 0 | BR29: 472699.3472
A30: C2DL | B30: Large Low Voltage Demand | D30: 0 | E30: 1.7057 | F30: 1.7057 | G30: 0 | H30: 0 | I30: 0.6219 | J30: 0 | K30: 0 | L30: 0 | M30: 10.8813 | N30: 0 | O30: 0 | P30: 0 | Q30: 0 | R30: 0 | S30: 0 | T30: 0 | U30: 0 | V30: 0 | W30: 0 | Z30: 225.4166667 | AA30: 916910.8427 | AB30: 85230852.05 | AC30: 0 | AD30: 0 | AE30: 67352509.51 | AF30: 0 | AG30: 0 | AH30: 0 | AI30: 54471.13067 | AJ30: 0 | AK30: 0 | AL30: 0 | AM30: 0 | AN30: 0 | AO30: 0 | AP30: 0 | AQ30: 0 | AR30: 0 | AS30: 0 | AT30: 0 | AW30: 0 | AX30: 15639.74824 | AY30: 1453782.643 | AZ30: 0 | BA30: 0 | BB30: 418865.2567 | BC30: 0 | BD30: 0 | BE30: 0 | BF30: 592716.7141 | BG30: 0 | BH30: 0 | BI30: 0 | BJ30: 0 | BK30: 0 | BL30: 0 | BM30: 0 | BN30: 0 | BO30: 0 | BP30: 0 | BQ30: 0 | BR30: 2481004.362
A31: C2DLB | B31: Large Low Voltage Demand - Bulk | D31: 0 | E31: 1.6931 | F31: 1.6931 | G31: 0 | H31: 0 | I31: 0.6161 | J31: 0 | K31: 0 | L31: 0 | M31: 10.799 | N31: 0 | O31: 0 | P31: 0 | Q31: 0 | R31: 0 | S31: 0 | T31: 0 | U31: 0 | V31: 0 | W31: 0 | Z31: 1243.416667 | AA31: 5699132.908 | AB31: 1046695872 | AC31: 0 | AD31: 0 | AE31: 773135708.1 | AF31: 0 | AG31: 0 | AH31: 0 | AI31: 637623.168 | AJ31: 0 | AK31: 0 | AL31: 0 | AM31: 0 | AN31: 0 | AO31: 0 | AP31: 0 | AQ31: 0 | AR31: 0 | AS31: 0 | AT31: 0 | AW31: 0 | AX31: 96492.01927 | AY31: 17721607.81 | AZ31: 0 | BA31: 0 | BB31: 4763289.098 | BC31: 0 | BD31: 0 | BE31: 0 | BF31: 6885692.591 | BG31: 0 | BH31: 0 | BI31: 0 | BJ31: 0 | BK31: 0 | BL31: 0 | BM31: 0 | BN31: 0 | BO31: 0 | BP31: 0 | BQ31: 0 | BR31: 29467081.51
A32: C2DLER | B32: Large Low Voltage Demand R | D32: 0 | E32: 1.7697 | F32: 1.7697 | G32: 0 | H32: 0 | I32: 0.6459 | J32: 0 | K32: 0 | L32: 0 | M32: 11.221 | N32: 0 | O32: 0 | P32: 0 | Q32: 0 | R32: 0 | S32: 0 | T32: 0 | U32: 0 | V32: 0 | W32: 0 | Z32: 0 | AA32: 0 | AB32: 0 | AC32: 0 | AD32: 0 | AE32: 0 | AF32: 0 | AG32: 0 | AH32: 0 | AI32: 0 | AJ32: 0 | AK32: 0 | AL32: 0 | AM32: 0 | AN32: 0 | AO32: 0 | AP32: 0 | AQ32: 0 | AR32: 0 | AS32: 0 | AT32: 0 | AW32: 0 | AX32: 0 | AY32: 0 | AZ32: 0 | BA32: 0 | BB32: 0 | BC32: 0 | BD32: 0 | BE32: 0 | BF32: 0 | BG32: 0 | BH32: 0 | BI32: 0 | BJ32: 0 | BK32: 0 | BL32: 0 | BM32: 0 | BN32: 0 | BO32: 0 | BP32: 0 | BQ32: 0 | BR32: 0
A33: C2DLEG | B33: Large Low Voltage Demand G | D33: 0 | E33: 1.7697 | F33: 1.7697 | G33: 0 | H33: 0 | I33: 0.6459 | J33: 0 | K33: 0 | L33: 0 | M33: 11.221 | N33: 0 | O33: 0 | P33: 0 | Q33: 0 | R33: 0 | S33: 0 | T33: 0 | U33: 0 | V33: 0 | W33: 0 | Z33: 9.416666667 | AA33: 32003.86325 | AB33: 3048113.289 | AC33: 0 | AD33: 0 | AE33: 3171851.908 | AF33: 0 | AG33: 0 | AH33: 0 | AI33: 1899.53 | AJ33: 0 | AK33: 0 | AL33: 0 | AM33: 0 | AN33: 0 | AO33: 0 | AP33: 0 | AQ33: 0 | AR33: 0 | AS33: 0 | AT33: 0 | AW33: 0 | AX33: 566.372368 | AY33: 53942.46087 | AZ33: 0 | BA33: 0 | BB33: 20486.99147 | BC33: 0 | BD33: 0 | BE33: 0 | BF33: 21314.62613 | BG33: 0 | BH33: 0 | BI33: 0 | BJ33: 0 | BK33: 0 | BL33: 0 | BM33: 0 | BN33: 0 | BO33: 0 | BP33: 0 | BQ33: 0 | BR33: 96310.45084
A34: C2DLBER | B34: Large Low Voltage Demand - Bulk R | D34: 0 | E34: 1.7595 | F34: 1.7595 | G34: 0 | H34: 0 | I34: 0.6403 | J34: 0 | K34: 0 | L34: 0 | M34: 11.1351 | N34: 0 | O34: 0 | P34: 0 | Q34: 0 | R34: 0 | S34: 0 | T34: 0 | U34: 0 | V34: 0 | W34: 0 | Z34: 0 | AA34: 0 | AB34: 0 | AC34: 0 | AD34: 0 | AE34: 0 | AF34: 0 | AG34: 0 | AH34: 0 | AI34: 0 | AJ34: 0 | AK34: 0 | AL34: 0 | AM34: 0 | AN34: 0 | AO34: 0 | AP34: 0 | AQ34: 0 | AR34: 0 | AS34: 0 | AT34: 0 | AW34: 0 | AX34: 0 | AY34: 0 | AZ34: 0 | BA34: 0 | BB34: 0 | BC34: 0 | BD34: 0 | BE34: 0 | BF34: 0 | BG34: 0 | BH34: 0 | BI34: 0 | BJ34: 0 | BK34: 0 | BL34: 0 | BM34: 0 | BN34: 0 | BO34: 0 | BP34: 0 | BQ34: 0 | BR34: 0
A35: C2DLBEG | B35: Large Low Voltage Demand - Bulk G | D35: 0 | E35: 1.7595 | F35: 1.7595 | G35: 0 | H35: 0 | I35: 0.6403 | J35: 0 | K35: 0 | L35: 0 | M35: 11.1351 | N35: 0 | O35: 0 | P35: 0 | Q35: 0 | R35: 0 | S35: 0 | T35: 0 | U35: 0 | V35: 0 | W35: 0 | Z35: 107.25 | AA35: 421167.6709 | AB35: 64118462.63 | AC35: 0 | AD35: 0 | AE35: 48901371.5 | AF35: 0 | AG35: 0 | AH35: 0 | AI35: 37200.30667 | AJ35: 0 | AK35: 0 | AL35: 0 | AM35: 0 | AN35: 0 | AO35: 0 | AP35: 0 | AQ35: 0 | AR35: 0 | AS35: 0 | AT35: 0 | AW35: 0 | AX35: 7410.445169 | AY35: 1128164.35 | AZ35: 0 | BA35: 0 | BB35: 313115.4817 | BC35: 0 | BD35: 0 | BE35: 0 | BF35: 414229.1348 | BG35: 0 | BH35: 0 | BI35: 0 | BJ35: 0 | BK35: 0 | BL35: 0 | BM35: 0 | BN35: 0 | BO35: 0 | BP35: 0 | BQ35: 0 | BR35: 1862919.412
A36: C2DH | B36: High Voltage Demand | D36: 0 | E36: 1.7595 | F36: 1.7595 | G36: 0 | H36: 0 | I36: 0.5796 | J36: 0 | K36: 0 | L36: 0 | M36: 8.6142 | N36: 0 | O36: 0 | P36: 0 | Q36: 0 | R36: 0 | S36: 0 | T36: 0 | U36: 0 | V36: 0 | W36: 0 | Z36: 73 | AA36: 291397.125 | AB36: 269138604.5 | AC36: 0 | AD36: 0 | AE36: 265068965.8 | AF36: 0 | AG36: 0 | AH36: 0 | AI36: 184119.7486 | AJ36: 0 | AK36: 0 | AL36: 0 | AM36: 0 | AN36: 0 | AO36: 0 | AP36: 0 | AQ36: 0 | AR36: 0 | AS36: 0 | AT36: 0 | AW36: 0 | AX36: 5127.132415 | AY36: 4735493.746 | AZ36: 0 | BA36: 0 | BB36: 1536339.726 | BC36: 0 | BD36: 0 | BE36: 0 | BF36: 1586044.338 | BG36: 0 | BH36: 0 | BI36: 0 | BJ36: 0 | BK36: 0 | BL36: 0 | BM36: 0 | BN36: 0 | BO36: 0 | BP36: 0 | BQ36: 0 | BR36: 7863004.943
A37: C2DHD1 | B37: High Voltage Demand D1 | D37: 0 | E37: 1.6223 | F37: 1.6223 | G37: 0 | H37: 0 | I37: 0.8117 | J37: 0 | K37: 0 | L37: 0 | M37: 11.5537 | N37: 0 | O37: 0 | P37: 0 | Q37: 0 | R37: 0 | S37: 0 | T37: 0 | U37: 0 | V37: 0 | W37: 0 | Z37: 0 | AA37: 0 | AB37: 0 | AC37: 0 | AD37: 0 | AE37: 0 | AF37: 0 | AG37: 0 | AH37: 0 | AI37: 0 | AJ37: 0 | AK37: 0 | AL37: 0 | AM37: 0 | AN37: 0 | AO37: 0 | AP37: 0 | AQ37: 0 | AR37: 0 | AS37: 0 | AT37: 0 | AW37: 0 | AX37: 0 | AY37: 0 | AZ37: 0 | BA37: 0 | BB37: 0 | BC37: 0 | BD37: 0 | BE37: 0 | BF37: 0 | BG37: 0 | BH37: 0 | BI37: 0 | BJ37: 0 | BK37: 0 | BL37: 0 | BM37: 0 | BN37: 0 | BO37: 0 | BP37: 0 | BQ37: 0 | BR37: 0
A38: C2DHER | B38: High Voltage Demand R | D38: 0 | E38: 1.8258 | F38: 1.8258 | G38: 0 | H38: 0 | I38: 0.6026 | J38: 0 | K38: 0 | L38: 0 | M38: 8.8818 | N38: 0 | O38: 0 | P38: 0 | Q38: 0 | R38: 0 | S38: 0 | T38: 0 | U38: 0 | V38: 0 | W38: 0 | Z38: 0 | AA38: 0 | AB38: 0 | AC38: 0 | AD38: 0 | AE38: 0 | AF38: 0 | AG38: 0 | AH38: 0 | AI38: 0 | AJ38: 0 | AK38: 0 | AL38: 0 | AM38: 0 | AN38: 0 | AO38: 0 | AP38: 0 | AQ38: 0 | AR38: 0 | AS38: 0 | AT38: 0 | AW38: 0 | AX38: 0 | AY38: 0 | AZ38: 0 | BA38: 0 | BB38: 0 | BC38: 0 | BD38: 0 | BE38: 0 | BF38: 0 | BG38: 0 | BH38: 0 | BI38: 0 | BJ38: 0 | BK38: 0 | BL38: 0 | BM38: 0 | BN38: 0 | BO38: 0 | BP38: 0 | BQ38: 0 | BR38: 0
A39: C2DHEG | B39: High Voltage Demand G | D39: 0 | E39: 1.8258 | F39: 1.8258 | G39: 0 | H39: 0 | I39: 0.6026 | J39: 0 | K39: 0 | L39: 0 | M39: 8.8818 | N39: 0 | O39: 0 | P39: 0 | Q39: 0 | R39: 0 | S39: 0 | T39: 0 | U39: 0 | V39: 0 | W39: 0 | Z39: 1 | AA39: 4075.853721 | AB39: 5996274.318 | AC39: 0 | AD39: 0 | AE39: 2911402.555 | AF39: 0 | AG39: 0 | AH39: 0 | AI39: 3600 | AJ39: 0 | AK39: 0 | AL39: 0 | AM39: 0 | AN39: 0 | AO39: 0 | AP39: 0 | AQ39: 0 | AR39: 0 | AS39: 0 | AT39: 0 | AW39: 0 | AX39: 74.41693724 | AY39: 109479.9765 | AZ39: 0 | BA39: 0 | BB39: 17544.1118 | BC39: 0 | BD39: 0 | BE39: 0 | BF39: 31974.48 | BG39: 0 | BH39: 0 | BI39: 0 | BJ39: 0 | BK39: 0 | BL39: 0 | BM39: 0 | BN39: 0 | BO39: 0 | BP39: 0 | BQ39: 0 | BR39: 159072.9852
A40: C2DT | B40: Subtransmission Demand | D40: 0 | E40: 1.9484 | F40: 1.9484 | G40: 0 | H40: 0 | I40: 0.5957 | J40: 0 | K40: 0 | L40: 0 | M40: 3.8728 | N40: 0 | O40: 0 | P40: 0 | Q40: 0 | R40: 0 | S40: 0 | T40: 0 | U40: 0 | V40: 0 | W40: 0 | Z40: 7 | AA40: 28531.00672 | AB40: 73823047.28 | AC40: 0 | AD40: 0 | AE40: 41194418.67 | AF40: 0 | AG40: 0 | AH40: 0 | AI40: 71964.59967 | AJ40: 0 | AK40: 0 | AL40: 0 | AM40: 0 | AN40: 0 | AO40: 0 | AP40: 0 | AQ40: 0 | AR40: 0 | AS40: 0 | AT40: 0 | AW40: 0 | AX40: 555.8981349 | AY40: 1438368.253 | AZ40: 0 | BA40: 0 | BB40: 245395.152 | BC40: 0 | BD40: 0 | BE40: 0 | BF40: 278704.5016 | BG40: 0 | BH40: 0 | BI40: 0 | BJ40: 0 | BK40: 0 | BL40: 0 | BM40: 0 | BN40: 0 | BO40: 0 | BP40: 0 | BQ40: 0 | BR40: 1963023.805
AW41: =D41*Z41 -> 0 | AX41: =E41/100*AA41 -> 0 | AY41: 0 | AZ41: 0 | BA41: 0 | BB41: 0 | BC41: 0 | BD41: 0 | BE41: =L41/100*AH41 -> 0 | BF41: =M41*AI41 -> 0 | BG41: 0 | BH41: 0 | BI41: 0 | BJ41: =Q41/100*AM41 -> 0 | BK41: =R41/100*AN41 -> 0 | BL41: 0 | BM41: 0 | BN41: 0 | BO41: 0 | BP41: 0 | BQ41: 0 | BR41: 0
AW42: 0 | AX42: 0 | AY42: 0 | AZ42: 0 | BA42: 0 | BB42: 0 | BC42: 0 | BD42: 0 | BE42: 0 | BF42: 0 | BG42: 0 | BH42: 0 | BI42: 0 | BJ42: 0 | BK42: 0 | BL42: 0 | BM42: 0 | BN42: 0 | BO42: 0 | BP42: 0 | BQ42: 0 | BR42: 0
AW43: 0 | AX43: 0 | AY43: 0 | AZ43: 0 | BA43: 0 | BB43: 0 | BC43: 0 | BD43: 0 | BE43: 0 | BF43: 0 | BG43: 0 | BH43: 0 | BI43: 0 | BJ43: 0 | BK43: 0 | BL43: 0 | BM43: 0 | BN43: 0 | BO43: 0 | BP43: 0 | BQ43: 0 | BR43: 0
AW44: 0 | AX44: 0 | AY44: 0 | AZ44: 0 | BA44: 0 | BB44: 0 | BC44: 0 | BD44: 0 | BE44: 0 | BF44: 0 | BG44: 0 | BH44: 0 | BI44: 0 | BJ44: 0 | BK44: 0 | BL44: 0 | BM44: 0 | BN44: 0 | BO44: 0 | BP44: 0 | BQ44: 0 | BR44: 0
AW45: 0 | AX45: 0 | AY45: 0 | AZ45: 0 | BA45: 0 | BB45: 0 | BC45: 0 | BD45: 0 | BE45: 0 | BF45: 0 | BG45: 0 | BH45: 0 | BI45: 0 | BJ45: 0 | BK45: 0 | BL45: 0 | BM45: 0 | BN45: 0 | BO45: 0 | BP45: 0 | BQ45: 0 | BR45: 0
AW46: 0 | AX46: 0 | AY46: 0 | AZ46: 0 | BA46: 0 | BB46: 0 | BC46: 0 | BD46: 0 | BE46: 0 | BF46: 0 | BG46: 0 | BH46: 0 | BI46: 0 | BJ46: 0 | BK46: 0 | BL46: 0 | BM46: 0 | BN46: 0 | BO46: 0 | BP46: 0 | BQ46: 0 | BR46: 0
AW47: 0 | AX47: 0 | AY47: 0 | AZ47: 0 | BA47: 0 | BB47: 0 | BC47: 0 | BD47: 0 | BE47: 0 | BF47: 0 | BG47: 0 | BH47: 0 | BI47: 0 | BJ47: 0 | BK47: 0 | BL47: 0 | BM47: 0 | BN47: 0 | BO47: 0 | BP47: 0 | BQ47: 0 | BR47: 0
AW48: 0 | AX48: 0 | AY48: 0 | AZ48: 0 | BA48: 0 | BB48: 0 | BC48: 0 | BD48: 0 | BE48: 0 | BF48: 0 | BG48: 0 | BH48: 0 | BI48: 0 | BJ48: 0 | BK48: 0 | BL48: 0 | BM48: 0 | BN48: 0 | BO48: 0 | BP48: 0 | BQ48: 0 | BR48: 0
AW49: 0 | AX49: 0 | AY49: 0 | AZ49: 0 | BA49: 0 | BB49: 0 | BC49: 0 | BD49: 0 | BE49: 0 | BF49: 0 | BG49: 0 | BH49: 0 | BI49: 0 | BJ49: 0 | BK49: 0 | BL49: 0 | BM49: 0 | BN49: 0 | BO49: 0 | BP49: 0 | BQ49: 0 | BR49: 0
AW50: 0 | AX50: 0 | AY50: 0 | AZ50: 0 | BA50: 0 | BB50: 0 | BC50: 0 | BD50: 0 | BE50: 0 | BF50: 0 | BG50: 0 | BH50: 0 | BI50: 0 | BJ50: 0 | BK50: 0 | BL50: 0 | BM50: 0 | BN50: 0 | BO50: 0 | BP50: 0 | BQ50: 0 | BR50: 0
AW51: 0 | AX51: 0 | AY51: 0 | AZ51: 0 | BA51: 0 | BB51: 0 | BC51: 0 | BD51: 0 | BE51: 0 | BF51: 0 | BG51: 0 | BH51: 0 | BI51: 0 | BJ51: 0 | BK51: 0 | BL51: 0 | BM51: 0 | BN51: 0 | BO51: 0 | BP51: 0 | BQ51: 0 | BR51: 0
AW52: 0 | AX52: 0 | AY52: 0 | AZ52: 0 | BA52: 0 | BB52: 0 | BC52: 0 | BD52: 0 | BE52: 0 | BF52: 0 | BG52: 0 | BH52: 0 | BI52: 0 | BJ52: 0 | BK52: 0 | BL52: 0 | BM52: 0 | BN52: 0 | BO52: 0 | BP52: 0 | BQ52: 0 | BR52: 0
AW53: 0 | AX53: 0 | AY53: 0 | AZ53: 0 | BA53: 0 | BB53: 0 | BC53: 0 | BD53: 0 | BE53: 0 | BF53: 0 | BG53: 0 | BH53: 0 | BI53: 0 | BJ53: 0 | BK53: 0 | BL53: 0 | BM53: 0 | BN53: 0 | BO53: 0 | BP53: 0 | BQ53: 0 | BR53: 0
AW54: 0 | AX54: 0 | AY54: 0 | AZ54: 0 | BA54: 0 | BB54: 0 | BC54: 0 | BD54: 0 | BE54: 0 | BF54: 0 | BG54: 0 | BH54: 0 | BI54: 0 | BJ54: 0 | BK54: 0 | BL54: 0 | BM54: 0 | BN54: 0 | BO54: 0 | BP54: 0 | BQ54: 0 | BR54: 0
AW55: 0 | AX55: 0 | AY55: 0 | AZ55: 0 | BA55: 0 | BB55: 0 | BC55: 0 | BD55: 0 | BE55: 0 | BF55: 0 | BG55: 0 | BH55: 0 | BI55: 0 | BJ55: 0 | BK55: 0 | BL55: 0 | BM55: 0 | BN55: 0 | BO55: 0 | BP55: 0 | BQ55: 0 | BR55: 0
AW56: 0 | AX56: 0 | AY56: 0 | AZ56: 0 | BA56: 0 | BB56: 0 | BC56: 0 | BD56: 0 | BE56: 0 | BF56: 0 | BG56: 0 | BH56: 0 | BI56: 0 | BJ56: 0 | BK56: 0 | BL56: 0 | BM56: 0 | BN56: 0 | BO56: 0 | BP56: 0 | BQ56: 0 | BR56: 0
AW57: 0 | AX57: 0 | AY57: 0 | AZ57: 0 | BA57: 0 | BB57: 0 | BC57: 0 | BD57: 0 | BE57: 0 | BF57: 0 | BG57: 0 | BH57: 0 | BI57: 0 | BJ57: 0 | BK57: 0 | BL57: 0 | BM57: 0 | BN57: 0 | BO57: 0 | BP57: 0 | BQ57: 0 | BR57: 0
AW58: 0 | AX58: 0 | AY58: 0 | AZ58: 0 | BA58: 0 | BB58: 0 | BC58: 0 | BD58: 0 | BE58: 0 | BF58: 0 | BG58: 0 | BH58: 0 | BI58: 0 | BJ58: 0 | BK58: 0 | BL58: 0 | BM58: 0 | BN58: 0 | BO58: 0 | BP58: 0 | BQ58: 0 | BR58: 0
AW59: 0 | AX59: 0 | AY59: 0 | AZ59: 0 | BA59: 0 | BB59: 0 | BC59: 0 | BD59: 0 | BE59: 0 | BF59: 0 | BG59: 0 | BH59: 0 | BI59: 0 | BJ59: 0 | BK59: 0 | BL59: 0 | BM59: 0 | BN59: 0 | BO59: 0 | BP59: 0 | BQ59: 0 | BR59: 0
AW60: 0 | AX60: 0 | AY60: 0 | AZ60: 0 | BA60: 0 | BB60: 0 | BC60: 0 | BD60: 0 | BE60: 0 | BF60: 0 | BG60: 0 | BH60: 0 | BI60: 0 | BJ60: 0 | BK60: 0 | BL60: 0 | BM60: 0 | BN60: 0 | BO60: 0 | BP60: 0 | BQ60: 0 | BR60: 0
AW61: 0 | AX61: 0 | AY61: 0 | AZ61: 0 | BA61: 0 | BB61: 0 | BC61: 0 | BD61: 0 | BE61: 0 | BF61: 0 | BG61: 0 | BH61: 0 | BI61: 0 | BJ61: 0 | BK61: 0 | BL61: 0 | BM61: 0 | BN61: 0 | BO61: 0 | BP61: 0 | BQ61: 0 | BR61: 0
AW62: 0 | AX62: 0 | AY62: 0 | AZ62: 0 | BA62: 0 | BB62: 0 | BC62: 0 | BD62: 0 | BE62: 0 | BF62: 0 | BG62: 0 | BH62: 0 | BI62: 0 | BJ62: 0 | BK62: 0 | BL62: 0 | BM62: 0 | BN62: 0 | BO62: 0 | BP62: 0 | BQ62: 0 | BR62: 0
AW63: 0 | AX63: 0 | AY63: 0 | AZ63: 0 | BA63: 0 | BB63: 0 | BC63: 0 | BD63: 0 | BE63: 0 | BF63: 0 | BG63: 0 | BH63: 0 | BI63: 0 | BJ63: 0 | BK63: 0 | BL63: 0 | BM63: 0 | BN63: 0 | BO63: 0 | BP63: 0 | BQ63: 0 | BR63: 0
AW64: 0 | AX64: 0 | AY64: 0 | AZ64: 0 | BA64: 0 | BB64: 0 | BC64: 0 | BD64: 0 | BE64: 0 | BF64: 0 | BG64: 0 | BH64: 0 | BI64: 0 | BJ64: 0 | BK64: 0 | BL64: 0 | BM64: 0 | BN64: 0 | BO64: 0 | BP64: 0 | BQ64: 0 | BR64: 0
AW65: 0 | AX65: 0 | AY65: 0 | AZ65: 0 | BA65: 0 | BB65: 0 | BC65: 0 | BD65: 0 | BE65: 0 | BF65: 0 | BG65: 0 | BH65: 0 | BI65: 0 | BJ65: 0 | BK65: 0 | BL65: 0 | BM65: 0 | BN65: 0 | BO65: 0 | BP65: 0 | BQ65: 0 | BR65: 0
AW66: 0 | AX66: 0 | AY66: 0 | AZ66: 0 | BA66: 0 | BB66: 0 | BC66: 0 | BD66: 0 | BE66: 0 | BF66: 0 | BG66: 0 | BH66: 0 | BI66: 0 | BJ66: 0 | BK66: 0 | BL66: 0 | BM66: 0 | BN66: 0 | BO66: 0 | BP66: 0 | BQ66: 0 | BR66: 0
Z67: =SUM(Z7:Z66) -> 345924.5 | AA67: 924816844.2 | AB67: 3082270277 | AC67: 0 | AD67: 0 | AE67: 1974216192 | AF67: 0 | AG67: 0 | AH67: 0 | AI67: 990878.4836 | AJ67: 0 | AK67: 0 | AL67: 0 | AM67: =SUM(AM7:AM66) -> 8169.682235 | AN67: 18996.7889 | AO67: 14028.70853 | AP67: 0 | AQ67: 2134.247214 | AR67: 4673.420781 | AS67: 3633.61347 | AT67: 0 | AW67: =SUM(AW7:AW66) -> 2305784.273 | AX67: 9288372.154 | AY67: 46738167.86 | AZ67: 0 | BA67: 0 | BB67: 12121678.91 | BC67: 0 | BD67: 0 | BE67: 0 | BF67: 9810676.386 | BG67: 0 | BH67: 0 | BI67: =SUM(BI7:BI66) -> 0 | BJ67: =SUM(BJ7:BJ66) -> 123.2708443 | BK67: 277.6944013 | BL67: 60.21126399 | BM67: 0 | BN67: 32.23580487 | BO67: 68.41659987 | BP67: 15.61828247 | BQ67: 0 | BR67: 80265257.03

Sheet 32. TUoS cost audit (t-2)
B1: CitiPower
B2: TUoS cost audit template (t-2)
B3: 0
B5: TUOS charges (AEMO) | F5: t-2 actual
B7: AEMO (TUOS Usage) | F7: 20947357.95
B8: AEMO (TUOS General and Common Service) | F8: 44281580.82
B9: Grid equalisation | F9: 2367996
E10: Total | F10: =SUM(F6:F9) -> 67596934.77
B12: Transmission connection fees (SPI Powernet) | F12: t-2 actual
B14: SPI Powernet (Connection) | F14: 7648916.79
B15: SPI Powernet (Augmentation) | F15: 4936301.89
E17: Total | F17: =SUM(F13:F16) -> 12585218.68
B19: Cross boundary network charges (internetwork charges) | F19: t-2 actual
B20: Distribution Business | C20: Amount (payable)/receivable
C21: HV crossings | D21: Subtransmission crossings | E21: TUoS Adjustment | F21: Total
B23: Jemena | D23: -3096114.62 | F23: =SUM(C23:E23) -> -3096114.62
B24: UE | D24: -338214 | F24: =SUM(C24:E24) -> -338214
F25: =SUM(C25:E25) -> 0
F26: =SUM(C26:E26) -> 0
B27: Total | F27: =SUM(F22:F26) -> -3434328.62
B29: Payments to embedded generators | F29: t-2 actual
B30: Avoided transmission costs
B32: Avoided TUoS costs | F32: 193334.3784
B36: Total | F36: =SUM(F31:F35) -> 193334.3784
B38: Avoided TUoS usage charges
B44: Total | F44: =SUM(F39:F43) -> 0
B45: Total payments to embedded generators | F45: =F44+F36 -> 193334.3784
B47: Where the following definitions apply
B48: HV Crossings | C48: Payments/Receipts for energy transferred utilising the distributor’s HV and LV line assets.
B49: Sub-transmission Crossings | C49: Payments/Receipts for the Sub-transmission assets in shared loops that support each distributor’s Zone Substation capacity to ensure N-1 reliability is maintained.
B50: TuoS Adjustment | C50: Payments/Receipts for the adjustment of TuoS paid by a distributor for energy delivered to another distribution business through a shared loop.

Sheet 33. Actual t-2 Juris Revenue
B1: CitiPower
B2: Tariff Quantity Data Template (Actual t-2) Jurisdictional Scheme Tariff Revenue
B3: 0
D5: Jurisdictional Scheme Tariffs (Pt-2) | Z5: Actual Quantities (Qt-2) (INCLUDING boundary load adjustment) | AW5: Actual Revenue (P-2)*(Qt-2)
B6: Tariff (t-2) | D6: (t-2)Tar Fixed | E6: (t-2)Tar PkBlk1 | F6: (t-2)Tar PkBlk2 | G6: (t-2)Tar PkBlk3 | H6: (t-2)Tar PkBlk4 | I6: (t-2)Tar OPkBlk1 | J6: (t-2)Tar OPkBlk2 | K6: (t-2)Tar OPkBlk3 | L6: (t-2)Tar OPkBlk4 | M6: (t-2)Tar DemBlk1 | N6: (t-2)Tar DemBlk2 | O6: (t-2)Tar DemBlk3 | P6: (t-2)Tar DemBlk4 | Q6: (t-2)Tar SumBlk1 | R6: (t-2)Tar SumBlk2 | S6: (t-2)Tar SumBlk3 | T6: (t-2)Tar SumBlk4 | U6: (t-2)Tar WtrBlk1 | V6: (t-2)Tar WtrBlk2 | W6: (t-2)Tar WtrBlk3 | X6: (t-2)Tar WtrBlk4 | Z6: ActVol Fixed | AA6: ActVol PkBlk1 | AB6: ActVol PkBlk2 | AC6: ActVol PkBlk3 | AD6: ActVol PkBlk4 | AE6: ActVol OPkBlk1 | AF6: ActVol OPkBlk2 | AG6: ActVol OPkBlk3 | AH6: ActVol OPkBlk4 | AI6: ActVol DemBlk1 | AJ6: ActVol DemBlk2 | AK6: ActVol DemBlk3 | AL6: ActVol DemBlk4 | AM6: ActVol SumBlk1 | AN6: ActVol SumBlk2 | AO6: ActVol SumBlk3 | AP6: ActVol SumBlk4 | AQ6: ActVol WtrBlk1 | AR6: ActVol WtrBlk2 | AS6: ActVol WtrBlk3 | AT6: ActVol WtrBlk4 | AW6: ActRev Fixed | AX6: ActRev PkBlk1 | AY6: ActRev PkBlk2 | AZ6: ActRev PkBlk3 | BA6: ActRev PkBlk4 | BB6: ActRev OPkBlk1 | BC6: ActRev OPkBlk2 | BD6: ActRev OPkBlk3 | BE6: ActRev OPkBlk4 | BF6: ActRev DemBlk1 | BG6: ActRev DemBlk2 | BH6: ActRev DemBlk3 | BI6: ActRev DemBlk4 | BJ6: ActRev SumBlk1 | BK6: ActRev SumBlk2 | BL6: ActRev SumBlk3 | BM6: ActRev SumBlk4 | BN6: ActRev WtrBlk1 | BO6: ActRev WtrBlk2 | BP6: ActRev WtrBlk3 | BQ6: ActRev WtrBlk4 | BR6: ActRev Total
A8: C1R | B8: Residential Single Rate | D8: 0 | E8: 0.0354 | F8: 0.0354 | G8: 0 | H8: 0 | I8: 0 | J8: 0 | K8: 0 | L8: 0 | M8: 0 | N8: 0 | O8: 0 | P8: 0 | Q8: 0 | R8: 0 | S8: 0 | T8: 0 | U8: 0 | V8: 0 | W8: 0 | Z8: 197026.75 | AA8: 582858140.4 | AB8: 268327535.5 | AC8: 0 | AD8: 0 | AE8: 0 | AF8: 0 | AG8: 0 | AH8: 0 | AI8: 0 | AJ8: 0 | AK8: 0 | AL8: 0 | AM8: 0 | AN8: 0 | AO8: 0 | AP8: 0 | AQ8: 0 | AR8: 0 | AS8: 0 | AT8: 0 | AW8: 0 | AX8: 206331.7817 | AY8: 94987.94757 | AZ8: 0 | BA8: 0 | BB8: 0 | BC8: 0 | BD8: 0 | BE8: 0 | BF8: 0 | BG8: 0 | BH8: 0 | BI8: 0 | BJ8: 0 | BK8: 0 | BL8: 0 | BM8: 0 | BN8: 0 | BO8: 0 | BP8: 0 | BQ8: 0 | BR8: =SUM(AW8:BQ8) -> 301319.7293
A9: C1RB | B9: Residential Single Rate - Bulk | D9: 0 | E9: 0.0354 | F9: 0.0354 | G9: 0 | H9: 0 | I9: 0 | J9: 0 | K9: 0 | L9: 0 | M9: 0 | N9: 0 | O9: 0 | P9: 0 | Q9: 0 | R9: 0 | S9: 0 | T9: 0 | U9: 0 | V9: 0 | W9: 0 | Z9: 28807.5 | AA9: 80449062.7 | AB9: 25363233.57 | AC9: 0 | AD9: 0 | AE9: 0 | AF9: 0 | AG9: 0 | AH9: 0 | AI9: 0 | AJ9: 0 | AK9: 0 | AL9: 0 | AM9: 0 | AN9: 0 | AO9: 0 | AP9: 0 | AQ9: 0 | AR9: 0 | AS9: 0 | AT9: 0 | AW9: 0 | AX9: 28478.9682 | AY9: 8978.584682 | AZ9: 0 | BA9: 0 | BB9: 0 | BC9: 0 | BD9: 0 | BE9: 0 | BF9: 0 | BG9: 0 | BH9: 0 | BI9: 0 | BJ9: 0 | BK9: 0 | BL9: 0 | BM9: 0 | BN9: 0 | BO9: 0 | BP9: 0 | BQ9: 0 | BR9: 37457.55288
A10: C13R | B10: Residential - flexible pricing | D10: 0 | E10: 0 | F10: 0 | G10: 0 | H10: 0 | I10: 0 | J10: 0 | K10: 0 | L10: 0 | M10: 0 | N10: 0 | O10: 0 | P10: 0 | Q10: 0.0372 | R10: 0.0372 | S10: 0.0372 | T10: 0 | U10: 0.0372 | V10: 0.0372 | W10: 0.0372 | Z10: 19.33333333 | AA10: 0 | AB10: 0 | AC10: 0 | AD10: 0 | AE10: 0 | AF10: 0 | AG10: 0 | AH10: 0 | AI10: 0 | AJ10: 0 | AK10: 0 | AL10: 0 | AM10: 7832.709933 | AN10: 18088.8128 | AO10: 13441.67872 | AP10: 0 | AQ10: 2089.256466 | AR10: 4587.425099 | AS10: 3587.617841 | AT10: 0 | AW10: 0 | AX10: 0 | AY10: 0 | AZ10: 0 | BA10: 0 | BB10: 0 | BC10: 0 | BD10: 0 | BE10: 0 | BF10: 0 | BG10: 0 | BH10: 0 | BI10: 0 | BJ10: 2.913768095 | BK10: 6.729038361 | BL10: 5.000304483 | BM10: 0 | BN10: 0.7772034053 | BO10: 1.706522137 | BP10: 1.334593837 | BQ10: 0 | BR10: 18.46143032
A11: C13RB | B11: Residential - flexible pricing bulk | D11: 0 | E11: 0 | F11: 0 | G11: 0 | H11: 0 | I11: 0 | J11: 0 | K11: 0 | L11: 0 | M11: 0 | N11: 0 | O11: 0 | P11: 0 | Q11: 0.0335 | R11: 0.0335 | S11: 0.0335 | T11: 0 | U11: 0.0335 | V11: 0.0335 | W11: 0.0335 | Z11: 3 | AA11: 10.72196531 | AB11: 0 | AC11: 0 | AD11: 0 | AE11: 4.774765854 | AF11: 0 | AG11: 0 | AH11: 0 | AI11: 0 | AJ11: 0 | AK11: 0 | AL11: 0 | AM11: 336.9723018 | AN11: 907.9761047 | AO11: 587.0298157 | AP11: 0 | AQ11: 44.99074799 | AR11: 85.99568145 | AS11: 45.99562827 | AT11: 0 | AW11: 0 | AX11: 0 | AY11: 0 | AZ11: 0 | BA11: 0 | BB11: 0 | BC11: 0 | BD11: 0 | BE11: 0 | BF11: 0 | BG11: 0 | BH11: 0 | BI11: 0 | BJ11: 0.1128857211 | BK11: 0.3041719951 | BL11: 0.1966549883 | BM11: 0 | BN11: 0.01507190058 | BO11: 0.02880855329 | BP11: 0.01540853547 | BQ11: 0 | BR11: 0.6730016938
A12: C2R | B12: Residential Two Rate 5d | D12: 0 | E12: 0.0335 | F12: 0.0335 | G12: 0 | H12: 0 | I12: 0.0402 | J12: 0 | K12: 0 | L12: 0 | M12: 0 | N12: 0 | O12: 0 | P12: 0 | Q12: 0 | R12: 0 | S12: 0 | T12: 0 | U12: 0 | V12: 0 | W12: 0 | Z12: 11094.33333 | AA12: 25594302.05 | AB12: 13442251.67 | AC12: 0 | AD12: 0 | AE12: 55812353.03 | AF12: 0 | AG12: 0 | AH12: 0 | AI12: 0 | AJ12: 0 | AK12: 0 | AL12: 0 | AM12: 0 | AN12: 0 | AO12: 0 | AP12: 0 | AQ12: 0 | AR12: 0 | AS12: 0 | AT12: 0 | AW12: 0 | AX12: 8574.091187 | AY12: 4503.154309 | AZ12: 0 | BA12: 0 | BB12: 22436.56592 | BC12: 0 | BD12: 0 | BE12: 0 | BF12: 0 | BG12: 0 | BH12: 0 | BI12: 0 | BJ12: 0 | BK12: 0 | BL12: 0 | BM12: 0 | BN12: 0 | BO12: 0 | BP12: 0 | BQ12: 0 | BR12: 35513.81141
A13: C2RB | B13: Residential Two Rate 5d - Bulk | D13: 0 | E13: 0.0335 | F13: 0.0335 | G13: 0 | H13: 0 | I13: 0.0402 | J13: 0 | K13: 0 | L13: 0 | M13: 0 | N13: 0 | O13: 0 | P13: 0 | Q13: 0 | R13: 0 | S13: 0 | T13: 0 | U13: 0 | V13: 0 | W13: 0 | Z13: 4376.666667 | AA13: 8830559.729 | AB13: 5176539.031 | AC13: 0 | AD13: 0 | AE13: 19958490.55 | AF13: 0 | AG13: 0 | AH13: 0 | AI13: 0 | AJ13: 0 | AK13: 0 | AL13: 0 | AM13: 0 | AN13: 0 | AO13: 0 | AP13: 0 | AQ13: 0 | AR13: 0 | AS13: 0 | AT13: 0 | AW13: 0 | AX13: 2958.237509 | AY13: 1734.140575 | AZ13: 0 | BA13: 0 | BB13: 8023.313203 | BC13: 0 | BD13: 0 | BE13: 0 | BF13: 0 | BG13: 0 | BH13: 0 | BI13: 0 | BJ13: 0 | BK13: 0 | BL13: 0 | BM13: 0 | BN13: 0 | BO13: 0 | BP13: 0 | BQ13: 0 | BR13: 12715.69129
A14: C3R | B14: Residential Interval | D14: 0 | E14: 0.0335 | F14: 0.0335 | G14: 0 | H14: 0 | I14: 0.0402 | J14: 0 | K14: 0 | L14: 0 | M14: 0 | N14: 0 | O14: 0 | P14: 0 | Q14: 0 | R14: 0 | S14: 0 | T14: 0 | U14: 0 | V14: 0 | W14: 0 | Z14: 16379.91667 | AA14: 38805325.51 | AB14: 20687406.3 | AC14: 0 | AD14: 0 | AE14: 51088869.72 | AF14: 0 | AG14: 0 | AH14: 0 | AI14: 0 | AJ14: 0 | AK14: 0 | AL14: 0 | AM14: 0 | AN14: 0 | AO14: 0 | AP14: 0 | AQ14: 0 | AR14: 0 | AS14: 0 | AT14: 0 | AW14: 0 | AX14: 12999.78405 | AY14: 6930.281111 | AZ14: 0 | BA14: 0 | BB14: 20537.72563 | BC14: 0 | BD14: 0 | BE14: 0 | BF14: 0 | BG14: 0 | BH14: 0 | BI14: 0 | BJ14: 0 | BK14: 0 | BL14: 0 | BM14: 0 | BN14: 0 | BO14: 0 | BP14: 0 | BQ14: 0 | BR14: 40467.79079
A15: C3RB | B15: Residential Interval - Bulk | D15: 0 | E15: 0.0335 | F15: 0.0335 | G15: 0 | H15: 0 | I15: 0.0402 | J15: 0 | K15: 0 | L15: 0 | M15: 0 | N15: 0 | O15: 0 | P15: 0 | Q15: 0 | R15: 0 | S15: 0 | T15: 0 | U15: 0 | V15: 0 | W15: 0 | Z15: 7954.166667 | AA15: 11471877.71 | AB15: 2127260.31 | AC15: 0 | AD15: 0 | AE15: 12762958.01 | AF15: 0 | AG15: 0 | AH15: 0 | AI15: 0 | AJ15: 0 | AK15: 0 | AL15: 0 | AM15: 0 | AN15: 0 | AO15: 0 | AP15: 0 | AQ15: 0 | AR15: 0 | AS15: 0 | AT15: 0 | AW15: 0 | AX15: 3843.079033 | AY15: 712.632204 | AZ15: 0 | BA15: 0 | BB15: 5130.70912 | BC15: 0 | BD15: 0 | BE15: 0 | BF15: 0 | BG15: 0 | BH15: 0 | BI15: 0 | BJ15: 0 | BK15: 0 | BL15: 0 | BM15: 0 | BN15: 0 | BO15: 0 | BP15: 0 | BQ15: 0 | BR15: 9686.420357
A16: C2ROP | B16: Residential Two Rate 5d - Controlled Load | D16: 0 | E16: 0 | F16: 0 | G16: 0 | H16: 0 | I16: 0.0402 | J16: 0 | K16: 0 | L16: 0 | M16: 0 | N16: 0 | O16: 0 | P16: 0 | Q16: 0 | R16: 0 | S16: 0 | T16: 0 | U16: 0 | V16: 0 | W16: 0 | Z16: 0 | AA16: 0 | AB16: 0 | AC16: 0 | AD16: 0 | AE16: 0 | AF16: 0 | AG16: 0 | AH16: 0 | AI16: 0 | AJ16: 0 | AK16: 0 | AL16: 0 | AM16: 0 | AN16: 0 | AO16: 0 | AP16: 0 | AQ16: 0 | AR16: 0 | AS16: 0 | AT16: 0 | AW16: 0 | AX16: 0 | AY16: 0 | AZ16: 0 | BA16: 0 | BB16: 0 | BC16: 0 | BD16: 0 | BE16: 0 | BF16: 0 | BG16: 0 | BH16: 0 | BI16: 0 | BJ16: 0 | BK16: 0 | BL16: 0 | BM16: 0 | BN16: 0 | BO16: 0 | BP16: 0 | BQ16: 0 | BR16: 0
A17: C2RBOP | B17: Residential Two Rate 5d - Bulk - Controlled Load | D17: 0 | E17: 0 | F17: 0 | G17: 0 | H17: 0 | I17: 0.0402 | J17: 0 | K17: 0 | L17: 0 | M17: 0 | N17: 0 | O17: 0 | P17: 0 | Q17: 0 | R17: 0 | S17: 0 | T17: 0 | U17: 0 | V17: 0 | W17: 0 | Z17: 0 | AA17: 0 | AB17: 0 | AC17: 0 | AD17: 0 | AE17: 0 | AF17: 0 | AG17: 0 | AH17: 0 | AI17: 0 | AJ17: 0 | AK17: 0 | AL17: 0 | AM17: 0 | AN17: 0 | AO17: 0 | AP17: 0 | AQ17: 0 | AR17: 0 | AS17: 0 | AT17: 0 | AW17: 0 | AX17: 0 | AY17: 0 | AZ17: 0 | BA17: 0 | BB17: 0 | BC17: 0 | BD17: 0 | BE17: 0 | BF17: 0 | BG17: 0 | BH17: 0 | BI17: 0 | BJ17: 0 | BK17: 0 | BL17: 0 | BM17: 0 | BN17: 0 | BO17: 0 | BP17: 0 | BQ17: 0 | BR17: 0
A18: CDS | B18: Dedicated Circuit | D18: 0 | E18: 0 | F18: 0 | G18: 0 | H18: 0 | I18: 0.0402 | J18: 0 | K18: 0 | L18: 0 | M18: 0 | N18: 0 | O18: 0 | P18: 0 | Q18: 0 | R18: 0 | S18: 0 | T18: 0 | U18: 0 | V18: 0 | W18: 0 | Z18: 24861.16667 | AA18: 0 | AB18: 0 | AC18: 0 | AD18: 0 | AE18: 44164139.79 | AF18: 0 | AG18: 0 | AH18: 0 | AI18: 0 | AJ18: 0 | AK18: 0 | AL18: 0 | AM18: 0 | AN18: 0 | AO18: 0 | AP18: 0 | AQ18: 0 | AR18: 0 | AS18: 0 | AT18: 0 | AW18: 0 | AX18: 0 | AY18: 0 | AZ18: 0 | BA18: 0 | BB18: 17753.9842 | BC18: 0 | BD18: 0 | BE18: 0 | BF18: 0 | BG18: 0 | BH18: 0 | BI18: 0 | BJ18: 0 | BK18: 0 | BL18: 0 | BM18: 0 | BN18: 0 | BO18: 0 | BP18: 0 | BQ18: 0 | BR18: 17753.9842
A19: CDSB | B19: Dedicated Circuit - Bulk | D19: 0 | E19: 0 | F19: 0 | G19: 0 | H19: 0 | I19: 0.0402 | J19: 0 | K19: 0 | L19: 0 | M19: 0 | N19: 0 | O19: 0 | P19: 0 | Q19: 0 | R19: 0 | S19: 0 | T19: 0 | U19: 0 | V19: 0 | W19: 0 | Z19: 1184.583333 | AA19: 0 | AB19: 0 | AC19: 0 | AD19: 0 | AE19: 2607201.063 | AF19: 0 | AG19: 0 | AH19: 0 | AI19: 0 | AJ19: 0 | AK19: 0 | AL19: 0 | AM19: 0 | AN19: 0 | AO19: 0 | AP19: 0 | AQ19: 0 | AR19: 0 | AS19: 0 | AT19: 0 | AW19: 0 | AX19: 0 | AY19: 0 | AZ19: 0 | BA19: 0 | BB19: 1048.094827 | BC19: 0 | BD19: 0 | BE19: 0 | BF19: 0 | BG19: 0 | BH19: 0 | BI19: 0 | BJ19: 0 | BK19: 0 | BL19: 0 | BM19: 0 | BN19: 0 | BO19: 0 | BP19: 0 | BQ19: 0 | BR19: 1048.094827
A20: C1G | B20: Non-Residential Single Rate | D20: 0 | E20: 0.0354 | F20: 0.0354 | G20: 0 | H20: 0 | I20: 0 | J20: 0 | K20: 0 | L20: 0 | M20: 0 | N20: 0 | O20: 0 | P20: 0 | Q20: 0 | R20: 0 | S20: 0 | T20: 0 | U20: 0 | V20: 0 | W20: 0 | Z20: 19235.08333 | AA20: 63756782.87 | AB20: 248222728.2 | AC20: 0 | AD20: 0 | AE20: 0 | AF20: 0 | AG20: 0 | AH20: 0 | AI20: 0 | AJ20: 0 | AK20: 0 | AL20: 0 | AM20: 0 | AN20: 0 | AO20: 0 | AP20: 0 | AQ20: 0 | AR20: 0 | AS20: 0 | AT20: 0 | AW20: 0 | AX20: 22569.90114 | AY20: 87870.84579 | AZ20: 0 | BA20: 0 | BB20: 0 | BC20: 0 | BD20: 0 | BE20: 0 | BF20: 0 | BG20: 0 | BH20: 0 | BI20: 0 | BJ20: 0 | BK20: 0 | BL20: 0 | BM20: 0 | BN20: 0 | BO20: 0 | BP20: 0 | BQ20: 0 | BR20: 110440.7469
A21: C1GB | B21: Non-Residential Single Rate - Bulk | D21: 0 | E21: 0.0354 | F21: 0.0354 | G21: 0 | H21: 0 | I21: 0 | J21: 0 | K21: 0 | L21: 0 | M21: 0 | N21: 0 | O21: 0 | P21: 0 | Q21: 0 | R21: 0 | S21: 0 | T21: 0 | U21: 0 | V21: 0 | W21: 0 | Z21: 5761.166667 | AA21: 18569558.02 | AB21: 110287604.8 | AC21: 0 | AD21: 0 | AE21: 0 | AF21: 0 | AG21: 0 | AH21: 0 | AI21: 0 | AJ21: 0 | AK21: 0 | AL21: 0 | AM21: 0 | AN21: 0 | AO21: 0 | AP21: 0 | AQ21: 0 | AR21: 0 | AS21: 0 | AT21: 0 | AW21: 0 | AX21: 6573.623537 | AY21: 39041.81209 | AZ21: 0 | BA21: 0 | BB21: 0 | BC21: 0 | BD21: 0 | BE21: 0 | BF21: 0 | BG21: 0 | BH21: 0 | BI21: 0 | BJ21: 0 | BK21: 0 | BL21: 0 | BM21: 0 | BN21: 0 | BO21: 0 | BP21: 0 | BQ21: 0 | BR21: 45615.43562
A22: C2G5 | B22: Non-Residential Two Rate 5d | D22: 0 | E22: 0.0354 | F22: 0.0354 | G22: 0 | H22: 0 | I22: 0.0402 | J22: 0 | K22: 0 | L22: 0 | M22: 0 | N22: 0 | O22: 0 | P22: 0 | Q22: 0 | R22: 0 | S22: 0 | T22: 0 | U22: 0 | V22: 0 | W22: 0 | Z22: 12100.08333 | AA22: 36741317.76 | AB22: 305044389.5 | AC22: 0 | AD22: 0 | AE22: 242600209.6 | AF22: 0 | AG22: 0 | AH22: 0 | AI22: 0 | AJ22: 0 | AK22: 0 | AL22: 0 | AM22: 0 | AN22: 0 | AO22: 0 | AP22: 0 | AQ22: 0 | AR22: 0 | AS22: 0 | AT22: 0 | AW22: 0 | AX22: 13006.42649 | AY22: 107985.7139 | AZ22: 0 | BA22: 0 | BB22: 97525.28426 | BC22: 0 | BD22: 0 | BE22: 0 | BF22: 0 | BG22: 0 | BH22: 0 | BI22: 0 | BJ22: 0 | BK22: 0 | BL22: 0 | BM22: 0 | BN22: 0 | BO22: 0 | BP22: 0 | BQ22: 0 | BR22: 218517.4246
A23: C2G5B | B23: Non-Residential Two Rate 5d - Bulk | D23: 0 | E23: 0.0354 | F23: 0.0354 | G23: 0 | H23: 0 | I23: 0.0402 | J23: 0 | K23: 0 | L23: 0 | M23: 0 | N23: 0 | O23: 0 | P23: 0 | Q23: 0 | R23: 0 | S23: 0 | T23: 0 | U23: 0 | V23: 0 | W23: 0 | Z23: 2162.833333 | AA23: 7866604.082 | AB23: 112257497.2 | AC23: 0 | AD23: 0 | AE23: 79896756.96 | AF23: 0 | AG23: 0 | AH23: 0 | AI23: 0 | AJ23: 0 | AK23: 0 | AL23: 0 | AM23: 0 | AN23: 0 | AO23: 0 | AP23: 0 | AQ23: 0 | AR23: 0 | AS23: 0 | AT23: 0 | AW23: 0 | AX23: 2784.777845 | AY23: 39739.15402 | AZ23: 0 | BA23: 0 | BB23: 32118.4963 | BC23: 0 | BD23: 0 | BE23: 0 | BF23: 0 | BG23: 0 | BH23: 0 | BI23: 0 | BJ23: 0 | BK23: 0 | BL23: 0 | BM23: 0 | BN23: 0 | BO23: 0 | BP23: 0 | BQ23: 0 | BR23: 74642.42816
A24: C3G | B24: Non-Residential Interval | D24: 0 | E24: 0.0354 | F24: 0.0354 | G24: 0 | H24: 0 | I24: 0.0402 | J24: 0 | K24: 0 | L24: 0 | M24: 0 | N24: 0 | O24: 0 | P24: 0 | Q24: 0 | R24: 0 | S24: 0 | T24: 0 | U24: 0 | V24: 0 | W24: 0 | Z24: 5292.916667 | AA24: 15950683.35 | AB24: 100464660.9 | AC24: 0 | AD24: 0 | AE24: 75064884.61 | AF24: 0 | AG24: 0 | AH24: 0 | AI24: 0 | AJ24: 0 | AK24: 0 | AL24: 0 | AM24: 0 | AN24: 0 | AO24: 0 | AP24: 0 | AQ24: 0 | AR24: 0 | AS24: 0 | AT24: 0 | AW24: 0 | AX24: 5646.541907 | AY24: 35564.48997 | AZ24: 0 | BA24: 0 | BB24: 30176.08361 | BC24: 0 | BD24: 0 | BE24: 0 | BF24: 0 | BG24: 0 | BH24: 0 | BI24: 0 | BJ24: 0 | BK24: 0 | BL24: 0 | BM24: 0 | BN24: 0 | BO24: 0 | BP24: 0 | BQ24: 0 | BR24: 71387.11549
A25: C3GB | B25: Non-Residential Interval - Bulk | D25: 0 | E25: 0.0354 | F25: 0.0354 | G25: 0 | H25: 0 | I25: 0.0402 | J25: 0 | K25: 0 | L25: 0 | M25: 0 | N25: 0 | O25: 0 | P25: 0 | Q25: 0 | R25: 0 | S25: 0 | T25: 0 | U25: 0 | V25: 0 | W25: 0 | Z25: 3098.083333 | AA25: 10755094.66 | AB25: 175353412.5 | AC25: 0 | AD25: 0 | AE25: 120981821.4 | AF25: 0 | AG25: 0 | AH25: 0 | AI25: 0 | AJ25: 0 | AK25: 0 | AL25: 0 | AM25: 0 | AN25: 0 | AO25: 0 | AP25: 0 | AQ25: 0 | AR25: 0 | AS25: 0 | AT25: 0 | AW25: 0 | AX25: 3807.303509 | AY25: 62075.10801 | AZ25: 0 | BA25: 0 | BB25: 48634.69222 | BC25: 0 | BD25: 0 | BE25: 0 | BF25: 0 | BG25: 0 | BH25: 0 | BI25: 0 | BJ25: 0 | BK25: 0 | BL25: 0 | BM25: 0 | BN25: 0 | BO25: 0 | BP25: 0 | BQ25: 0 | BR25: 114517.1037
A26: C2G7 | B26: Non-Residential Two Rate 7d | D26: 0 | E26: 0.0372 | F26: 0.0372 | G26: 0 | H26: 0 | I26: 0.0402 | J26: 0 | K26: 0 | L26: 0 | M26: 0 | N26: 0 | O26: 0 | P26: 0 | Q26: 0 | R26: 0 | S26: 0 | T26: 0 | U26: 0 | V26: 0 | W26: 0 | Z26: 3234.166667 | AA26: 12159469.61 | AB26: 94979894.63 | AC26: 0 | AD26: 0 | AE26: 27758243.6 | AF26: 0 | AG26: 0 | AH26: 0 | AI26: 0 | AJ26: 0 | AK26: 0 | AL26: 0 | AM26: 0 | AN26: 0 | AO26: 0 | AP26: 0 | AQ26: 0 | AR26: 0 | AS26: 0 | AT26: 0 | AW26: 0 | AX26: 4523.322694 | AY26: 35332.5208 | AZ26: 0 | BA26: 0 | BB26: 11158.81393 | BC26: 0 | BD26: 0 | BE26: 0 | BF26: 0 | BG26: 0 | BH26: 0 | BI26: 0 | BJ26: 0 | BK26: 0 | BL26: 0 | BM26: 0 | BN26: 0 | BO26: 0 | BP26: 0 | BQ26: 0 | BR26: 51014.65742
A27: C2G7B | B27: Non-Residential Two Rate 7d - Bulk | D27: 0 | E27: 0.0372 | F27: 0.0372 | G27: 0 | H27: 0 | I27: 0.0402 | J27: 0 | K27: 0 | L27: 0 | M27: 0 | N27: 0 | O27: 0 | P27: 0 | Q27: 0 | R27: 0 | S27: 0 | T27: 0 | U27: 0 | V27: 0 | W27: 0 | Z27: 465.3333333 | AA27: 1726714.62 | AB27: 26017382.7 | AC27: 0 | AD27: 0 | AE27: 7434724.372 | AF27: 0 | AG27: 0 | AH27: 0 | AI27: 0 | AJ27: 0 | AK27: 0 | AL27: 0 | AM27: 0 | AN27: 0 | AO27: 0 | AP27: 0 | AQ27: 0 | AR27: 0 | AS27: 0 | AT27: 0 | AW27: 0 | AX27: 642.3378385 | AY27: 9678.466363 | AZ27: 0 | BA27: 0 | BB27: 2988.759197 | BC27: 0 | BD27: 0 | BE27: 0 | BF27: 0 | BG27: 0 | BH27: 0 | BI27: 0 | BJ27: 0 | BK27: 0 | BL27: 0 | BM27: 0 | BN27: 0 | BO27: 0 | BP27: 0 | BQ27: 0 | BR27: 13309.5634
A28: C2U | B28: Unmetered Supplies / Public Lighting | D28: 0 | E28: 0.0372 | F28: 0.0372 | G28: 0 | H28: 0 | I28: 0.0402 | J28: 0 | K28: 0 | L28: 0 | M28: 0 | N28: 0 | O28: 0 | P28: 0 | Q28: 0 | R28: 0 | S28: 0 | T28: 0 | U28: 0 | V28: 0 | W28: 0 | Z28: 1153.166667 | AA28: 1695368.685 | AB28: 9427877.267 | AC28: 0 | AD28: 0 | AE28: 27899124.55 | AF28: 0 | AG28: 0 | AH28: 0 | AI28: 0 | AJ28: 0 | AK28: 0 | AL28: 0 | AM28: 0 | AN28: 0 | AO28: 0 | AP28: 0 | AQ28: 0 | AR28: 0 | AS28: 0 | AT28: 0 | AW28: 0 | AX28: 630.6771508 | AY28: 3507.170343 | AZ28: 0 | BA28: 0 | BB28: 11215.44807 | BC28: 0 | BD28: 0 | BE28: 0 | BF28: 0 | BG28: 0 | BH28: 0 | BI28: 0 | BJ28: 0 | BK28: 0 | BL28: 0 | BM28: 0 | BN28: 0 | BO28: 0 | BP28: 0 | BQ28: 0 | BR28: 15353.29556
A29: C2L7 | B29: Large Two Rate 7d | D29: 0 | E29: 0.0372 | F29: 0.0372 | G29: 0 | H29: 0 | I29: 0.0402 | J29: 0 | K29: 0 | L29: 0 | M29: 0 | N29: 0 | O29: 0 | P29: 0 | Q29: 0 | R29: 0 | S29: 0 | T29: 0 | U29: 0 | V29: 0 | W29: 0 | Z29: 47.75 | AA29: 192752.5252 | AB29: 17039376.67 | AC29: 0 | AD29: 0 | AE29: 4450181.676 | AF29: 0 | AG29: 0 | AH29: 0 | AI29: 0 | AJ29: 0 | AK29: 0 | AL29: 0 | AM29: 0 | AN29: 0 | AO29: 0 | AP29: 0 | AQ29: 0 | AR29: 0 | AS29: 0 | AT29: 0 | AW29: 0 | AX29: 71.70393937 | AY29: 6338.648121 | AZ29: 0 | BA29: 0 | BB29: 1788.973034 | BC29: 0 | BD29: 0 | BE29: 0 | BF29: 0 | BG29: 0 | BH29: 0 | BI29: 0 | BJ29: 0 | BK29: 0 | BL29: 0 | BM29: 0 | BN29: 0 | BO29: 0 | BP29: 0 | BQ29: 0 | BR29: 8199.325094
A30: C2DL | B30: Large Low Voltage Demand | D30: 0 | E30: 0.0372 | F30: 0.0372 | G30: 0 | H30: 0 | I30: 0.0402 | J30: 0 | K30: 0 | L30: 0 | M30: 0 | N30: 0 | O30: 0 | P30: 0 | Q30: 0 | R30: 0 | S30: 0 | T30: 0 | U30: 0 | V30: 0 | W30: 0 | Z30: 225.4166667 | AA30: 916910.8427 | AB30: 85230852.05 | AC30: 0 | AD30: 0 | AE30: 67352509.51 | AF30: 0 | AG30: 0 | AH30: 0 | AI30: 54471.13067 | AJ30: 0 | AK30: 0 | AL30: 0 | AM30: 0 | AN30: 0 | AO30: 0 | AP30: 0 | AQ30: 0 | AR30: 0 | AS30: 0 | AT30: 0 | AW30: 0 | AX30: 341.0908335 | AY30: 31705.87696 | AZ30: 0 | BA30: 0 | BB30: 27075.70882 | BC30: 0 | BD30: 0 | BE30: 0 | BF30: 0 | BG30: 0 | BH30: 0 | BI30: 0 | BJ30: 0 | BK30: 0 | BL30: 0 | BM30: 0 | BN30: 0 | BO30: 0 | BP30: 0 | BQ30: 0 | BR30: 59122.67662
A31: C2DLB | B31: Large Low Voltage Demand - Bulk | D31: 0 | E31: 0.0372 | F31: 0.0372 | G31: 0 | H31: 0 | I31: 0.0402 | J31: 0 | K31: 0 | L31: 0 | M31: 0 | N31: 0 | O31: 0 | P31: 0 | Q31: 0 | R31: 0 | S31: 0 | T31: 0 | U31: 0 | V31: 0 | W31: 0 | Z31: 1243.416667 | AA31: 5699132.908 | AB31: 1046695872 | AC31: 0 | AD31: 0 | AE31: 773135708.1 | AF31: 0 | AG31: 0 | AH31: 0 | AI31: 637623.168 | AJ31: 0 | AK31: 0 | AL31: 0 | AM31: 0 | AN31: 0 | AO31: 0 | AP31: 0 | AQ31: 0 | AR31: 0 | AS31: 0 | AT31: 0 | AW31: 0 | AX31: 2120.077442 | AY31: 389370.8643 | AZ31: 0 | BA31: 0 | BB31: 310800.5547 | BC31: 0 | BD31: 0 | BE31: 0 | BF31: 0 | BG31: 0 | BH31: 0 | BI31: 0 | BJ31: 0 | BK31: 0 | BL31: 0 | BM31: 0 | BN31: 0 | BO31: 0 | BP31: 0 | BQ31: 0 | BR31: 702291.4964
A32: C2DLER | B32: Large Low Voltage Demand R | D32: 0 | E32: 0.0372 | F32: 0.0372 | G32: 0 | H32: 0 | I32: 0.0402 | J32: 0 | K32: 0 | L32: 0 | M32: 0 | N32: 0 | O32: 0 | P32: 0 | Q32: 0 | R32: 0 | S32: 0 | T32: 0 | U32: 0 | V32: 0 | W32: 0 | Z32: 0 | AA32: 0 | AB32: 0 | AC32: 0 | AD32: 0 | AE32: 0 | AF32: 0 | AG32: 0 | AH32: 0 | AI32: 0 | AJ32: 0 | AK32: 0 | AL32: 0 | AM32: 0 | AN32: 0 | AO32: 0 | AP32: 0 | AQ32: 0 | AR32: 0 | AS32: 0 | AT32: 0 | AW32: 0 | AX32: 0 | AY32: 0 | AZ32: 0 | BA32: 0 | BB32: 0 | BC32: 0 | BD32: 0 | BE32: 0 | BF32: 0 | BG32: 0 | BH32: 0 | BI32: 0 | BJ32: 0 | BK32: 0 | BL32: 0 | BM32: 0 | BN32: 0 | BO32: 0 | BP32: 0 | BQ32: 0 | BR32: 0
A33: C2DLEG | B33: Large Low Voltage Demand G | D33: 0 | E33: 0.0372 | F33: 0.0372 | G33: 0 | H33: 0 | I33: 0.0402 | J33: 0 | K33: 0 | L33: 0 | M33: 0 | N33: 0 | O33: 0 | P33: 0 | Q33: 0 | R33: 0 | S33: 0 | T33: 0 | U33: 0 | V33: 0 | W33: 0 | Z33: 9.416666667 | AA33: 32003.86325 | AB33: 3048113.289 | AC33: 0 | AD33: 0 | AE33: 3171851.908 | AF33: 0 | AG33: 0 | AH33: 0 | AI33: 1899.53 | AJ33: 0 | AK33: 0 | AL33: 0 | AM33: 0 | AN33: 0 | AO33: 0 | AP33: 0 | AQ33: 0 | AR33: 0 | AS33: 0 | AT33: 0 | AW33: 0 | AX33: 11.90543713 | AY33: 1133.898143 | AZ33: 0 | BA33: 0 | BB33: 1275.084467 | BC33: 0 | BD33: 0 | BE33: 0 | BF33: 0 | BG33: 0 | BH33: 0 | BI33: 0 | BJ33: 0 | BK33: 0 | BL33: 0 | BM33: 0 | BN33: 0 | BO33: 0 | BP33: 0 | BQ33: 0 | BR33: 2420.888048
A34: C2DLBER | B34: Large Low Voltage Demand - Bulk R | D34: 0 | E34: 0.0372 | F34: 0.0372 | G34: 0 | H34: 0 | I34: 0.0402 | J34: 0 | K34: 0 | L34: 0 | M34: 0 | N34: 0 | O34: 0 | P34: 0 | Q34: 0 | R34: 0 | S34: 0 | T34: 0 | U34: 0 | V34: 0 | W34: 0 | Z34: 0 | AA34: 0 | AB34: 0 | AC34: 0 | AD34: 0 | AE34: 0 | AF34: 0 | AG34: 0 | AH34: 0 | AI34: 0 | AJ34: 0 | AK34: 0 | AL34: 0 | AM34: 0 | AN34: 0 | AO34: 0 | AP34: 0 | AQ34: 0 | AR34: 0 | AS34: 0 | AT34: 0 | AW34: 0 | AX34: 0 | AY34: 0 | AZ34: 0 | BA34: 0 | BB34: 0 | BC34: 0 | BD34: 0 | BE34: 0 | BF34: 0 | BG34: 0 | BH34: 0 | BI34: 0 | BJ34: 0 | BK34: 0 | BL34: 0 | BM34: 0 | BN34: 0 | BO34: 0 | BP34: 0 | BQ34: 0 | BR34: 0
A35: C2DLBEG | B35: Large Low Voltage Demand - Bulk G | D35: 0 | E35: 0.0372 | F35: 0.0372 | G35: 0 | H35: 0 | I35: 0.0402 | J35: 0 | K35: 0 | L35: 0 | M35: 0 | N35: 0 | O35: 0 | P35: 0 | Q35: 0 | R35: 0 | S35: 0 | T35: 0 | U35: 0 | V35: 0 | W35: 0 | Z35: 107.25 | AA35: 421167.6709 | AB35: 64118462.63 | AC35: 0 | AD35: 0 | AE35: 48901371.5 | AF35: 0 | AG35: 0 | AH35: 0 | AI35: 37200.30667 | AJ35: 0 | AK35: 0 | AL35: 0 | AM35: 0 | AN35: 0 | AO35: 0 | AP35: 0 | AQ35: 0 | AR35: 0 | AS35: 0 | AT35: 0 | AW35: 0 | AX35: 156.6743736 | AY35: 23852.0681 | AZ35: 0 | BA35: 0 | BB35: 19658.35134 | BC35: 0 | BD35: 0 | BE35: 0 | BF35: 0 | BG35: 0 | BH35: 0 | BI35: 0 | BJ35: 0 | BK35: 0 | BL35: 0 | BM35: 0 | BN35: 0 | BO35: 0 | BP35: 0 | BQ35: 0 | BR35: 43667.09381
A36: C2DH | B36: High Voltage Demand | D36: 0 | E36: 0 | F36: 0 | G36: 0 | H36: 0 | I36: 0 | J36: 0 | K36: 0 | L36: 0 | M36: 0 | N36: 0 | O36: 0 | P36: 0 | Q36: 0 | R36: 0 | S36: 0 | T36: 0 | U36: 0 | V36: 0 | W36: 0 | Z36: 73 | AA36: 291397.125 | AB36: 269138604.5 | AC36: 0 | AD36: 0 | AE36: 265068965.8 | AF36: 0 | AG36: 0 | AH36: 0 | AI36: 184119.7486 | AJ36: 0 | AK36: 0 | AL36: 0 | AM36: 0 | AN36: 0 | AO36: 0 | AP36: 0 | AQ36: 0 | AR36: 0 | AS36: 0 | AT36: 0 | AW36: 0 | AX36: 0 | AY36: 0 | AZ36: 0 | BA36: 0 | BB36: 0 | BC36: 0 | BD36: 0 | BE36: 0 | BF36: 0 | BG36: 0 | BH36: 0 | BI36: 0 | BJ36: 0 | BK36: 0 | BL36: 0 | BM36: 0 | BN36: 0 | BO36: 0 | BP36: 0 | BQ36: 0 | BR36: 0
A37: C2DHD1 | B37: High Voltage Demand D1 | D37: 0 | E37: 0 | F37: 0 | G37: 0 | H37: 0 | I37: 0 | J37: 0 | K37: 0 | L37: 0 | M37: 0 | N37: 0 | O37: 0 | P37: 0 | Q37: 0 | R37: 0 | S37: 0 | T37: 0 | U37: 0 | V37: 0 | W37: 0 | Z37: 0 | AA37: 0 | AB37: 0 | AC37: 0 | AD37: 0 | AE37: 0 | AF37: 0 | AG37: 0 | AH37: 0 | AI37: 0 | AJ37: 0 | AK37: 0 | AL37: 0 | AM37: 0 | AN37: 0 | AO37: 0 | AP37: 0 | AQ37: 0 | AR37: 0 | AS37: 0 | AT37: 0 | AW37: 0 | AX37: 0 | AY37: 0 | AZ37: 0 | BA37: 0 | BB37: 0 | BC37: 0 | BD37: 0 | BE37: 0 | BF37: 0 | BG37: 0 | BH37: 0 | BI37: 0 | BJ37: 0 | BK37: 0 | BL37: 0 | BM37: 0 | BN37: 0 | BO37: 0 | BP37: 0 | BQ37: 0 | BR37: 0
A38: C2DHER | B38: High Voltage Demand R | D38: 0 | E38: 0 | F38: 0 | G38: 0 | H38: 0 | I38: 0 | J38: 0 | K38: 0 | L38: 0 | M38: 0 | N38: 0 | O38: 0 | P38: 0 | Q38: 0 | R38: 0 | S38: 0 | T38: 0 | U38: 0 | V38: 0 | W38: 0 | Z38: 0 | AA38: 0 | AB38: 0 | AC38: 0 | AD38: 0 | AE38: 0 | AF38: 0 | AG38: 0 | AH38: 0 | AI38: 0 | AJ38: 0 | AK38: 0 | AL38: 0 | AM38: 0 | AN38: 0 | AO38: 0 | AP38: 0 | AQ38: 0 | AR38: 0 | AS38: 0 | AT38: 0 | AW38: 0 | AX38: 0 | AY38: 0 | AZ38: 0 | BA38: 0 | BB38: 0 | BC38: 0 | BD38: 0 | BE38: 0 | BF38: 0 | BG38: 0 | BH38: 0 | BI38: 0 | BJ38: 0 | BK38: 0 | BL38: 0 | BM38: 0 | BN38: 0 | BO38: 0 | BP38: 0 | BQ38: 0 | BR38: 0
A39: C2DHEG | B39: High Voltage Demand G | D39: 0 | E39: 0 | F39: 0 | G39: 0 | H39: 0 | I39: 0 | J39: 0 | K39: 0 | L39: 0 | M39: 0 | N39: 0 | O39: 0 | P39: 0 | Q39: 0 | R39: 0 | S39: 0 | T39: 0 | U39: 0 | V39: 0 | W39: 0 | Z39: 1 | AA39: 4075.853721 | AB39: 5996274.318 | AC39: 0 | AD39: 0 | AE39: 2911402.555 | AF39: 0 | AG39: 0 | AH39: 0 | AI39: 3600 | AJ39: 0 | AK39: 0 | AL39: 0 | AM39: 0 | AN39: 0 | AO39: 0 | AP39: 0 | AQ39: 0 | AR39: 0 | AS39: 0 | AT39: 0 | AW39: 0 | AX39: 0 | AY39: 0 | AZ39: 0 | BA39: 0 | BB39: 0 | BC39: 0 | BD39: 0 | BE39: 0 | BF39: 0 | BG39: 0 | BH39: 0 | BI39: 0 | BJ39: 0 | BK39: 0 | BL39: 0 | BM39: 0 | BN39: 0 | BO39: 0 | BP39: 0 | BQ39: 0 | BR39: 0
A40: C2DT | B40: Subtransmission Demand | D40: 0 | E40: 0 | F40: 0 | G40: 0 | H40: 0 | I40: 0 | J40: 0 | K40: 0 | L40: 0 | M40: 0 | N40: 0 | O40: 0 | P40: 0 | Q40: 0 | R40: 0 | S40: 0 | T40: 0 | U40: 0 | V40: 0 | W40: 0 | Z40: 7 | AA40: 28531.00672 | AB40: 73823047.28 | AC40: 0 | AD40: 0 | AE40: 41194418.67 | AF40: 0 | AG40: 0 | AH40: 0 | AI40: 71964.59967 | AJ40: 0 | AK40: 0 | AL40: 0 | AM40: 0 | AN40: 0 | AO40: 0 | AP40: 0 | AQ40: 0 | AR40: 0 | AS40: 0 | AT40: 0 | AW40: 0 | AX40: 0 | AY40: 0 | AZ40: 0 | BA40: 0 | BB40: 0 | BC40: 0 | BD40: 0 | BE40: 0 | BF40: 0 | BG40: 0 | BH40: 0 | BI40: 0 | BJ40: 0 | BK40: 0 | BL40: 0 | BM40: 0 | BN40: 0 | BO40: 0 | BP40: 0 | BQ40: 0 | BR40: 0
BR41: 0
BR42: 0
BR43: 0
BR44: 0
BR45: 0
BR46: 0
BR47: 0
BR48: 0
BR49: 0
BR50: 0
BR51: 0
BR52: 0
BR53: 0
BR54: 0
BR55: 0
BR56: 0
BR57: 0
BR58: 0
BR59: 0
BR60: 0
BR61: 0
BR62: 0
BR63: 0
BR64: 0
BR65: 0
BR66: 0
Z67: =SUM(Z7:Z66) -> 345924.5 | AA67: 924816844.2 | AB67: 3082270277 | AC67: 0 | AD67: 0 | AE67: 1974216192 | AF67: 0 | AG67: 0 | AH67: 0 | AI67: 990878.4836 | AJ67: 0 | AK67: 0 | AL67: 0 | AM67: =SUM(AM7:AM66) -> 8169.682235 | AN67: 18996.7889 | AO67: 14028.70853 | AP67: 0 | AQ67: 2134.247214 | AR67: 4673.420781 | AS67: 3633.61347 | AT67: 0 | AW67: =SUM(AW7:AW66) -> 0 | AX67: 326072.3058 | AY67: 991043.3774 | AZ67: 0 | BA67: 0 | BB67: 669346.6428 | BC67: 0 | BD67: 0 | BE67: 0 | BF67: 0 | BG67: 0 | BH67: 0 | BI67: 0 | BJ67: 3.026653816 | BK67: 7.033210356 | BL67: 5.196959471 | BM67: 0 | BN67: 0.7922753059 | BO67: 1.73533069 | BP67: 1.350002372 | BQ67: 0 | BR67: 1986481.46

Sheet 34. Juris cost audit template
B1: CitiPower
B2: Jurisdictional amount cost audit template
B3: 0
B5: Jurisdictional scheme amounts | F5: t-2 actual
B7: PFIT | F7: 2623578.78
B8: TFIT | F8: 668881.24
B9: <DNSP to insert for future schemes>
E10: Total | F10: =SUM(F6:F9) -> 3292460.02
B13: Where the following definitions apply
B14: PFIT | C14: Premium feed-in tariff payments
B15: TFIT | C15: Transitional feed-in tariff payments

Sheet Income Workpaper
B1: CitiPower
B2: Income Statement Workpaper
B3: 2013
D6: Directly Attributed ($'000 nominal) | L6: Allocated ($'000 nominal) | T6: Numeric QTY of each allocator (%) | AB6: Description of Allocation Basis | AC6: Reason for choosing this basis
B7: Income Statement Workpaper | C7: CitiPower | D7: SCS | E7: AMI | F7: PL (EF) | G7: PL (NE) | H7: ACS (F) | I7: ACS (Q) | J7: Neg'd | K7: Un'reg | L7: SCS | M7: AMI | N7: PL (EF) | O7: PL (NE) | P7: ACS (F) | Q7: ACS (Q) | R7: Neg'd | S7: Un'reg | T7: SCS | U7: AMI | V7: PL (EF) | W7: PL (NE) | X7: ACS (F) | Y7: ACS (Q) | Z7: Neg'd | AA7: Un'reg | AD7: check
B9: Distribution Revenue | C9: 294494.4712 | D9: 234670.3431 | E9: 42670.0527 | F9: 1115.184447 | G9: 3289.895693 | H9: 6503.857019 | I9: 3448.06489 | J9: 0 | K9: 2797.07329 | L9: 0 | M9: 0 | N9: 0 | O9: 0 | P9: 0 | Q9: 0 | R9: 0 | S9: 0 | AD9: =C9-SUM(D9:S9) -> 0.0001289214706
B10: Designated Pricing Proposal Charges | C10: 0 | D10: 0 | E10: 0 | F10: 0 | G10: 0 | H10: 0 | I10: 0 | J10: 0 | K10: 0 | L10: 0 | M10: 0 | N10: 0 | O10: 0 | P10: 0 | Q10: 0 | R10: 0 | S10: 0 | AD10: 0
B11: Jurisdictional Scheme Amounts | C11: 0 | D11: 0 | E11: 0 | F11: 0 | G11: 0 | H11: 0 | I11: 0 | J11: 0 | K11: 0 | L11: 0 | M11: 0 | N11: 0 | O11: 0 | P11: 0 | Q11: 0 | R11: 0 | S11: 0 | AD11: 0
B12: Profit from sale of Fixed Assets | C12: 0 | D12: 0 | E12: 0 | F12: 0 | G12: 0 | H12: 0 | I12: 0 | J12: 0 | K12: 0 | L12: 0 | M12: 0 | N12: 0 | O12: 0 | P12: 0 | Q12: 0 | R12: 0 | S12: 0 | AD12: 0
B13: Customer Contributions | C13: 0 | D13: 0 | E13: 0 | F13: 0 | G13: 0 | H13: 0 | I13: 0 | J13: 0 | K13: 0 | L13: 0 | M13: 0 | N13: 0 | O13: 0 | P13: 0 | Q13: 0 | R13: 0 | S13: 0 | AD13: 0
B14: Other Revenue | C14: -1152.86285 | D14: 1252.80126 | E14: -2574.376 | F14: 0 | G14: 0 | H14: 0 | I14: 0 | J14: 0 | K14: 0 | L14: 152.2347166 | M14: 14.91766663 | N14: 0.04517952305 | O14: 1.387090756 | P14: 0 | Q14: 0 | R14: 0.1228825711 | S14: 0.004353936535 | T14: 0.9023354346 | U14: 0.08842095619 | V14: 0.0002677909841 | W14: 0.008221653827 | X14: 0 | Y14: 0 | Z14: 0.0007283575041 | AA14: 2.580693355e-05 | AB14: Allocated based on Regulated Asset Base | AC14: Most appropriate allocator | AD14: 0
B16: Total Revenue | C16: =SUM(C9:C14) -> 293341.6084 | D16: 235923.1443 | E16: 40095.6767 | F16: 1115.184447 | G16: 3289.895693 | H16: 6503.857019 | I16: 3448.06489 | J16: 0 | K16: 2797.07329 | L16: 152.2347166 | M16: 14.91766663 | N16: 0.04517952305 | O16: 1.387090756 | P16: 0 | Q16: 0 | R16: 0.1228825711 | S16: 0.004353936535 | AD16: =SUM(AD9:AD14) -> 0.0001289214706
B18: Maintenance | C18: 38100.50599 | D18: 29869.12877 | E18: 1356.62357 | F18: 748.6149878 | G18: 2648.025728 | H18: 1856.198399 | I18: 1621.914535 | J18: 0 | K18: 0 | L18: 0 | M18: 0 | N18: 0 | O18: 0 | P18: 0 | Q18: 0 | R18: 0 | S18: 0 | AD18: =C18-SUM(D18:S18) -> 0
B19: Designated Pricing Proposal Charges | C19: 0 | D19: 0 | E19: 0 | F19: 0 | G19: 0 | H19: 0 | I19: 0 | J19: 0 | K19: 0 | L19: 0 | M19: 0 | N19: 0 | O19: 0 | P19: 0 | Q19: 0 | R19: 0 | S19: 0 | AD19: 0
B20: Jurisdictional Scheme Amounts | C20: 0 | D20: 0 | E20: 0 | F20: 0 | G20: 0 | H20: 0 | I20: 0 | J20: 0 | K20: 0 | L20: 0 | M20: 0 | N20: 0 | O20: 0 | P20: 0 | Q20: 0 | R20: 0 | S20: 0 | AD20: 0
B21: Operating Expenses (Billing & Revenue Collection - Allocated) | C21: 2310.675545 | D21: 0 | E21: 0 | F21: 0 | G21: 0 | H21: 0 | I21: 0 | J21: 0 | K21: 0 | L21: 2042.028174 | M21: 119.8268347 | N21: 8.676702599 | O21: 30.6915181 | P21: 64.83348138 | Q21: 44.61883397 | R21: 0 | S21: 0 | T21: 0.8837364375 | U21: 0.0518579231 | V21: 0.00375505017 | W21: 0.01328248709 | X21: 0.0280582367 | Y21: 0.01930986549 | Z21: 0 | AA21: 0 | AB21: Allocation based on Expenditure Split | AC21: Reflective of the costs incurred in providing different categories of distribution services | AD21: 0
B22: Operating Expenses (Advertising/Marketing - Allocated) | C22: 6.12374628 | D22: 0 | E22: 0 | F22: 0 | G22: 0 | H22: 0 | I22: 0 | J22: 0 | K22: 0 | L22: 5.411777721 | M22: 0.3175647637 | N22: 0.02299497451 | O22: 0.08133858092 | P22: 0.1718215226 | Q22: 0.118248717 | R22: 0 | S22: 0 | T22: 0.8837364375 | U22: 0.0518579231 | V22: 0.00375505017 | W22: 0.01328248709 | X22: 0.0280582367 | Y22: 0.01930986549 | Z22: 0 | AA22: 0 | AB22: Allocation based on Expenditure Split | AC22: Reflective of the costs incurred in providing different categories of distribution services | AD22: 0
B23: Operating Expenses (Customer Service - Allocated) | C23: 3134.180079 | D23: 0 | E23: 0 | F23: 0 | G23: 0 | H23: 0 | I23: 0 | J23: 0 | K23: 0 | L23: 2769.789137 | M23: 162.5320695 | N23: 11.76900344 | O23: 41.62970644 | P23: 87.93956651 | Q23: 60.52059575 | R23: 0 | S23: 0 | T23: 0.8837364375 | U23: 0.0518579231 | V23: 0.00375505017 | W23: 0.01328248709 | X23: 0.0280582367 | Y23: 0.01930986549 | Z23: 0 | AA23: 0 | AB23: Allocation based on Expenditure Split | AC23: Reflective of the costs incurred in providing different categories of distribution services | AD23: 0
B24: Operating Expenses (Directly Attributable) | C24: 34792.41702 | D24: 19851.23478 | E24: 8981.885473 | F24: 0 | G24: 0 | H24: 3731.554255 | I24: 2227.74251 | J24: 0 | K24: 0 | L24: 0 | M24: 0 | N24: 0 | O24: 0 | P24: 0 | Q24: 0 | R24: 0 | S24: 0 | AD24: 0
B25: Depreciation | C25: 65268.54403 | D25: 47443.94265 | E25: 16648.31156 | F25: 15.74106875 | G25: 1097.667597 | H25: 0 | I25: 0 | J25: 62.88115886 | K25: 0 | L25: 0 | M25: 0 | N25: 0 | O25: 0 | P25: 0 | Q25: 0 | R25: 0 | S25: 0 | AD25: 0
B26: Finance Charges | C26: 8775.2447 | D26: 293.17204 | E26: 0 | F26: 0 | G26: 0 | H26: 0 | I26: 0 | J26: 0 | K26: 0 | L26: 7653.67472 | M26: 749.992975 | N26: 2.271422585 | O26: 69.73666515 | P26: 0 | Q26: 0 | R26: 6.177981272 | S26: 0.2188962855 | T26: 0.9023354346 | U26: 0.08842095619 | V26: 0.0002677909841 | W26: 0.008221653827 | X26: 0 | Y26: 0 | Z26: 0.0007283575041 | AA26: 2.580693355e-05 | AB26: Allocation based on Fixed Assets (Regulatory) | AC26: Most appropriate allocator | AD26: 0
B27: Loss from sale of Fixed Assets | C27: -259.12958 | D27: -259.12958 | E27: 0 | F27: 0 | G27: 0 | H27: 0 | I27: 0 | J27: 0 | K27: 0 | L27: 0 | M27: 0 | N27: 0 | O27: 0 | P27: 0 | Q27: 0 | R27: 0 | S27: 0 | AD27: 0
B28: Impairment Losses (Nature: ) | C28: 0 | D28: 0 | E28: 0 | F28: 0 | G28: 0 | H28: 0 | I28: 0 | J28: 0 | K28: 0 | L28: 0 | M28: 0 | N28: 0 | O28: 0 | P28: 0 | Q28: 0 | R28: 0 | S28: 0 | AD28: 0
B29: Other | C29: 0 | D29: 0 | E29: 0 | F29: 0 | G29: 0 | H29: 0 | I29: 0 | J29: 0 | K29: 0 | L29: 0 | M29: 0 | N29: 0 | O29: 0 | P29: 0 | Q29: 0 | R29: 0 | S29: 0 | AD29: 0
B31: Profit before Tax (PBT) | C31: =C16-SUM(C18:C29) -> 141213.0469 | D31: 138724.7957 | E31: 13108.8561 | F31: 350.8283909 | G31: -455.7976329 | H31: 916.1043652 | I31: -401.5921549 | J31: -62.88115886 | K31: 2797.07329 | L31: -12318.66909 | M31: -1017.751777 | N31: -22.69494407 | O31: -140.7521375 | P31: -152.9448694 | Q31: -105.2576784 | R31: -6.055098701 | S31: -0.214542349 | AD31: =C31-SUM(D31:S31) -> 0.0001289214706
AD32: =C32-SUM(D32:S32) -> 0
B33: Income Tax Expense / (Benefit) | C33: -2215.519012 | D33: 0 | E33: 0 | F33: 0 | G33: 0 | H33: 0 | I33: 0 | J33: 0 | K33: 0 | L33: -1983.210354 | M33: -189.699692 | N33: -5.148149595 | O33: 9.359385605 | P33: -11.97335805 | Q33: 7.95206581 | R33: 1.081554379 | S33: -43.88046195 | T33: 0.8951448141 | U33: 0.08562313886 | V33: 0.002323676559 | W33: -0.004224466391 | X33: 0.005404312935 | Y33: -0.003589256408 | Z33: -0.0004881720145 | AA33: 0.01980595143 | AB33: Allocated based on Proportion of Profit/Loss in each segment | AC33: Most appropriate allocator | AD33: =C33-SUM(D33:S33) -> -2.022674835e-06
AD34: =C34-SUM(D34:S34) -> 0
B35: Profit after Tax | C35: =C31-C33 -> 143428.5659 | D35: =D31-D33 -> 138724.7957 | E35: 13108.8561 | F35: 350.8283909 | G35: -455.7976329 | H35: 916.1043652 | I35: -401.5921549 | J35: -62.88115886 | K35: 2797.07329 | L35: -10335.45874 | M35: -828.0520854 | N35: -17.54679448 | O35: -150.1115231 | P35: -140.9715114 | Q35: -113.2097442 | R35: -7.13665308 | S35: 43.6659196 | AD35: =C35-SUM(D35:S35) -> 0.0001309441286

Sheet Services Fee Workpaper
B1: CitiPower
B2: Corporate Services Fee Allocations Workpaper
B3: 2013
F6: 'Numeric QTY of each allocator (%) | O6: ($'000 nominal) | X6: Description of Allocation Basis
B7: Services Fee Workpaper | C7: Statutory $000's | D7: Related Party / Amount Capitalised | E7: Powercor $000 | F7: SCS | G7: AMI | H7: PL (EF) | I7: PL (NE) | J7: ACS (F) | K7: ACS (Q) | L7: Neg'd | M7: Un'reg | N7: Total % | O7: SCS | P7: AMI | Q7: PL (EF) | R7: PL (NE) | S7: ACS (F) | T7: ACS (Q) | U7: Neg'd | V7: Un'reg | W7: Total $
B9: Maintenance | C9: 3888.789931 | D9: 0 | E9: 3888.789931 | O9: 3018.718991 | P9: 152.03415 | Q9: 78.89071579 | R9: 279.0548527 | S9: 183.6735903 | T9: 176.4176313 | U9: 0 | V9: 0 | W9: 3888.789931 | X9: Directly attributable
B10: Network operating costs | C10: 398.1361205 | D10: 0 | E10: 398.1361205 | O10: 0 | P10: 398.1361205 | Q10: 0 | R10: 0 | S10: 0 | T10: 0 | U10: 0 | V10: 0 | W10: 398.1361205 | X10: Directly attributable
B11: Meter data services | C11: 0 | D11: 0 | E11: 0 | O11: 0 | P11: 0 | Q11: 0 | R11: 0 | S11: 0 | T11: 0 | U11: 0 | V11: 0 | W11: 0 | X11: Directly attributable to AMI
B12: Billing and revenue collection - CIS | C12: 643.1866112 | D12: 0 | E12: 643.1866112 | O12: 643.1866112 | P12: 0 | Q12: 0 | R12: 0 | S12: 0 | T12: 0 | U12: 0 | V12: 0 | W12: 643.1866112 | X12: Directly attributable to SCS
B13: Billing and revenue collection | C13: 2310.675545 | D13: 0 | E13: 2310.675545 | F13: 0.8837364375 | G13: 0.0518579231 | H13: 0.00375505017 | I13: 0.01328248709 | J13: 0.0280582367 | K13: 0.01930986549 | L13: 0 | M13: 0 | N13: 1 | O13: 2042.028174 | P13: 119.8268347 | Q13: 8.676702599 | R13: 30.6915181 | S13: 64.83348138 | T13: 44.61883397 | U13: 0 | V13: 0 | W13: 2310.675545 | X13: Allocation based on 2012 expenditure split
B14: Advertising & Marketing | C14: 6.12374628 | D14: 0 | E14: 6.12374628 | F14: 0.8837364375 | G14: 0.0518579231 | H14: 0.00375505017 | I14: 0.01328248709 | J14: 0.0280582367 | K14: 0.01930986549 | L14: 0 | M14: 0 | N14: 1 | O14: 5.411777721 | P14: 0.3175647637 | Q14: 0.02299497451 | R14: 0.08133858092 | S14: 0.1718215226 | T14: 0.118248717 | U14: 0 | V14: 0 | W14: 6.12374628 | X14: Allocation based on 2012 expenditure split
B15: Customer Service | C15: 3134.180079 | D15: 0 | E15: 3134.180079 | F15: 0.8837364375 | G15: 0.0518579231 | H15: 0.00375505017 | I15: 0.01328248709 | J15: 0.0280582367 | K15: 0.01930986549 | L15: 0 | M15: 0 | N15: 1 | O15: 2769.789137 | P15: 162.5320695 | Q15: 11.76900344 | R15: 41.62970644 | S15: 87.93956651 | T15: 60.52059575 | U15: 0 | V15: 0 | W15: 3134.180079 | X15: Allocation based on 2012 expenditure split
B16: Regulatory | C16: 2050.868627 | D16: 2050.868627 | E16: 0 | O16: 0 | P16: 0 | Q16: 0 | R16: 0 | S16: 0 | T16: 0 | U16: 0 | V16: 0 | W16: 0 | X16: Directly attributable
B17: Other | C17: 17734.45465 | D17: 15011.48972 | E17: 2722.964923 | O17: 3114.087383 | P17: 0 | Q17: 0 | R17: 0 | S17: -391.12246 | T17: 0 | U17: 0 | V17: 0 | W17: 2722.964923 | X17: Directly attributable to SCS & ACS
B19: TOTAL | C19: =SUM(C9:C18) -> 30166.41531 | D19: =SUM(D9:D18) -> 17062.35835 | E19: =SUM(E9:E18) -> 13104.05696 | O19: =SUM(O9:O18) -> 11593.22207 | P19: 832.8467395 | Q19: 99.3594168 | R19: 351.4574158 | S19: -54.50400032 | T19: 281.6753098 | U19: 0 | V19: 0 | W19: 13104.05696
